{"text_format":"3","workbook":"xlsx","n_sheets":15,"sheets":["Как се използва този шаблон","Списък с учащи","Август","Септември","Октомври","Ноември","Декември","Януари","Февруари","Март","Април","Май","Юни","Юли","Отчет за присъствие на учащи"],"not_rendered":{"defined_names":16},"read":"whole","date_system":"1900"}

{"sheet":"Как се използва този шаблон","index":0,"n_rows":25,"n_cols":5,"rows_kept":25,"merged":[[3,2,3,12],[4,4,4,12],[5,4,5,12],[6,4,6,12],[7,4,7,12],[8,4,8,7],[11,2,11,12],[12,4,12,12],[13,4,13,12],[14,4,14,12],[17,2,17,12],[18,4,18,12],[19,4,19,12],[20,4,20,12],[21,4,21,12],[24,2,24,12]]}
["КАК СЕ ИЗПОЛЗВА ТОЗИ ШАБЛОН"]
[]
[null,"ОТКЪДЕ ДА ЗАПОЧНА?"]
[null,null,"Има няколко стъпки, които трябва да предприемете, преди да можете да започнете да проследявате присъствието на учащите:"]
[{"$nulls":3},"1.","Добавяне на учащи: В листа \"Списък с учащи\" въведете цялата информация за учащия, като например име на настойниците и информация за връзка. \"ИД на учащ\" е важен запис, тъй като представлява уникален идентификатор за всеки учащ и се използва в цялата работна книга за различните падащи списъци с ИД на учащ, за да се улесни въвеждането на данни. Информацията, въведена в \"Списък с учащи\", се използва и в други листове, като например \"Отчет за присъствие на учащи\" и месечните записи за присъствието."]
[{"$nulls":3},"2.","Промяна на учебната календарна година: В листа \"Август\" за присъствие, щракнете върху контролата брояч в горния десен ъгъл на заглавката, за да актуализирате учебната календарна година. Тази промяна ще актуализира заглавката във всички месечни записи за присъствието в тази работна книга. (Имайте предвид, че бутонът на брояча няма да се отпечата.)"]
[{"$nulls":3},"3.","(По избор) Промяна на цветовете в цялата работна книга:  Първо отидете в последния лист \"Отчет за присъствие на учащи\" и в раздела \"Преглед\", в групата \"Промени\" щракнете върху \"Премахване на защитата на лист\". След това в раздела \"Оформление на страниците\", в групата ''Теми'' щракнете върху ''Цветове'' и изберете друг набор цветове за тема от галерията за цветове. След като сте направили промените в цветовете и всички други промени в темата, се върнете в листа \"Отчет за присъствие на учащи\" и в раздела \"Преглед\", в групата \"Промени\" щракнете върху \"Защита на лист\" и след това върху OK."]
[{"$nulls":4},"Съвет: Създайте персонализиран набор цветове за тема, който да съответства на цветовете на учебното ви заведение! За да го направите, в раздела \"Оформление на страниците\", в групата ''Теми'' щракнете върху ''Цветове'' и в долната част на галерията за цветове щракнете върху ''Създаване на нови цветове на тема''. За още информация за създаването на персонализиран набор цветове прегледайте следната помощна тема: "]
[{"$nulls":4},"Персонализиране на тема на документ."]
[]
[null,"ВЪВЕДОХ УЧАЩИТЕ. КАКВО ДА НАПРАВЯ СЛЕД ТОВА?"]
[null,null,"След като учащите са въведени в листа \"Списък с учащи\", можете да започнете да следите присъствието им за учебната година, като следвате тези стъпки:"]
[{"$nulls":3},"1.","За да добавите учащ към запис за присъствие, щракнете в клетка под колоната \"ИД на учащ\" и изберете ИД от списъка. Името на учащия ще се покаже автоматично след избирането на ИД. "]
[{"$nulls":4},"Съвет: Запишете стъпките за въвеждане на данни! След като въведете учащите за един месец, изберете въведените ИД на учащ, копирайте ги и ги поставете в колоната \"ИД на учащ\" за останалите месеци. "]
[{"$nulls":3},"2.","След това въведете данните за присъствието им за всеки ден от месеца, като използвате типовете присъствие, предоставени в ключа за цветовете. Присъствието на учащия се изчислява автоматично според типа присъствие за всеки учащ с колоната \"Общо\". Общият брой отсъствия се изчислява автоматично в дъното на таблицата в сумарния ред."]
[]
[null,"КАК ДА ДОБАВЯ ОЩЕ УЧАЩИ КЪМ МЕСЕЧЕН ЗАПИС ЗА ПРИСЪСТВИЕ?"]
[null,null,"Листовете с месечните записи за присъствието и списъкът с учащи са таблици в Excel. За да добавите нов ред към всяка таблица в Excel, направете едно от следните неща:"]
[{"$nulls":3},"● ","Ако в таблицата няма сумарен ред, започнете да пишете под таблицата и тя автоматично ще се разшири, когато натиснете клавиша Enter или Tab."]
[{"$nulls":3},"● ","Поставете показалеца в последния ред над сумарния ред, като например клетката \"Дни отсъствие\" за последния учащ и след това натиснете клавиша Tab."]
[{"$nulls":3},"● ","Щракнете с десния бутон в таблицата и в изскачащото меню посочете \"Вмъкване\", и след това щракнете върху \"Редове за таблица отгоре\" или \"Редове за таблица отдолу\". "]
[{"$nulls":3},"● ","В долния десен ъгъл на таблицата поставете мишката върху манипулатора за оразмеряване и го изтеглете надолу, за да увеличите броя на наличните редове в таблицата."]
[]
[null,"МОГА ЛИ ДА ПРЕГЛЕДАМ ПРИСЪСТВИЕТО НА УЧАЩ ЗА ЦЯЛАТА УЧЕБНА ГОДИНА?"]
[null,null,"Последният лист в тази работна книга \"Отчет за присъствие на учащи\" проследява присъствието за годината до днешна дата. За да видите отчет за определен учащ, щракнете върху клетката по-долу \"ИД на учащ\" и след това изберете ИД от падащия списък. Автоматично ще се покаже информацията, която вече сте въвели в листа \"Списък с учащи\" за определения учащ. Имайте предвид, че когато използвате отчета за присъствие на учащи за първи път, трябва да въведете \"Учебно заведение\", \"Оценка\", \"Преподавател\" и \"Стая\". Тази информация няма да се промени, ако изберете друг учащ. "]

{"sheet":"Списък с учащи","index":1,"n_rows":8,"n_cols":19,"rows_kept":8}
["СПИСЪК С УЧАЩИ"]
[]
[null,"ИД на учащ","Собствено име на учащ","Фамилно име на учащ","Пол","Дата на раждане","Родител или настойник 1","Родство с родител/настойник 1","Служебен телефон на родител/настойник 1","Домашен телефон на родител/настойник 1","Родител/настойник 2","Родство с родител/настойник 2","Служебен телефон на родител/настойник 2","Домашен телефон на родител/настойник 2","Контакт при спешни случаи","Родство с контакта при спешни случаи","Служебен телефон на контакта при спешни случаи","Домашен телефон на контакта при спешни случаи","Пълно име на учащ"]
[null,"S001","Борислав","Белишки","М","1997-03-28","Костадин","Белишки",1235550134,2345550134,"Костадин Белишки","Баща",1235550134,2345550134,"Станимир Кирилов","Дядо",7895550189,7895550134,{"$f":"СписъкУчащи[[#This Row],[Собствено име на учащ]]&\" \" &СписъкУчащи[[#This Row],[Фамилно име на учащ]]","v":"Борислав Белишки"}]
[null,"S002","Учащ",2,{"$nulls":14},{"$f":"СписъкУчащи[[#This Row],[Собствено име на учащ]]&\" \" &СписъкУчащи[[#This Row],[Фамилно име на учащ]]","v":"Учащ 2"}]
[null,"S003","Учащ",3,{"$nulls":14},{"$f":"СписъкУчащи[[#This Row],[Собствено име на учащ]]&\" \" &СписъкУчащи[[#This Row],[Фамилно име на учащ]]","v":"Учащ 3"}]
[null,"S004","Учащ",4,{"$nulls":14},{"$f":"СписъкУчащи[[#This Row],[Собствено име на учащ]]&\" \" &СписъкУчащи[[#This Row],[Фамилно име на учащ]]","v":"Учащ 4"}]
[null,"S005","Учащ",5,{"$nulls":14},{"$f":"СписъкУчащи[[#This Row],[Собствено име на учащ]]&\" \" &СписъкУчащи[[#This Row],[Фамилно име на учащ]]","v":"Учащ 5"}]

{"sheet":"Август","index":2,"n_rows":12,"n_cols":39,"rows_kept":12,"merged":[[4,34,4,38]]}
["ЗАПИС ЗА ПРИСЪСТВИЕ НА УЧАЩИ",{"$nulls":36},"Начало на учебната година:",2012]
[]
[null,null,"КЛЮЧ ЗА ЦВЕТОВЕТЕ ","З","Закъснение",null,null,"И","Извинен",null,null,"Н","Неизвинен",null,null,"П","Присъстващ",null,null,"Б","Без училище"]
[]
[null,{"$f":"DATE(КалендарнаГодина,8,1)","v":"2012-08-01"},null,{"$f":"TEXT(WEEKDAY(DATE(КалендарнаГодина,8,1),1),\"aaa\")","v":"ср"},{"$f":"TEXT(WEEKDAY(DATE(КалендарнаГодина,8,2),1),\"aaa\")","v":"четв"},{"$f":"TEXT(WEEKDAY(DATE(КалендарнаГодина,8,3),1),\"aaa\")","v":"пет"},{"$f":"TEXT(WEEKDAY(DATE(КалендарнаГодина,8,4),1),\"aaa\")","v":"съб"},{"$f":"TEXT(WEEKDAY(DATE(КалендарнаГодина,8,5),1),\"aaa\")","v":"нед"},{"$f":"TEXT(WEEKDAY(DATE(КалендарнаГодина,8,6),1),\"aaa\")","v":"пон"},{"$f":"TEXT(WEEKDAY(DATE(КалендарнаГодина,8,7),1),\"aaa\")","v":"вт"},{"$f":"TEXT(WEEKDAY(DATE(КалендарнаГодина,8,8),1),\"aaa\")","v":"ср"},{"$f":"TEXT(WEEKDAY(DATE(КалендарнаГодина,8,9),1),\"aaa\")","v":"четв"},{"$f":"TEXT(WEEKDAY(DATE(КалендарнаГодина,8,10),1),\"aaa\")","v":"пет"},{"$f":"TEXT(WEEKDAY(DATE(КалендарнаГодина,8,11),1),\"aaa\")","v":"съб"},{"$f":"TEXT(WEEKDAY(DATE(КалендарнаГодина,8,12),1),\"aaa\")","v":"нед"},{"$f":"TEXT(WEEKDAY(DATE(КалендарнаГодина,8,13),1),\"aaa\")","v":"пон"},{"$f":"TEXT(WEEKDAY(DATE(КалендарнаГодина,8,14),1),\"aaa\")","v":"вт"},{"$f":"TEXT(WEEKDAY(DATE(КалендарнаГодина,8,15),1),\"aaa\")","v":"ср"},{"$f":"TEXT(WEEKDAY(DATE(КалендарнаГодина,8,16),1),\"aaa\")","v":"четв"},{"$f":"TEXT(WEEKDAY(DATE(КалендарнаГодина,8,17),1),\"aaa\")","v":"пет"},{"$f":"TEXT(WEEKDAY(DATE(КалендарнаГодина,8,18),1),\"aaa\")","v":"съб"},{"$f":"TEXT(WEEKDAY(DATE(КалендарнаГодина,8,19),1),\"aaa\")","v":"нед"},{"$f":"TEXT(WEEKDAY(DATE(КалендарнаГодина,8,20),1),\"aaa\")","v":"пон"},{"$f":"TEXT(WEEKDAY(DATE(КалендарнаГодина,8,21),1),\"aaa\")","v":"вт"},{"$f":"TEXT(WEEKDAY(DATE(КалендарнаГодина,8,22),1),\"aaa\")","v":"ср"},{"$f":"TEXT(WEEKDAY(DATE(КалендарнаГодина,8,23),1),\"aaa\")","v":"четв"},{"$f":"TEXT(WEEKDAY(DATE(КалендарнаГодина,8,24),1),\"aaa\")","v":"пет"},{"$f":"TEXT(WEEKDAY(DATE(КалендарнаГодина,8,25),1),\"aaa\")","v":"съб"},{"$f":"TEXT(WEEKDAY(DATE(КалендарнаГодина,8,26),1),\"aaa\")","v":"нед"},{"$f":"TEXT(WEEKDAY(DATE(КалендарнаГодина,8,27),1),\"aaa\")","v":"пон"},{"$f":"TEXT(WEEKDAY(DATE(КалендарнаГодина,8,28),1),\"aaa\")","v":"вт"},{"$f":"TEXT(WEEKDAY(DATE(КалендарнаГодина,8,29),1),\"aaa\")","v":"ср"},{"$f":"TEXT(WEEKDAY(DATE(КалендарнаГодина,8,30),1),\"aaa\")","v":"четв"},{"$f":"TEXT(WEEKDAY(DATE(КалендарнаГодина,8,31),1),\"aaa\")","v":"пет"},"Общо"]
[null,"ИД на учащ","Име на учащ","1","2","3","4","5","6","7","8","9","10","11","12","13","14","15","16","17","18","19","20","21","22","23","24","25","26","27","28","29","30","31","З","И","Н","П","Дни отсъствие"]
[null,"S001",{"$f":"IFERROR(VLOOKUP(ПрисъствиеАвгуст[[#This Row],[ИД на учащ]],СписъкУчащи[],18,FALSE),\"\")","v":"Борислав Белишки"},"П","П","З","З","П","Б","Б","П","П","И","П","П","Б","Б","П","П","П","П","П","Б","Б","П","П","П","П","П","Б","Б","П","П","П",{"$f":"COUNTIF(ПрисъствиеАвгуст[[#This Row],[1]:[31]],Код1)","v":2},{"$f":"COUNTIF(ПрисъствиеАвгуст[[#This Row],[1]:[31]],Код2)","v":1},{"$f":"COUNTIF(ПрисъствиеАвгуст[[#This Row],[1]:[31]],Код3)","v":0},{"$f":"COUNTIF(ПрисъствиеАвгуст[[#This Row],[1]:[31]],Код4)","v":20},{"$f":"SUM(ПрисъствиеАвгуст[[#This Row],[И]:[Н]])","v":1}]
[null,"S002",{"$f":"IFERROR(VLOOKUP(ПрисъствиеАвгуст[[#This Row],[ИД на учащ]],СписъкУчащи[],18,FALSE),\"\")","v":"Учащ 2"},"П","Н","П","П","П","Б","Б","П","И","И","И","И","Б","Б","П","П","П","П","П","Б","Б","П","П","П","З","З","Б","Б","П","П","П",{"$f":"COUNTIF(ПрисъствиеАвгуст[[#This Row],[1]:[31]],Код1)","v":2},{"$f":"COUNTIF(ПрисъствиеАвгуст[[#This Row],[1]:[31]],Код2)","v":4},{"$f":"COUNTIF(ПрисъствиеАвгуст[[#This Row],[1]:[31]],Код3)","v":1},{"$f":"COUNTIF(ПрисъствиеАвгуст[[#This Row],[1]:[31]],Код4)","v":16},{"$f":"SUM(ПрисъствиеАвгуст[[#This Row],[И]:[Н]])","v":5}]
[null,"S003",{"$f":"IFERROR(VLOOKUP(ПрисъствиеАвгуст[[#This Row],[ИД на учащ]],СписъкУчащи[],18,FALSE),\"\")","v":"Учащ 3"},"П","И","П","П","П","Б","Б","П","П","Н","П","П","Б","Б","П","П","П","П","П","Б","Б","П","П","И","И","П","Б","Б","П","П","П",{"$f":"COUNTIF(ПрисъствиеАвгуст[[#This Row],[1]:[31]],Код1)","v":0},{"$f":"COUNTIF(ПрисъствиеАвгуст[[#This Row],[1]:[31]],Код2)","v":3},{"$f":"COUNTIF(ПрисъствиеАвгуст[[#This Row],[1]:[31]],Код3)","v":1},{"$f":"COUNTIF(ПрисъствиеАвгуст[[#This Row],[1]:[31]],Код4)","v":19},{"$f":"SUM(ПрисъствиеАвгуст[[#This Row],[И]:[Н]])","v":4}]
[null,"S004",{"$f":"IFERROR(VLOOKUP(ПрисъствиеАвгуст[[#This Row],[ИД на учащ]],СписъкУчащи[],18,FALSE),\"\")","v":"Учащ 4"},"П","П","П","П","П","Б","Б","П","П","П","П","П","Б","Б","П","П","П","П","П","Б","Б","П","Н","П","П","И","Б","Б","П","И","П",{"$f":"COUNTIF(ПрисъствиеАвгуст[[#This Row],[1]:[31]],Код1)","v":0},{"$f":"COUNTIF(ПрисъствиеАвгуст[[#This Row],[1]:[31]],Код2)","v":2},{"$f":"COUNTIF(ПрисъствиеАвгуст[[#This Row],[1]:[31]],Код3)","v":1},{"$f":"COUNTIF(ПрисъствиеАвгуст[[#This Row],[1]:[31]],Код4)","v":20},{"$f":"SUM(ПрисъствиеАвгуст[[#This Row],[И]:[Н]])","v":3}]
[null,"S005",{"$f":"IFERROR(VLOOKUP(ПрисъствиеАвгуст[[#This Row],[ИД на учащ]],СписъкУчащи[],18,FALSE),\"\")","v":"Учащ 5"},"П","П","П","П","П","Б","Б","П","П","П","П","П","Б","Б","П","П","П","П","П","Б","Б","П","П","П","П","П","Б","Б","П","П","П",{"$f":"COUNTIF(ПрисъствиеАвгуст[[#This Row],[1]:[31]],Код1)","v":0},{"$f":"COUNTIF(ПрисъствиеАвгуст[[#This Row],[1]:[31]],Код2)","v":0},{"$f":"COUNTIF(ПрисъствиеАвгуст[[#This Row],[1]:[31]],Код3)","v":0},{"$f":"COUNTIF(ПрисъствиеАвгуст[[#This Row],[1]:[31]],Код4)","v":23},{"$f":"SUM(ПрисъствиеАвгуст[[#This Row],[И]:[Н]])","v":0}]
[null,null,"Общо дни отсъствие",{"$f":"COUNTIF(ПрисъствиеАвгуст[1],\"Н\")+COUNTIF(ПрисъствиеАвгуст[1],\"И\")","v":0},{"$f":"COUNTIF(ПрисъствиеАвгуст[2],\"Н\")+COUNTIF(ПрисъствиеАвгуст[2],\"И\")","v":2},{"$f":"COUNTIF(ПрисъствиеАвгуст[3],\"Н\")+COUNTIF(ПрисъствиеАвгуст[3],\"И\")","v":0},{"$f":"COUNTIF(ПрисъствиеАвгуст[4],\"Н\")+COUNTIF(ПрисъствиеАвгуст[4],\"И\")","v":0},{"$f":"COUNTIF(ПрисъствиеАвгуст[5],\"Н\")+COUNTIF(ПрисъствиеАвгуст[5],\"И\")","v":0},{"$f":"COUNTIF(ПрисъствиеАвгуст[6],\"Н\")+COUNTIF(ПрисъствиеАвгуст[6],\"И\")","v":0},{"$f":"COUNTIF(ПрисъствиеАвгуст[7],\"Н\")+COUNTIF(ПрисъствиеАвгуст[7],\"И\")","v":0},{"$f":"COUNTIF(ПрисъствиеАвгуст[8],\"Н\")+COUNTIF(ПрисъствиеАвгуст[8],\"И\")","v":0},{"$f":"COUNTIF(ПрисъствиеАвгуст[9],\"Н\")+COUNTIF(ПрисъствиеАвгуст[9],\"И\")","v":1},{"$f":"COUNTIF(ПрисъствиеАвгуст[10],\"Н\")+COUNTIF(ПрисъствиеАвгуст[10],\"И\")","v":3},{"$f":"COUNTIF(ПрисъствиеАвгуст[11],\"Н\")+COUNTIF(ПрисъствиеАвгуст[11],\"И\")","v":1},{"$f":"COUNTIF(ПрисъствиеАвгуст[12],\"Н\")+COUNTIF(ПрисъствиеАвгуст[12],\"И\")","v":1},{"$f":"COUNTIF(ПрисъствиеАвгуст[13],\"Н\")+COUNTIF(ПрисъствиеАвгуст[13],\"И\")","v":0},{"$f":"COUNTIF(ПрисъствиеАвгуст[14],\"Н\")+COUNTIF(ПрисъствиеАвгуст[14],\"И\")","v":0},{"$f":"COUNTIF(ПрисъствиеАвгуст[15],\"Н\")+COUNTIF(ПрисъствиеАвгуст[15],\"И\")","v":0},{"$f":"COUNTIF(ПрисъствиеАвгуст[16],\"Н\")+COUNTIF(ПрисъствиеАвгуст[16],\"И\")","v":0},{"$f":"COUNTIF(ПрисъствиеАвгуст[17],\"Н\")+COUNTIF(ПрисъствиеАвгуст[17],\"И\")","v":0},{"$f":"COUNTIF(ПрисъствиеАвгуст[18],\"Н\")+COUNTIF(ПрисъствиеАвгуст[18],\"И\")","v":0},{"$f":"COUNTIF(ПрисъствиеАвгуст[19],\"Н\")+COUNTIF(ПрисъствиеАвгуст[19],\"И\")","v":0},{"$f":"COUNTIF(ПрисъствиеАвгуст[20],\"Н\")+COUNTIF(ПрисъствиеАвгуст[20],\"И\")","v":0},{"$f":"COUNTIF(ПрисъствиеАвгуст[21],\"Н\")+COUNTIF(ПрисъствиеАвгуст[21],\"И\")","v":0},{"$f":"COUNTIF(ПрисъствиеАвгуст[22],\"Н\")+COUNTIF(ПрисъствиеАвгуст[22],\"И\")","v":0},{"$f":"COUNTIF(ПрисъствиеАвгуст[23],\"Н\")+COUNTIF(ПрисъствиеАвгуст[23],\"И\")","v":1},{"$f":"COUNTIF(ПрисъствиеАвгуст[24],\"Н\")+COUNTIF(ПрисъствиеАвгуст[24],\"И\")","v":1},{"$f":"COUNTIF(ПрисъствиеАвгуст[25],\"Н\")+COUNTIF(ПрисъствиеАвгуст[25],\"И\")","v":1},{"$f":"COUNTIF(ПрисъствиеАвгуст[26],\"Н\")+COUNTIF(ПрисъствиеАвгуст[26],\"И\")","v":1},{"$f":"COUNTIF(ПрисъствиеАвгуст[27],\"Н\")+COUNTIF(ПрисъствиеАвгуст[27],\"И\")","v":0},{"$f":"COUNTIF(ПрисъствиеАвгуст[28],\"Н\")+COUNTIF(ПрисъствиеАвгуст[28],\"И\")","v":0},{"$f":"COUNTIF(ПрисъствиеАвгуст[29],\"Н\")+COUNTIF(ПрисъствиеАвгуст[29],\"И\")","v":0},{"$f":"COUNTIF(ПрисъствиеАвгуст[30],\"Н\")+COUNTIF(ПрисъствиеАвгуст[30],\"И\")","v":1},{"$f":"COUNTIF(ПрисъствиеАвгуст[31],\"Н\")+COUNTIF(ПрисъствиеАвгуст[31],\"И\")","v":0},{"$f":"SUBTOTAL(109,ПрисъствиеАвгуст[З])","v":4},{"$f":"SUBTOTAL(109,ПрисъствиеАвгуст[И])","v":10},{"$f":"SUBTOTAL(109,ПрисъствиеАвгуст[Н])","v":3},{"$f":"SUBTOTAL(109,ПрисъствиеАвгуст[П])","v":98},{"$f":"SUBTOTAL(109,ПрисъствиеАвгуст[Дни отсъствие])","v":13}]

{"sheet":"Септември","index":3,"n_rows":12,"n_cols":39,"rows_kept":12,"merged":[[4,34,4,38]]}
["ЗАПИС ЗА ПРИСЪСТВИЕ НА УЧАЩИ",{"$nulls":36},"Начало на учебната година:",{"$f":"КалендарнаГодина","v":2012}]
[]
[null,null,{"$f":"ТекстЦветовиКлюч","v":"КЛЮЧ ЗА ЦВЕТОВЕТЕ "},{"$f":"Код1","v":"З"},{"$f":"Код1Текст","v":"Закъснение"},null,null,{"$f":"Код2","v":"И"},{"$f":"Код2Текст","v":"Извинен"},null,null,{"$f":"Код3","v":"Н"},{"$f":"Код3Текст","v":"Неизвинен"},null,null,{"$f":"Код4","v":"П"},{"$f":"Код4Текст","v":"Присъстващ"},null,null,{"$f":"Код5","v":"Б"},{"$f":"Код5Текст","v":"Без училище"}]
[]
[null,{"$f":"DATE(КалендарнаГодина,9,1)","v":"2012-09-01"},null,{"$f":"TEXT(WEEKDAY(DATE(КалендарнаГодина,9,1),1),\"aaa\")","v":"съб"},{"$f":"TEXT(WEEKDAY(DATE(КалендарнаГодина,9,2),1),\"aaa\")","v":"нед"},{"$f":"TEXT(WEEKDAY(DATE(КалендарнаГодина,9,3),1),\"aaa\")","v":"пон"},{"$f":"TEXT(WEEKDAY(DATE(КалендарнаГодина,9,4),1),\"aaa\")","v":"вт"},{"$f":"TEXT(WEEKDAY(DATE(КалендарнаГодина,9,5),1),\"aaa\")","v":"ср"},{"$f":"TEXT(WEEKDAY(DATE(КалендарнаГодина,9,6),1),\"aaa\")","v":"четв"},{"$f":"TEXT(WEEKDAY(DATE(КалендарнаГодина,9,7),1),\"aaa\")","v":"пет"},{"$f":"TEXT(WEEKDAY(DATE(КалендарнаГодина,9,8),1),\"aaa\")","v":"съб"},{"$f":"TEXT(WEEKDAY(DATE(КалендарнаГодина,9,9),1),\"aaa\")","v":"нед"},{"$f":"TEXT(WEEKDAY(DATE(КалендарнаГодина,9,10),1),\"aaa\")","v":"пон"},{"$f":"TEXT(WEEKDAY(DATE(КалендарнаГодина,9,11),1),\"aaa\")","v":"вт"},{"$f":"TEXT(WEEKDAY(DATE(КалендарнаГодина,9,12),1),\"aaa\")","v":"ср"},{"$f":"TEXT(WEEKDAY(DATE(КалендарнаГодина,9,13),1),\"aaa\")","v":"четв"},{"$f":"TEXT(WEEKDAY(DATE(КалендарнаГодина,9,14),1),\"aaa\")","v":"пет"},{"$f":"TEXT(WEEKDAY(DATE(КалендарнаГодина,9,15),1),\"aaa\")","v":"съб"},{"$f":"TEXT(WEEKDAY(DATE(КалендарнаГодина,9,16),1),\"aaa\")","v":"нед"},{"$f":"TEXT(WEEKDAY(DATE(КалендарнаГодина,9,17),1),\"aaa\")","v":"пон"},{"$f":"TEXT(WEEKDAY(DATE(КалендарнаГодина,9,18),1),\"aaa\")","v":"вт"},{"$f":"TEXT(WEEKDAY(DATE(КалендарнаГодина,9,19),1),\"aaa\")","v":"ср"},{"$f":"TEXT(WEEKDAY(DATE(КалендарнаГодина,9,20),1),\"aaa\")","v":"четв"},{"$f":"TEXT(WEEKDAY(DATE(КалендарнаГодина,9,21),1),\"aaa\")","v":"пет"},{"$f":"TEXT(WEEKDAY(DATE(КалендарнаГодина,9,22),1),\"aaa\")","v":"съб"},{"$f":"TEXT(WEEKDAY(DATE(КалендарнаГодина,9,23),1),\"aaa\")","v":"нед"},{"$f":"TEXT(WEEKDAY(DATE(КалендарнаГодина,9,24),1),\"aaa\")","v":"пон"},{"$f":"TEXT(WEEKDAY(DATE(КалендарнаГодина,9,25),1),\"aaa\")","v":"вт"},{"$f":"TEXT(WEEKDAY(DATE(КалендарнаГодина,9,26),1),\"aaa\")","v":"ср"},{"$f":"TEXT(WEEKDAY(DATE(КалендарнаГодина,9,27),1),\"aaa\")","v":"четв"},{"$f":"TEXT(WEEKDAY(DATE(КалендарнаГодина,9,28),1),\"aaa\")","v":"пет"},{"$f":"TEXT(WEEKDAY(DATE(КалендарнаГодина,9,29),1),\"aaa\")","v":"съб"},{"$f":"TEXT(WEEKDAY(DATE(КалендарнаГодина,9,30),1),\"aaa\")","v":"нед"},{"$f":"TEXT(WEEKDAY(DATE(КалендарнаГодина,9,30),1),\"aaa\")","v":"нед"},"Общо"]
[null,"ИД на учащ","Име на учащ","1","2","3","4","5","6","7","8","9","10","11","12","13","14","15","16","17","18","19","20","21","22","23","24","25","26","27","28","29","30","31","З","И","Н","П","Дни отсъствие"]
[null,null,{"$f":"IFERROR(VLOOKUP(ПрисъствиеСептември[[#This Row],[ИД на учащ]],СписъкУчащи[],18,FALSE),\"\")","v":""},{"$nulls":31},{"$f":"COUNTIF(ПрисъствиеСептември[[#This Row],[1]:[31]],Код1)","v":0},{"$f":"COUNTIF(ПрисъствиеСептември[[#This Row],[1]:[31]],Код2)","v":0},{"$f":"COUNTIF(ПрисъствиеСептември[[#This Row],[1]:[31]],Код3)","v":0},{"$f":"COUNTIF(ПрисъствиеСептември[[#This Row],[1]:[31]],Код4)","v":0},{"$f":"SUM(ПрисъствиеСептември[[#This Row],[И]:[Н]])","v":0}]
[null,null,{"$f":"IFERROR(VLOOKUP(ПрисъствиеСептември[[#This Row],[ИД на учащ]],СписъкУчащи[],18,FALSE),\"\")","v":""},{"$nulls":31},{"$f":"COUNTIF(ПрисъствиеСептември[[#This Row],[1]:[31]],Код1)","v":0},{"$f":"COUNTIF(ПрисъствиеСептември[[#This Row],[1]:[31]],Код2)","v":0},{"$f":"COUNTIF(ПрисъствиеСептември[[#This Row],[1]:[31]],Код3)","v":0},{"$f":"COUNTIF(ПрисъствиеСептември[[#This Row],[1]:[31]],Код4)","v":0},{"$f":"SUM(ПрисъствиеСептември[[#This Row],[И]:[Н]])","v":0}]
[null,null,{"$f":"IFERROR(VLOOKUP(ПрисъствиеСептември[[#This Row],[ИД на учащ]],СписъкУчащи[],18,FALSE),\"\")","v":""},{"$nulls":31},{"$f":"COUNTIF(ПрисъствиеСептември[[#This Row],[1]:[31]],Код1)","v":0},{"$f":"COUNTIF(ПрисъствиеСептември[[#This Row],[1]:[31]],Код2)","v":0},{"$f":"COUNTIF(ПрисъствиеСептември[[#This Row],[1]:[31]],Код3)","v":0},{"$f":"COUNTIF(ПрисъствиеСептември[[#This Row],[1]:[31]],Код4)","v":0},{"$f":"SUM(ПрисъствиеСептември[[#This Row],[И]:[Н]])","v":0}]
[null,null,{"$f":"IFERROR(VLOOKUP(ПрисъствиеСептември[[#This Row],[ИД на учащ]],СписъкУчащи[],18,FALSE),\"\")","v":""},{"$nulls":31},{"$f":"COUNTIF(ПрисъствиеСептември[[#This Row],[1]:[31]],Код1)","v":0},{"$f":"COUNTIF(ПрисъствиеСептември[[#This Row],[1]:[31]],Код2)","v":0},{"$f":"COUNTIF(ПрисъствиеСептември[[#This Row],[1]:[31]],Код3)","v":0},{"$f":"COUNTIF(ПрисъствиеСептември[[#This Row],[1]:[31]],Код4)","v":0},{"$f":"SUM(ПрисъствиеСептември[[#This Row],[И]:[Н]])","v":0}]
[null,null,{"$f":"IFERROR(VLOOKUP(ПрисъствиеСептември[[#This Row],[ИД на учащ]],СписъкУчащи[],18,FALSE),\"\")","v":""},{"$nulls":31},{"$f":"COUNTIF(ПрисъствиеСептември[[#This Row],[1]:[31]],Код1)","v":0},{"$f":"COUNTIF(ПрисъствиеСептември[[#This Row],[1]:[31]],Код2)","v":0},{"$f":"COUNTIF(ПрисъствиеСептември[[#This Row],[1]:[31]],Код3)","v":0},{"$f":"COUNTIF(ПрисъствиеСептември[[#This Row],[1]:[31]],Код4)","v":0},{"$f":"SUM(ПрисъствиеСептември[[#This Row],[И]:[Н]])","v":0}]
[null,null,"Общо дни отсъствие",{"$f":"COUNTIF(ПрисъствиеСептември[1],\"Н\")+COUNTIF(ПрисъствиеСептември[1],\"И\")","v":0},{"$f":"COUNTIF(ПрисъствиеСептември[2],\"Н\")+COUNTIF(ПрисъствиеСептември[2],\"И\")","v":0},{"$f":"COUNTIF(ПрисъствиеСептември[3],\"Н\")+COUNTIF(ПрисъствиеСептември[3],\"И\")","v":0},{"$f":"COUNTIF(ПрисъствиеСептември[4],\"Н\")+COUNTIF(ПрисъствиеСептември[4],\"И\")","v":0},{"$f":"COUNTIF(ПрисъствиеСептември[5],\"Н\")+COUNTIF(ПрисъствиеСептември[5],\"И\")","v":0},{"$f":"COUNTIF(ПрисъствиеСептември[6],\"Н\")+COUNTIF(ПрисъствиеСептември[6],\"И\")","v":0},{"$f":"COUNTIF(ПрисъствиеСептември[7],\"Н\")+COUNTIF(ПрисъствиеСептември[7],\"И\")","v":0},{"$f":"COUNTIF(ПрисъствиеСептември[8],\"Н\")+COUNTIF(ПрисъствиеСептември[8],\"И\")","v":0},{"$f":"COUNTIF(ПрисъствиеСептември[9],\"Н\")+COUNTIF(ПрисъствиеСептември[9],\"И\")","v":0},{"$f":"COUNTIF(ПрисъствиеСептември[10],\"Н\")+COUNTIF(ПрисъствиеСептември[10],\"И\")","v":0},{"$f":"COUNTIF(ПрисъствиеСептември[11],\"Н\")+COUNTIF(ПрисъствиеСептември[11],\"И\")","v":0},{"$f":"COUNTIF(ПрисъствиеСептември[12],\"Н\")+COUNTIF(ПрисъствиеСептември[12],\"И\")","v":0},{"$f":"COUNTIF(ПрисъствиеСептември[13],\"Н\")+COUNTIF(ПрисъствиеСептември[13],\"И\")","v":0},{"$f":"COUNTIF(ПрисъствиеСептември[14],\"Н\")+COUNTIF(ПрисъствиеСептември[14],\"И\")","v":0},{"$f":"COUNTIF(ПрисъствиеСептември[15],\"Н\")+COUNTIF(ПрисъствиеСептември[15],\"И\")","v":0},{"$f":"COUNTIF(ПрисъствиеСептември[16],\"Н\")+COUNTIF(ПрисъствиеСептември[16],\"И\")","v":0},{"$f":"COUNTIF(ПрисъствиеСептември[17],\"Н\")+COUNTIF(ПрисъствиеСептември[17],\"И\")","v":0},{"$f":"COUNTIF(ПрисъствиеСептември[18],\"Н\")+COUNTIF(ПрисъствиеСептември[18],\"И\")","v":0},{"$f":"COUNTIF(ПрисъствиеСептември[19],\"Н\")+COUNTIF(ПрисъствиеСептември[19],\"И\")","v":0},{"$f":"COUNTIF(ПрисъствиеСептември[20],\"Н\")+COUNTIF(ПрисъствиеСептември[20],\"И\")","v":0},{"$f":"COUNTIF(ПрисъствиеСептември[21],\"Н\")+COUNTIF(ПрисъствиеСептември[21],\"И\")","v":0},{"$f":"COUNTIF(ПрисъствиеСептември[22],\"Н\")+COUNTIF(ПрисъствиеСептември[22],\"И\")","v":0},{"$f":"COUNTIF(ПрисъствиеСептември[23],\"Н\")+COUNTIF(ПрисъствиеСептември[23],\"И\")","v":0},{"$f":"COUNTIF(ПрисъствиеСептември[24],\"Н\")+COUNTIF(ПрисъствиеСептември[24],\"И\")","v":0},{"$f":"COUNTIF(ПрисъствиеСептември[25],\"Н\")+COUNTIF(ПрисъствиеСептември[25],\"И\")","v":0},{"$f":"COUNTIF(ПрисъствиеСептември[26],\"Н\")+COUNTIF(ПрисъствиеСептември[26],\"И\")","v":0},{"$f":"COUNTIF(ПрисъствиеСептември[27],\"Н\")+COUNTIF(ПрисъствиеСептември[27],\"И\")","v":0},{"$f":"COUNTIF(ПрисъствиеСептември[28],\"Н\")+COUNTIF(ПрисъствиеСептември[28],\"И\")","v":0},{"$f":"COUNTIF(ПрисъствиеСептември[29],\"Н\")+COUNTIF(ПрисъствиеСептември[29],\"И\")","v":0},{"$f":"COUNTIF(ПрисъствиеСептември[30],\"Н\")+COUNTIF(ПрисъствиеСептември[30],\"И\")","v":0},{"$f":"COUNTIF(ПрисъствиеСептември[31],\"Н\")+COUNTIF(ПрисъствиеСептември[31],\"И\")","v":0},{"$f":"SUBTOTAL(109,ПрисъствиеСептември[З])","v":0},{"$f":"SUBTOTAL(109,ПрисъствиеСептември[И])","v":0},{"$f":"SUBTOTAL(109,ПрисъствиеСептември[Н])","v":0},{"$f":"SUBTOTAL(109,ПрисъствиеСептември[П])","v":0},{"$f":"SUBTOTAL(109,ПрисъствиеСептември[Дни отсъствие])","v":0}]

{"sheet":"Октомври","index":4,"n_rows":12,"n_cols":39,"rows_kept":12,"merged":[[4,34,4,38]]}
["ЗАПИС ЗА ПРИСЪСТВИЕ НА УЧАЩИ",{"$nulls":36},"Начало на учебната година:",{"$f":"КалендарнаГодина","v":2012}]
[]
[null,null,{"$f":"ТекстЦветовиКлюч","v":"КЛЮЧ ЗА ЦВЕТОВЕТЕ "},{"$f":"Код1","v":"З"},{"$f":"Код1Текст","v":"Закъснение"},null,null,{"$f":"Код2","v":"И"},{"$f":"Код2Текст","v":"Извинен"},null,null,{"$f":"Код3","v":"Н"},{"$f":"Код3Текст","v":"Неизвинен"},null,null,{"$f":"Код4","v":"П"},{"$f":"Код4Текст","v":"Присъстващ"},null,null,{"$f":"Код5","v":"Б"},{"$f":"Код5Текст","v":"Без училище"}]
[]
[null,{"$f":"DATE(КалендарнаГодина,10,1)","v":"2012-10-01"},null,{"$f":"TEXT(WEEKDAY(DATE(КалендарнаГодина,10,1),1),\"aaa\")","v":"пон"},{"$f":"TEXT(WEEKDAY(DATE(КалендарнаГодина,10,2),1),\"aaa\")","v":"вт"},{"$f":"TEXT(WEEKDAY(DATE(КалендарнаГодина,10,3),1),\"aaa\")","v":"ср"},{"$f":"TEXT(WEEKDAY(DATE(КалендарнаГодина,10,4),1),\"aaa\")","v":"четв"},{"$f":"TEXT(WEEKDAY(DATE(КалендарнаГодина,10,5),1),\"aaa\")","v":"пет"},{"$f":"TEXT(WEEKDAY(DATE(КалендарнаГодина,10,6),1),\"aaa\")","v":"съб"},{"$f":"TEXT(WEEKDAY(DATE(КалендарнаГодина,10,7),1),\"aaa\")","v":"нед"},{"$f":"TEXT(WEEKDAY(DATE(КалендарнаГодина,10,8),1),\"aaa\")","v":"пон"},{"$f":"TEXT(WEEKDAY(DATE(КалендарнаГодина,10,9),1),\"aaa\")","v":"вт"},{"$f":"TEXT(WEEKDAY(DATE(КалендарнаГодина,10,10),1),\"aaa\")","v":"ср"},{"$f":"TEXT(WEEKDAY(DATE(КалендарнаГодина,10,11),1),\"aaa\")","v":"четв"},{"$f":"TEXT(WEEKDAY(DATE(КалендарнаГодина,10,12),1),\"aaa\")","v":"пет"},{"$f":"TEXT(WEEKDAY(DATE(КалендарнаГодина,10,13),1),\"aaa\")","v":"съб"},{"$f":"TEXT(WEEKDAY(DATE(КалендарнаГодина,10,14),1),\"aaa\")","v":"нед"},{"$f":"TEXT(WEEKDAY(DATE(КалендарнаГодина,10,15),1),\"aaa\")","v":"пон"},{"$f":"TEXT(WEEKDAY(DATE(КалендарнаГодина,10,16),1),\"aaa\")","v":"вт"},{"$f":"TEXT(WEEKDAY(DATE(КалендарнаГодина,10,17),1),\"aaa\")","v":"ср"},{"$f":"TEXT(WEEKDAY(DATE(КалендарнаГодина,10,18),1),\"aaa\")","v":"четв"},{"$f":"TEXT(WEEKDAY(DATE(КалендарнаГодина,10,19),1),\"aaa\")","v":"пет"},{"$f":"TEXT(WEEKDAY(DATE(КалендарнаГодина,10,20),1),\"aaa\")","v":"съб"},{"$f":"TEXT(WEEKDAY(DATE(КалендарнаГодина,10,21),1),\"aaa\")","v":"нед"},{"$f":"TEXT(WEEKDAY(DATE(КалендарнаГодина,10,22),1),\"aaa\")","v":"пон"},{"$f":"TEXT(WEEKDAY(DATE(КалендарнаГодина,10,23),1),\"aaa\")","v":"вт"},{"$f":"TEXT(WEEKDAY(DATE(КалендарнаГодина,10,24),1),\"aaa\")","v":"ср"},{"$f":"TEXT(WEEKDAY(DATE(КалендарнаГодина,10,25),1),\"aaa\")","v":"четв"},{"$f":"TEXT(WEEKDAY(DATE(КалендарнаГодина,10,26),1),\"aaa\")","v":"пет"},{"$f":"TEXT(WEEKDAY(DATE(КалендарнаГодина,10,27),1),\"aaa\")","v":"съб"},{"$f":"TEXT(WEEKDAY(DATE(КалендарнаГодина,10,28),1),\"aaa\")","v":"нед"},{"$f":"TEXT(WEEKDAY(DATE(КалендарнаГодина,10,29),1),\"aaa\")","v":"пон"},{"$f":"TEXT(WEEKDAY(DATE(КалендарнаГодина,10,30),1),\"aaa\")","v":"вт"},{"$f":"TEXT(WEEKDAY(DATE(КалендарнаГодина,10,31),1),\"aaa\")","v":"ср"},"Общо"]
[null,"ИД на учащ","Име на учащ","1","2","3","4","5","6","7","8","9","10","11","12","13","14","15","16","17","18","19","20","21","22","23","24","25","26","27","28","29","30","31","З","И","Н","П","Дни отсъствие"]
[null,null,{"$f":"IFERROR(VLOOKUP(ПрисъствиеОктомври[[#This Row],[ИД на учащ]],СписъкУчащи[],18,FALSE),\"\")","v":""},{"$nulls":31},{"$f":"COUNTIF(ПрисъствиеОктомври[[#This Row],[1]:[31]],Код1)","v":0},{"$f":"COUNTIF(ПрисъствиеОктомври[[#This Row],[1]:[31]],Код2)","v":0},{"$f":"COUNTIF(ПрисъствиеОктомври[[#This Row],[1]:[31]],Код3)","v":0},{"$f":"COUNTIF(ПрисъствиеОктомври[[#This Row],[1]:[31]],Код4)","v":0},{"$f":"SUM(ПрисъствиеОктомври[[#This Row],[И]:[Н]])","v":0}]
[null,null,{"$f":"IFERROR(VLOOKUP(ПрисъствиеОктомври[[#This Row],[ИД на учащ]],СписъкУчащи[],18,FALSE),\"\")","v":""},{"$nulls":31},{"$f":"COUNTIF(ПрисъствиеОктомври[[#This Row],[1]:[31]],Код1)","v":0},{"$f":"COUNTIF(ПрисъствиеОктомври[[#This Row],[1]:[31]],Код2)","v":0},{"$f":"COUNTIF(ПрисъствиеОктомври[[#This Row],[1]:[31]],Код3)","v":0},{"$f":"COUNTIF(ПрисъствиеОктомври[[#This Row],[1]:[31]],Код4)","v":0},{"$f":"SUM(ПрисъствиеОктомври[[#This Row],[И]:[Н]])","v":0}]
[null,null,{"$f":"IFERROR(VLOOKUP(ПрисъствиеОктомври[[#This Row],[ИД на учащ]],СписъкУчащи[],18,FALSE),\"\")","v":""},{"$nulls":31},{"$f":"COUNTIF(ПрисъствиеОктомври[[#This Row],[1]:[31]],Код1)","v":0},{"$f":"COUNTIF(ПрисъствиеОктомври[[#This Row],[1]:[31]],Код2)","v":0},{"$f":"COUNTIF(ПрисъствиеОктомври[[#This Row],[1]:[31]],Код3)","v":0},{"$f":"COUNTIF(ПрисъствиеОктомври[[#This Row],[1]:[31]],Код4)","v":0},{"$f":"SUM(ПрисъствиеОктомври[[#This Row],[И]:[Н]])","v":0}]
[null,null,{"$f":"IFERROR(VLOOKUP(ПрисъствиеОктомври[[#This Row],[ИД на учащ]],СписъкУчащи[],18,FALSE),\"\")","v":""},{"$nulls":31},{"$f":"COUNTIF(ПрисъствиеОктомври[[#This Row],[1]:[31]],Код1)","v":0},{"$f":"COUNTIF(ПрисъствиеОктомври[[#This Row],[1]:[31]],Код2)","v":0},{"$f":"COUNTIF(ПрисъствиеОктомври[[#This Row],[1]:[31]],Код3)","v":0},{"$f":"COUNTIF(ПрисъствиеОктомври[[#This Row],[1]:[31]],Код4)","v":0},{"$f":"SUM(ПрисъствиеОктомври[[#This Row],[И]:[Н]])","v":0}]
[null,null,{"$f":"IFERROR(VLOOKUP(ПрисъствиеОктомври[[#This Row],[ИД на учащ]],СписъкУчащи[],18,FALSE),\"\")","v":""},{"$nulls":31},{"$f":"COUNTIF(ПрисъствиеОктомври[[#This Row],[1]:[31]],Код1)","v":0},{"$f":"COUNTIF(ПрисъствиеОктомври[[#This Row],[1]:[31]],Код2)","v":0},{"$f":"COUNTIF(ПрисъствиеОктомври[[#This Row],[1]:[31]],Код3)","v":0},{"$f":"COUNTIF(ПрисъствиеОктомври[[#This Row],[1]:[31]],Код4)","v":0},{"$f":"SUM(ПрисъствиеОктомври[[#This Row],[И]:[Н]])","v":0}]
[null,null,"Общо дни отсъствие",{"$f":"COUNTIF(ПрисъствиеОктомври[1],\"Н\")+COUNTIF(ПрисъствиеОктомври[1],\"И\")","v":0},{"$f":"COUNTIF(ПрисъствиеОктомври[2],\"Н\")+COUNTIF(ПрисъствиеОктомври[2],\"И\")","v":0},{"$f":"COUNTIF(ПрисъствиеОктомври[3],\"Н\")+COUNTIF(ПрисъствиеОктомври[3],\"И\")","v":0},{"$f":"COUNTIF(ПрисъствиеОктомври[4],\"Н\")+COUNTIF(ПрисъствиеОктомври[4],\"И\")","v":0},{"$f":"COUNTIF(ПрисъствиеОктомври[5],\"Н\")+COUNTIF(ПрисъствиеОктомври[5],\"И\")","v":0},{"$f":"COUNTIF(ПрисъствиеОктомври[6],\"Н\")+COUNTIF(ПрисъствиеОктомври[6],\"И\")","v":0},{"$f":"COUNTIF(ПрисъствиеОктомври[7],\"Н\")+COUNTIF(ПрисъствиеОктомври[7],\"И\")","v":0},{"$f":"COUNTIF(ПрисъствиеОктомври[8],\"Н\")+COUNTIF(ПрисъствиеОктомври[8],\"И\")","v":0},{"$f":"COUNTIF(ПрисъствиеОктомври[9],\"Н\")+COUNTIF(ПрисъствиеОктомври[9],\"И\")","v":0},{"$f":"COUNTIF(ПрисъствиеОктомври[10],\"Н\")+COUNTIF(ПрисъствиеОктомври[10],\"И\")","v":0},{"$f":"COUNTIF(ПрисъствиеОктомври[11],\"Н\")+COUNTIF(ПрисъствиеОктомври[11],\"И\")","v":0},{"$f":"COUNTIF(ПрисъствиеОктомври[12],\"Н\")+COUNTIF(ПрисъствиеОктомври[12],\"И\")","v":0},{"$f":"COUNTIF(ПрисъствиеОктомври[13],\"Н\")+COUNTIF(ПрисъствиеОктомври[13],\"И\")","v":0},{"$f":"COUNTIF(ПрисъствиеОктомври[14],\"Н\")+COUNTIF(ПрисъствиеОктомври[14],\"И\")","v":0},{"$f":"COUNTIF(ПрисъствиеОктомври[15],\"Н\")+COUNTIF(ПрисъствиеОктомври[15],\"И\")","v":0},{"$f":"COUNTIF(ПрисъствиеОктомври[16],\"Н\")+COUNTIF(ПрисъствиеОктомври[16],\"И\")","v":0},{"$f":"COUNTIF(ПрисъствиеОктомври[17],\"Н\")+COUNTIF(ПрисъствиеОктомври[17],\"И\")","v":0},{"$f":"COUNTIF(ПрисъствиеОктомври[18],\"Н\")+COUNTIF(ПрисъствиеОктомври[18],\"И\")","v":0},{"$f":"COUNTIF(ПрисъствиеОктомври[19],\"Н\")+COUNTIF(ПрисъствиеОктомври[19],\"И\")","v":0},{"$f":"COUNTIF(ПрисъствиеОктомври[20],\"Н\")+COUNTIF(ПрисъствиеОктомври[20],\"И\")","v":0},{"$f":"COUNTIF(ПрисъствиеОктомври[21],\"Н\")+COUNTIF(ПрисъствиеОктомври[21],\"И\")","v":0},{"$f":"COUNTIF(ПрисъствиеОктомври[22],\"Н\")+COUNTIF(ПрисъствиеОктомври[22],\"И\")","v":0},{"$f":"COUNTIF(ПрисъствиеОктомври[23],\"Н\")+COUNTIF(ПрисъствиеОктомври[23],\"И\")","v":0},{"$f":"COUNTIF(ПрисъствиеОктомври[24],\"Н\")+COUNTIF(ПрисъствиеОктомври[24],\"И\")","v":0},{"$f":"COUNTIF(ПрисъствиеОктомври[25],\"Н\")+COUNTIF(ПрисъствиеОктомври[25],\"И\")","v":0},{"$f":"COUNTIF(ПрисъствиеОктомври[26],\"Н\")+COUNTIF(ПрисъствиеОктомври[26],\"И\")","v":0},{"$f":"COUNTIF(ПрисъствиеОктомври[27],\"Н\")+COUNTIF(ПрисъствиеОктомври[27],\"И\")","v":0},{"$f":"COUNTIF(ПрисъствиеОктомври[28],\"Н\")+COUNTIF(ПрисъствиеОктомври[28],\"И\")","v":0},{"$f":"COUNTIF(ПрисъствиеОктомври[29],\"Н\")+COUNTIF(ПрисъствиеОктомври[29],\"И\")","v":0},{"$f":"COUNTIF(ПрисъствиеОктомври[30],\"Н\")+COUNTIF(ПрисъствиеОктомври[30],\"И\")","v":0},{"$f":"COUNTIF(ПрисъствиеОктомври[31],\"Н\")+COUNTIF(ПрисъствиеОктомври[31],\"И\")","v":0},{"$f":"SUBTOTAL(109,ПрисъствиеОктомври[З])","v":0},{"$f":"SUBTOTAL(109,ПрисъствиеОктомври[И])","v":0},{"$f":"SUBTOTAL(109,ПрисъствиеОктомври[Н])","v":0},{"$f":"SUBTOTAL(109,ПрисъствиеОктомври[П])","v":0},{"$f":"SUBTOTAL(109,ПрисъствиеОктомври[Дни отсъствие])","v":0}]

{"sheet":"Ноември","index":5,"n_rows":12,"n_cols":39,"rows_kept":12,"merged":[[4,34,4,38]]}
["ЗАПИС ЗА ПРИСЪСТВИЕ НА УЧАЩИ",{"$nulls":36},"Начало на учебната година:",{"$f":"КалендарнаГодина","v":2012}]
[]
[null,null,{"$f":"ТекстЦветовиКлюч","v":"КЛЮЧ ЗА ЦВЕТОВЕТЕ "},{"$f":"Код1","v":"З"},{"$f":"Код1Текст","v":"Закъснение"},null,null,{"$f":"Код2","v":"И"},{"$f":"Код2Текст","v":"Извинен"},null,null,{"$f":"Код3","v":"Н"},{"$f":"Код3Текст","v":"Неизвинен"},null,null,{"$f":"Код4","v":"П"},{"$f":"Код4Текст","v":"Присъстващ"},null,null,{"$f":"Код5","v":"Б"},{"$f":"Код5Текст","v":"Без училище"}]
[]
[null,{"$f":"DATE(КалендарнаГодина,11,1)","v":"2012-11-01"},null,{"$f":"TEXT(WEEKDAY(DATE(КалендарнаГодина,11,1),1),\"aaa\")","v":"четв"},{"$f":"TEXT(WEEKDAY(DATE(КалендарнаГодина,11,2),1),\"aaa\")","v":"пет"},{"$f":"TEXT(WEEKDAY(DATE(КалендарнаГодина,11,3),1),\"aaa\")","v":"съб"},{"$f":"TEXT(WEEKDAY(DATE(КалендарнаГодина,11,4),1),\"aaa\")","v":"нед"},{"$f":"TEXT(WEEKDAY(DATE(КалендарнаГодина,11,5),1),\"aaa\")","v":"пон"},{"$f":"TEXT(WEEKDAY(DATE(КалендарнаГодина,11,6),1),\"aaa\")","v":"вт"},{"$f":"TEXT(WEEKDAY(DATE(КалендарнаГодина,11,7),1),\"aaa\")","v":"ср"},{"$f":"TEXT(WEEKDAY(DATE(КалендарнаГодина,11,8),1),\"aaa\")","v":"четв"},{"$f":"TEXT(WEEKDAY(DATE(КалендарнаГодина,11,9),1),\"aaa\")","v":"пет"},{"$f":"TEXT(WEEKDAY(DATE(КалендарнаГодина,11,10),1),\"aaa\")","v":"съб"},{"$f":"TEXT(WEEKDAY(DATE(КалендарнаГодина,11,11),1),\"aaa\")","v":"нед"},{"$f":"TEXT(WEEKDAY(DATE(КалендарнаГодина,11,12),1),\"aaa\")","v":"пон"},{"$f":"TEXT(WEEKDAY(DATE(КалендарнаГодина,11,13),1),\"aaa\")","v":"вт"},{"$f":"TEXT(WEEKDAY(DATE(КалендарнаГодина,11,14),1),\"aaa\")","v":"ср"},{"$f":"TEXT(WEEKDAY(DATE(КалендарнаГодина,11,15),1),\"aaa\")","v":"четв"},{"$f":"TEXT(WEEKDAY(DATE(КалендарнаГодина,11,16),1),\"aaa\")","v":"пет"},{"$f":"TEXT(WEEKDAY(DATE(КалендарнаГодина,11,17),1),\"aaa\")","v":"съб"},{"$f":"TEXT(WEEKDAY(DATE(КалендарнаГодина,11,18),1),\"aaa\")","v":"нед"},{"$f":"TEXT(WEEKDAY(DATE(КалендарнаГодина,11,19),1),\"aaa\")","v":"пон"},{"$f":"TEXT(WEEKDAY(DATE(КалендарнаГодина,11,20),1),\"aaa\")","v":"вт"},{"$f":"TEXT(WEEKDAY(DATE(КалендарнаГодина,11,21),1),\"aaa\")","v":"ср"},{"$f":"TEXT(WEEKDAY(DATE(КалендарнаГодина,11,22),1),\"aaa\")","v":"четв"},{"$f":"TEXT(WEEKDAY(DATE(КалендарнаГодина,11,23),1),\"aaa\")","v":"пет"},{"$f":"TEXT(WEEKDAY(DATE(КалендарнаГодина,11,24),1),\"aaa\")","v":"съб"},{"$f":"TEXT(WEEKDAY(DATE(КалендарнаГодина,11,25),1),\"aaa\")","v":"нед"},{"$f":"TEXT(WEEKDAY(DATE(КалендарнаГодина,11,26),1),\"aaa\")","v":"пон"},{"$f":"TEXT(WEEKDAY(DATE(КалендарнаГодина,11,27),1),\"aaa\")","v":"вт"},{"$f":"TEXT(WEEKDAY(DATE(КалендарнаГодина,11,28),1),\"aaa\")","v":"ср"},{"$f":"TEXT(WEEKDAY(DATE(КалендарнаГодина,11,29),1),\"aaa\")","v":"четв"},{"$f":"TEXT(WEEKDAY(DATE(КалендарнаГодина,11,30),1),\"aaa\")","v":"пет"},{"$f":"TEXT(WEEKDAY(DATE(КалендарнаГодина,11,30),1),\"aaa\")","v":"пет"},"Общо"]
[null,"ИД на учащ","Име на учащ","1","2","3","4","5","6","7","8","9","10","11","12","13","14","15","16","17","18","19","20","21","22","23","24","25","26","27","28","29","30","31","З","И","Н","П","Дни отсъствие"]
[null,null,{"$f":"IFERROR(VLOOKUP(ПрисъствиеНоември[[#This Row],[ИД на учащ]],СписъкУчащи[],18,FALSE),\"\")","v":""},{"$nulls":31},{"$f":"COUNTIF(ПрисъствиеНоември[[#This Row],[1]:[31]],Код1)","v":0},{"$f":"COUNTIF(ПрисъствиеНоември[[#This Row],[1]:[31]],Код2)","v":0},{"$f":"COUNTIF(ПрисъствиеНоември[[#This Row],[1]:[31]],Код3)","v":0},{"$f":"COUNTIF(ПрисъствиеНоември[[#This Row],[1]:[31]],Код4)","v":0},{"$f":"SUM(ПрисъствиеНоември[[#This Row],[И]:[Н]])","v":0}]
[null,null,{"$f":"IFERROR(VLOOKUP(ПрисъствиеНоември[[#This Row],[ИД на учащ]],СписъкУчащи[],18,FALSE),\"\")","v":""},{"$nulls":31},{"$f":"COUNTIF(ПрисъствиеНоември[[#This Row],[1]:[31]],Код1)","v":0},{"$f":"COUNTIF(ПрисъствиеНоември[[#This Row],[1]:[31]],Код2)","v":0},{"$f":"COUNTIF(ПрисъствиеНоември[[#This Row],[1]:[31]],Код3)","v":0},{"$f":"COUNTIF(ПрисъствиеНоември[[#This Row],[1]:[31]],Код4)","v":0},{"$f":"SUM(ПрисъствиеНоември[[#This Row],[И]:[Н]])","v":0}]
[null,null,{"$f":"IFERROR(VLOOKUP(ПрисъствиеНоември[[#This Row],[ИД на учащ]],СписъкУчащи[],18,FALSE),\"\")","v":""},{"$nulls":31},{"$f":"COUNTIF(ПрисъствиеНоември[[#This Row],[1]:[31]],Код1)","v":0},{"$f":"COUNTIF(ПрисъствиеНоември[[#This Row],[1]:[31]],Код2)","v":0},{"$f":"COUNTIF(ПрисъствиеНоември[[#This Row],[1]:[31]],Код3)","v":0},{"$f":"COUNTIF(ПрисъствиеНоември[[#This Row],[1]:[31]],Код4)","v":0},{"$f":"SUM(ПрисъствиеНоември[[#This Row],[И]:[Н]])","v":0}]
[null,null,{"$f":"IFERROR(VLOOKUP(ПрисъствиеНоември[[#This Row],[ИД на учащ]],СписъкУчащи[],18,FALSE),\"\")","v":""},{"$nulls":31},{"$f":"COUNTIF(ПрисъствиеНоември[[#This Row],[1]:[31]],Код1)","v":0},{"$f":"COUNTIF(ПрисъствиеНоември[[#This Row],[1]:[31]],Код2)","v":0},{"$f":"COUNTIF(ПрисъствиеНоември[[#This Row],[1]:[31]],Код3)","v":0},{"$f":"COUNTIF(ПрисъствиеНоември[[#This Row],[1]:[31]],Код4)","v":0},{"$f":"SUM(ПрисъствиеНоември[[#This Row],[И]:[Н]])","v":0}]
[null,null,{"$f":"IFERROR(VLOOKUP(ПрисъствиеНоември[[#This Row],[ИД на учащ]],СписъкУчащи[],18,FALSE),\"\")","v":""},{"$nulls":31},{"$f":"COUNTIF(ПрисъствиеНоември[[#This Row],[1]:[31]],Код1)","v":0},{"$f":"COUNTIF(ПрисъствиеНоември[[#This Row],[1]:[31]],Код2)","v":0},{"$f":"COUNTIF(ПрисъствиеНоември[[#This Row],[1]:[31]],Код3)","v":0},{"$f":"COUNTIF(ПрисъствиеНоември[[#This Row],[1]:[31]],Код4)","v":0},{"$f":"SUM(ПрисъствиеНоември[[#This Row],[И]:[Н]])","v":0}]
[null,null,"Общо дни отсъствие",{"$f":"COUNTIF(ПрисъствиеНоември[1],\"Н\")+COUNTIF(ПрисъствиеНоември[1],\"И\")","v":0},{"$f":"COUNTIF(ПрисъствиеНоември[2],\"Н\")+COUNTIF(ПрисъствиеНоември[2],\"И\")","v":0},{"$f":"COUNTIF(ПрисъствиеНоември[3],\"Н\")+COUNTIF(ПрисъствиеНоември[3],\"И\")","v":0},{"$f":"COUNTIF(ПрисъствиеНоември[4],\"Н\")+COUNTIF(ПрисъствиеНоември[4],\"И\")","v":0},{"$f":"COUNTIF(ПрисъствиеНоември[5],\"Н\")+COUNTIF(ПрисъствиеНоември[5],\"И\")","v":0},{"$f":"COUNTIF(ПрисъствиеНоември[6],\"Н\")+COUNTIF(ПрисъствиеНоември[6],\"И\")","v":0},{"$f":"COUNTIF(ПрисъствиеНоември[7],\"Н\")+COUNTIF(ПрисъствиеНоември[7],\"И\")","v":0},{"$f":"COUNTIF(ПрисъствиеНоември[8],\"Н\")+COUNTIF(ПрисъствиеНоември[8],\"И\")","v":0},{"$f":"COUNTIF(ПрисъствиеНоември[9],\"Н\")+COUNTIF(ПрисъствиеНоември[9],\"И\")","v":0},{"$f":"COUNTIF(ПрисъствиеНоември[10],\"Н\")+COUNTIF(ПрисъствиеНоември[10],\"И\")","v":0},{"$f":"COUNTIF(ПрисъствиеНоември[11],\"Н\")+COUNTIF(ПрисъствиеНоември[11],\"И\")","v":0},{"$f":"COUNTIF(ПрисъствиеНоември[12],\"Н\")+COUNTIF(ПрисъствиеНоември[12],\"И\")","v":0},{"$f":"COUNTIF(ПрисъствиеНоември[13],\"Н\")+COUNTIF(ПрисъствиеНоември[13],\"И\")","v":0},{"$f":"COUNTIF(ПрисъствиеНоември[14],\"Н\")+COUNTIF(ПрисъствиеНоември[14],\"И\")","v":0},{"$f":"COUNTIF(ПрисъствиеНоември[15],\"Н\")+COUNTIF(ПрисъствиеНоември[15],\"И\")","v":0},{"$f":"COUNTIF(ПрисъствиеНоември[16],\"Н\")+COUNTIF(ПрисъствиеНоември[16],\"И\")","v":0},{"$f":"COUNTIF(ПрисъствиеНоември[17],\"Н\")+COUNTIF(ПрисъствиеНоември[17],\"И\")","v":0},{"$f":"COUNTIF(ПрисъствиеНоември[18],\"Н\")+COUNTIF(ПрисъствиеНоември[18],\"И\")","v":0},{"$f":"COUNTIF(ПрисъствиеНоември[19],\"Н\")+COUNTIF(ПрисъствиеНоември[19],\"И\")","v":0},{"$f":"COUNTIF(ПрисъствиеНоември[20],\"Н\")+COUNTIF(ПрисъствиеНоември[20],\"И\")","v":0},{"$f":"COUNTIF(ПрисъствиеНоември[21],\"Н\")+COUNTIF(ПрисъствиеНоември[21],\"И\")","v":0},{"$f":"COUNTIF(ПрисъствиеНоември[22],\"Н\")+COUNTIF(ПрисъствиеНоември[22],\"И\")","v":0},{"$f":"COUNTIF(ПрисъствиеНоември[23],\"Н\")+COUNTIF(ПрисъствиеНоември[23],\"И\")","v":0},{"$f":"COUNTIF(ПрисъствиеНоември[24],\"Н\")+COUNTIF(ПрисъствиеНоември[24],\"И\")","v":0},{"$f":"COUNTIF(ПрисъствиеНоември[25],\"Н\")+COUNTIF(ПрисъствиеНоември[25],\"И\")","v":0},{"$f":"COUNTIF(ПрисъствиеНоември[26],\"Н\")+COUNTIF(ПрисъствиеНоември[26],\"И\")","v":0},{"$f":"COUNTIF(ПрисъствиеНоември[27],\"Н\")+COUNTIF(ПрисъствиеНоември[27],\"И\")","v":0},{"$f":"COUNTIF(ПрисъствиеНоември[28],\"Н\")+COUNTIF(ПрисъствиеНоември[28],\"И\")","v":0},{"$f":"COUNTIF(ПрисъствиеНоември[29],\"Н\")+COUNTIF(ПрисъствиеНоември[29],\"И\")","v":0},{"$f":"COUNTIF(ПрисъствиеНоември[30],\"Н\")+COUNTIF(ПрисъствиеНоември[30],\"И\")","v":0},{"$f":"COUNTIF(ПрисъствиеНоември[31],\"Н\")+COUNTIF(ПрисъствиеНоември[31],\"И\")","v":0},{"$f":"SUBTOTAL(109,ПрисъствиеНоември[З])","v":0},{"$f":"SUBTOTAL(109,ПрисъствиеНоември[И])","v":0},{"$f":"SUBTOTAL(109,ПрисъствиеНоември[Н])","v":0},{"$f":"SUBTOTAL(109,ПрисъствиеНоември[П])","v":0},{"$f":"SUBTOTAL(109,ПрисъствиеНоември[Дни отсъствие])","v":0}]

{"sheet":"Декември","index":6,"n_rows":12,"n_cols":39,"rows_kept":12,"merged":[[4,34,4,38]]}
["ЗАПИС ЗА ПРИСЪСТВИЕ НА УЧАЩИ",{"$nulls":36},"Начало на учебната година:",{"$f":"КалендарнаГодина","v":2012}]
[]
[null,null,{"$f":"ТекстЦветовиКлюч","v":"КЛЮЧ ЗА ЦВЕТОВЕТЕ "},{"$f":"Код1","v":"З"},{"$f":"Код1Текст","v":"Закъснение"},null,null,{"$f":"Код2","v":"И"},{"$f":"Код2Текст","v":"Извинен"},null,null,{"$f":"Код3","v":"Н"},{"$f":"Код3Текст","v":"Неизвинен"},null,null,{"$f":"Код4","v":"П"},{"$f":"Код4Текст","v":"Присъстващ"},null,null,{"$f":"Код5","v":"Б"},{"$f":"Код5Текст","v":"Без училище"}]
[]
[null,{"$f":"DATE(КалендарнаГодина,12,1)","v":"2012-12-01"},null,{"$f":"TEXT(WEEKDAY(DATE(КалендарнаГодина,12,1),1),\"aaa\")","v":"съб"},{"$f":"TEXT(WEEKDAY(DATE(КалендарнаГодина,12,2),1),\"aaa\")","v":"нед"},{"$f":"TEXT(WEEKDAY(DATE(КалендарнаГодина,12,3),1),\"aaa\")","v":"пон"},{"$f":"TEXT(WEEKDAY(DATE(КалендарнаГодина,12,4),1),\"aaa\")","v":"вт"},{"$f":"TEXT(WEEKDAY(DATE(КалендарнаГодина,12,5),1),\"aaa\")","v":"ср"},{"$f":"TEXT(WEEKDAY(DATE(КалендарнаГодина,12,6),1),\"aaa\")","v":"четв"},{"$f":"TEXT(WEEKDAY(DATE(КалендарнаГодина,12,7),1),\"aaa\")","v":"пет"},{"$f":"TEXT(WEEKDAY(DATE(КалендарнаГодина,12,8),1),\"aaa\")","v":"съб"},{"$f":"TEXT(WEEKDAY(DATE(КалендарнаГодина,12,9),1),\"aaa\")","v":"нед"},{"$f":"TEXT(WEEKDAY(DATE(КалендарнаГодина,12,10),1),\"aaa\")","v":"пон"},{"$f":"TEXT(WEEKDAY(DATE(КалендарнаГодина,12,11),1),\"aaa\")","v":"вт"},{"$f":"TEXT(WEEKDAY(DATE(КалендарнаГодина,12,12),1),\"aaa\")","v":"ср"},{"$f":"TEXT(WEEKDAY(DATE(КалендарнаГодина,12,13),1),\"aaa\")","v":"четв"},{"$f":"TEXT(WEEKDAY(DATE(КалендарнаГодина,12,14),1),\"aaa\")","v":"пет"},{"$f":"TEXT(WEEKDAY(DATE(КалендарнаГодина,12,15),1),\"aaa\")","v":"съб"},{"$f":"TEXT(WEEKDAY(DATE(КалендарнаГодина,12,16),1),\"aaa\")","v":"нед"},{"$f":"TEXT(WEEKDAY(DATE(КалендарнаГодина,12,17),1),\"aaa\")","v":"пон"},{"$f":"TEXT(WEEKDAY(DATE(КалендарнаГодина,12,18),1),\"aaa\")","v":"вт"},{"$f":"TEXT(WEEKDAY(DATE(КалендарнаГодина,12,19),1),\"aaa\")","v":"ср"},{"$f":"TEXT(WEEKDAY(DATE(КалендарнаГодина,12,20),1),\"aaa\")","v":"четв"},{"$f":"TEXT(WEEKDAY(DATE(КалендарнаГодина,12,21),1),\"aaa\")","v":"пет"},{"$f":"TEXT(WEEKDAY(DATE(КалендарнаГодина,12,22),1),\"aaa\")","v":"съб"},{"$f":"TEXT(WEEKDAY(DATE(КалендарнаГодина,12,23),1),\"aaa\")","v":"нед"},{"$f":"TEXT(WEEKDAY(DATE(КалендарнаГодина,12,24),1),\"aaa\")","v":"пон"},{"$f":"TEXT(WEEKDAY(DATE(КалендарнаГодина,12,25),1),\"aaa\")","v":"вт"},{"$f":"TEXT(WEEKDAY(DATE(КалендарнаГодина,12,26),1),\"aaa\")","v":"ср"},{"$f":"TEXT(WEEKDAY(DATE(КалендарнаГодина,12,27),1),\"aaa\")","v":"четв"},{"$f":"TEXT(WEEKDAY(DATE(КалендарнаГодина,12,28),1),\"aaa\")","v":"пет"},{"$f":"TEXT(WEEKDAY(DATE(КалендарнаГодина,12,29),1),\"aaa\")","v":"съб"},{"$f":"TEXT(WEEKDAY(DATE(КалендарнаГодина,12,30),1),\"aaa\")","v":"нед"},{"$f":"TEXT(WEEKDAY(DATE(КалендарнаГодина,12,31),1),\"aaa\")","v":"пон"},"Общо"]
[null,"ИД на учащ","Име на учащ","1","2","3","4","5","6","7","8","9","10","11","12","13","14","15","16","17","18","19","20","21","22","23","24","25","26","27","28","29","30","31","З","И","Н","П","Дни отсъствие"]
[null,null,{"$f":"IFERROR(VLOOKUP(ПрисъствиеДекември[[#This Row],[ИД на учащ]],СписъкУчащи[],18,FALSE),\"\")","v":""},{"$nulls":31},{"$f":"COUNTIF(ПрисъствиеДекември[[#This Row],[1]:[31]],Код1)","v":0},{"$f":"COUNTIF(ПрисъствиеДекември[[#This Row],[1]:[31]],Код2)","v":0},{"$f":"COUNTIF(ПрисъствиеДекември[[#This Row],[1]:[31]],Код3)","v":0},{"$f":"COUNTIF(ПрисъствиеДекември[[#This Row],[1]:[31]],Код4)","v":0},{"$f":"SUM(ПрисъствиеДекември[[#This Row],[И]:[Н]])","v":0}]
[null,null,{"$f":"IFERROR(VLOOKUP(ПрисъствиеДекември[[#This Row],[ИД на учащ]],СписъкУчащи[],18,FALSE),\"\")","v":""},{"$nulls":31},{"$f":"COUNTIF(ПрисъствиеДекември[[#This Row],[1]:[31]],Код1)","v":0},{"$f":"COUNTIF(ПрисъствиеДекември[[#This Row],[1]:[31]],Код2)","v":0},{"$f":"COUNTIF(ПрисъствиеДекември[[#This Row],[1]:[31]],Код3)","v":0},{"$f":"COUNTIF(ПрисъствиеДекември[[#This Row],[1]:[31]],Код4)","v":0},{"$f":"SUM(ПрисъствиеДекември[[#This Row],[И]:[Н]])","v":0}]
[null,null,{"$f":"IFERROR(VLOOKUP(ПрисъствиеДекември[[#This Row],[ИД на учащ]],СписъкУчащи[],18,FALSE),\"\")","v":""},{"$nulls":31},{"$f":"COUNTIF(ПрисъствиеДекември[[#This Row],[1]:[31]],Код1)","v":0},{"$f":"COUNTIF(ПрисъствиеДекември[[#This Row],[1]:[31]],Код2)","v":0},{"$f":"COUNTIF(ПрисъствиеДекември[[#This Row],[1]:[31]],Код3)","v":0},{"$f":"COUNTIF(ПрисъствиеДекември[[#This Row],[1]:[31]],Код4)","v":0},{"$f":"SUM(ПрисъствиеДекември[[#This Row],[И]:[Н]])","v":0}]
[null,null,{"$f":"IFERROR(VLOOKUP(ПрисъствиеДекември[[#This Row],[ИД на учащ]],СписъкУчащи[],18,FALSE),\"\")","v":""},{"$nulls":31},{"$f":"COUNTIF(ПрисъствиеДекември[[#This Row],[1]:[31]],Код1)","v":0},{"$f":"COUNTIF(ПрисъствиеДекември[[#This Row],[1]:[31]],Код2)","v":0},{"$f":"COUNTIF(ПрисъствиеДекември[[#This Row],[1]:[31]],Код3)","v":0},{"$f":"COUNTIF(ПрисъствиеДекември[[#This Row],[1]:[31]],Код4)","v":0},{"$f":"SUM(ПрисъствиеДекември[[#This Row],[И]:[Н]])","v":0}]
[null,null,{"$f":"IFERROR(VLOOKUP(ПрисъствиеДекември[[#This Row],[ИД на учащ]],СписъкУчащи[],18,FALSE),\"\")","v":""},{"$nulls":31},{"$f":"COUNTIF(ПрисъствиеДекември[[#This Row],[1]:[31]],Код1)","v":0},{"$f":"COUNTIF(ПрисъствиеДекември[[#This Row],[1]:[31]],Код2)","v":0},{"$f":"COUNTIF(ПрисъствиеДекември[[#This Row],[1]:[31]],Код3)","v":0},{"$f":"COUNTIF(ПрисъствиеДекември[[#This Row],[1]:[31]],Код4)","v":0},{"$f":"SUM(ПрисъствиеДекември[[#This Row],[И]:[Н]])","v":0}]
[null,null,"Общо дни отсъствие",{"$f":"COUNTIF(ПрисъствиеДекември[1],\"Н\")+COUNTIF(ПрисъствиеДекември[1],\"И\")","v":0},{"$f":"COUNTIF(ПрисъствиеДекември[2],\"Н\")+COUNTIF(ПрисъствиеДекември[2],\"И\")","v":0},{"$f":"COUNTIF(ПрисъствиеДекември[3],\"Н\")+COUNTIF(ПрисъствиеДекември[3],\"И\")","v":0},{"$f":"COUNTIF(ПрисъствиеДекември[4],\"Н\")+COUNTIF(ПрисъствиеДекември[4],\"И\")","v":0},{"$f":"COUNTIF(ПрисъствиеДекември[5],\"Н\")+COUNTIF(ПрисъствиеДекември[5],\"И\")","v":0},{"$f":"COUNTIF(ПрисъствиеДекември[6],\"Н\")+COUNTIF(ПрисъствиеДекември[6],\"И\")","v":0},{"$f":"COUNTIF(ПрисъствиеДекември[7],\"Н\")+COUNTIF(ПрисъствиеДекември[7],\"И\")","v":0},{"$f":"COUNTIF(ПрисъствиеДекември[8],\"Н\")+COUNTIF(ПрисъствиеДекември[8],\"И\")","v":0},{"$f":"COUNTIF(ПрисъствиеДекември[9],\"Н\")+COUNTIF(ПрисъствиеДекември[9],\"И\")","v":0},{"$f":"COUNTIF(ПрисъствиеДекември[10],\"Н\")+COUNTIF(ПрисъствиеДекември[10],\"И\")","v":0},{"$f":"COUNTIF(ПрисъствиеДекември[11],\"Н\")+COUNTIF(ПрисъствиеДекември[11],\"И\")","v":0},{"$f":"COUNTIF(ПрисъствиеДекември[12],\"Н\")+COUNTIF(ПрисъствиеДекември[12],\"И\")","v":0},{"$f":"COUNTIF(ПрисъствиеДекември[13],\"Н\")+COUNTIF(ПрисъствиеДекември[13],\"И\")","v":0},{"$f":"COUNTIF(ПрисъствиеДекември[14],\"Н\")+COUNTIF(ПрисъствиеДекември[14],\"И\")","v":0},{"$f":"COUNTIF(ПрисъствиеДекември[15],\"Н\")+COUNTIF(ПрисъствиеДекември[15],\"И\")","v":0},{"$f":"COUNTIF(ПрисъствиеДекември[16],\"Н\")+COUNTIF(ПрисъствиеДекември[16],\"И\")","v":0},{"$f":"COUNTIF(ПрисъствиеДекември[17],\"Н\")+COUNTIF(ПрисъствиеДекември[17],\"И\")","v":0},{"$f":"COUNTIF(ПрисъствиеДекември[18],\"Н\")+COUNTIF(ПрисъствиеДекември[18],\"И\")","v":0},{"$f":"COUNTIF(ПрисъствиеДекември[19],\"Н\")+COUNTIF(ПрисъствиеДекември[19],\"И\")","v":0},{"$f":"COUNTIF(ПрисъствиеДекември[20],\"Н\")+COUNTIF(ПрисъствиеДекември[20],\"И\")","v":0},{"$f":"COUNTIF(ПрисъствиеДекември[21],\"Н\")+COUNTIF(ПрисъствиеДекември[21],\"И\")","v":0},{"$f":"COUNTIF(ПрисъствиеДекември[22],\"Н\")+COUNTIF(ПрисъствиеДекември[22],\"И\")","v":0},{"$f":"COUNTIF(ПрисъствиеДекември[23],\"Н\")+COUNTIF(ПрисъствиеДекември[23],\"И\")","v":0},{"$f":"COUNTIF(ПрисъствиеДекември[24],\"Н\")+COUNTIF(ПрисъствиеДекември[24],\"И\")","v":0},{"$f":"COUNTIF(ПрисъствиеДекември[25],\"Н\")+COUNTIF(ПрисъствиеДекември[25],\"И\")","v":0},{"$f":"COUNTIF(ПрисъствиеДекември[26],\"Н\")+COUNTIF(ПрисъствиеДекември[26],\"И\")","v":0},{"$f":"COUNTIF(ПрисъствиеДекември[27],\"Н\")+COUNTIF(ПрисъствиеДекември[27],\"И\")","v":0},{"$f":"COUNTIF(ПрисъствиеДекември[28],\"Н\")+COUNTIF(ПрисъствиеДекември[28],\"И\")","v":0},{"$f":"COUNTIF(ПрисъствиеДекември[29],\"Н\")+COUNTIF(ПрисъствиеДекември[29],\"И\")","v":0},{"$f":"COUNTIF(ПрисъствиеДекември[30],\"Н\")+COUNTIF(ПрисъствиеДекември[30],\"И\")","v":0},{"$f":"COUNTIF(ПрисъствиеДекември[31],\"Н\")+COUNTIF(ПрисъствиеДекември[31],\"И\")","v":0},{"$f":"SUBTOTAL(109,ПрисъствиеДекември[З])","v":0},{"$f":"SUBTOTAL(109,ПрисъствиеДекември[И])","v":0},{"$f":"SUBTOTAL(109,ПрисъствиеДекември[Н])","v":0},{"$f":"SUBTOTAL(109,ПрисъствиеДекември[П])","v":0},{"$f":"SUBTOTAL(109,ПрисъствиеДекември[Дни отсъствие])","v":0}]

{"sheet":"Януари","index":7,"n_rows":12,"n_cols":39,"rows_kept":12,"merged":[[4,34,4,38]]}
["ЗАПИС ЗА ПРИСЪСТВИЕ НА УЧАЩИ",{"$nulls":36},"Начало на учебната година:",{"$f":"КалендарнаГодина","v":2012}]
[]
[null,null,{"$f":"ТекстЦветовиКлюч","v":"КЛЮЧ ЗА ЦВЕТОВЕТЕ "},{"$f":"Код1","v":"З"},{"$f":"Код1Текст","v":"Закъснение"},null,null,{"$f":"Код2","v":"И"},{"$f":"Код2Текст","v":"Извинен"},null,null,{"$f":"Код3","v":"Н"},{"$f":"Код3Текст","v":"Неизвинен"},null,null,{"$f":"Код4","v":"П"},{"$f":"Код4Текст","v":"Присъстващ"},null,null,{"$f":"Код5","v":"Б"},{"$f":"Код5Текст","v":"Без училище"}]
[]
[null,{"$f":"DATE(КалендарнаГодина+1,1,1)","v":"2013-01-01"},null,{"$f":"TEXT(WEEKDAY(DATE(КалендарнаГодина+1,1,1),1),\"aaa\")","v":"вт"},{"$f":"TEXT(WEEKDAY(DATE(КалендарнаГодина+1,1,2),1),\"aaa\")","v":"ср"},{"$f":"TEXT(WEEKDAY(DATE(КалендарнаГодина+1,1,3),1),\"aaa\")","v":"четв"},{"$f":"TEXT(WEEKDAY(DATE(КалендарнаГодина+1,1,4),1),\"aaa\")","v":"пет"},{"$f":"TEXT(WEEKDAY(DATE(КалендарнаГодина+1,1,5),1),\"aaa\")","v":"съб"},{"$f":"TEXT(WEEKDAY(DATE(КалендарнаГодина+1,1,6),1),\"aaa\")","v":"нед"},{"$f":"TEXT(WEEKDAY(DATE(КалендарнаГодина+1,1,7),1),\"aaa\")","v":"пон"},{"$f":"TEXT(WEEKDAY(DATE(КалендарнаГодина+1,1,8),1),\"aaa\")","v":"вт"},{"$f":"TEXT(WEEKDAY(DATE(КалендарнаГодина+1,1,9),1),\"aaa\")","v":"ср"},{"$f":"TEXT(WEEKDAY(DATE(КалендарнаГодина+1,1,10),1),\"aaa\")","v":"четв"},{"$f":"TEXT(WEEKDAY(DATE(КалендарнаГодина+1,1,11),1),\"aaa\")","v":"пет"},{"$f":"TEXT(WEEKDAY(DATE(КалендарнаГодина+1,1,12),1),\"aaa\")","v":"съб"},{"$f":"TEXT(WEEKDAY(DATE(КалендарнаГодина+1,1,13),1),\"aaa\")","v":"нед"},{"$f":"TEXT(WEEKDAY(DATE(КалендарнаГодина+1,1,14),1),\"aaa\")","v":"пон"},{"$f":"TEXT(WEEKDAY(DATE(КалендарнаГодина+1,1,15),1),\"aaa\")","v":"вт"},{"$f":"TEXT(WEEKDAY(DATE(КалендарнаГодина+1,1,16),1),\"aaa\")","v":"ср"},{"$f":"TEXT(WEEKDAY(DATE(КалендарнаГодина+1,1,17),1),\"aaa\")","v":"четв"},{"$f":"TEXT(WEEKDAY(DATE(КалендарнаГодина+1,1,18),1),\"aaa\")","v":"пет"},{"$f":"TEXT(WEEKDAY(DATE(КалендарнаГодина+1,1,19),1),\"aaa\")","v":"съб"},{"$f":"TEXT(WEEKDAY(DATE(КалендарнаГодина+1,1,20),1),\"aaa\")","v":"нед"},{"$f":"TEXT(WEEKDAY(DATE(КалендарнаГодина+1,1,21),1),\"aaa\")","v":"пон"},{"$f":"TEXT(WEEKDAY(DATE(КалендарнаГодина+1,1,22),1),\"aaa\")","v":"вт"},{"$f":"TEXT(WEEKDAY(DATE(КалендарнаГодина+1,1,23),1),\"aaa\")","v":"ср"},{"$f":"TEXT(WEEKDAY(DATE(КалендарнаГодина+1,1,24),1),\"aaa\")","v":"четв"},{"$f":"TEXT(WEEKDAY(DATE(КалендарнаГодина+1,1,25),1),\"aaa\")","v":"пет"},{"$f":"TEXT(WEEKDAY(DATE(КалендарнаГодина+1,1,26),1),\"aaa\")","v":"съб"},{"$f":"TEXT(WEEKDAY(DATE(КалендарнаГодина+1,1,27),1),\"aaa\")","v":"нед"},{"$f":"TEXT(WEEKDAY(DATE(КалендарнаГодина+1,1,28),1),\"aaa\")","v":"пон"},{"$f":"TEXT(WEEKDAY(DATE(КалендарнаГодина+1,1,29),1),\"aaa\")","v":"вт"},{"$f":"TEXT(WEEKDAY(DATE(КалендарнаГодина+1,1,30),1),\"aaa\")","v":"ср"},{"$f":"TEXT(WEEKDAY(DATE(КалендарнаГодина+1,1,31),1),\"aaa\")","v":"четв"},"Общо"]
[null,"ИД на учащ","Име на учащ","1","2","3","4","5","6","7","8","9","10","11","12","13","14","15","16","17","18","19","20","21","22","23","24","25","26","27","28","29","30","31","З","И","Н","П","Дни отсъствие"]
[null,null,{"$f":"IFERROR(VLOOKUP(ПрисъствиеЯнуари[[#This Row],[ИД на учащ]],СписъкУчащи[],18,FALSE),\"\")","v":""},{"$nulls":31},{"$f":"COUNTIF(ПрисъствиеЯнуари[[#This Row],[1]:[31]],Код1)","v":0},{"$f":"COUNTIF(ПрисъствиеЯнуари[[#This Row],[1]:[31]],Код2)","v":0},{"$f":"COUNTIF(ПрисъствиеЯнуари[[#This Row],[1]:[31]],Код3)","v":0},{"$f":"COUNTIF(ПрисъствиеЯнуари[[#This Row],[1]:[31]],Код4)","v":0},{"$f":"SUM(ПрисъствиеЯнуари[[#This Row],[И]:[Н]])","v":0}]
[null,null,{"$f":"IFERROR(VLOOKUP(ПрисъствиеЯнуари[[#This Row],[ИД на учащ]],СписъкУчащи[],18,FALSE),\"\")","v":""},{"$nulls":31},{"$f":"COUNTIF(ПрисъствиеЯнуари[[#This Row],[1]:[31]],Код1)","v":0},{"$f":"COUNTIF(ПрисъствиеЯнуари[[#This Row],[1]:[31]],Код2)","v":0},{"$f":"COUNTIF(ПрисъствиеЯнуари[[#This Row],[1]:[31]],Код3)","v":0},{"$f":"COUNTIF(ПрисъствиеЯнуари[[#This Row],[1]:[31]],Код4)","v":0},{"$f":"SUM(ПрисъствиеЯнуари[[#This Row],[И]:[Н]])","v":0}]
[null,null,{"$f":"IFERROR(VLOOKUP(ПрисъствиеЯнуари[[#This Row],[ИД на учащ]],СписъкУчащи[],18,FALSE),\"\")","v":""},{"$nulls":31},{"$f":"COUNTIF(ПрисъствиеЯнуари[[#This Row],[1]:[31]],Код1)","v":0},{"$f":"COUNTIF(ПрисъствиеЯнуари[[#This Row],[1]:[31]],Код2)","v":0},{"$f":"COUNTIF(ПрисъствиеЯнуари[[#This Row],[1]:[31]],Код3)","v":0},{"$f":"COUNTIF(ПрисъствиеЯнуари[[#This Row],[1]:[31]],Код4)","v":0},{"$f":"SUM(ПрисъствиеЯнуари[[#This Row],[И]:[Н]])","v":0}]
[null,null,{"$f":"IFERROR(VLOOKUP(ПрисъствиеЯнуари[[#This Row],[ИД на учащ]],СписъкУчащи[],18,FALSE),\"\")","v":""},{"$nulls":31},{"$f":"COUNTIF(ПрисъствиеЯнуари[[#This Row],[1]:[31]],Код1)","v":0},{"$f":"COUNTIF(ПрисъствиеЯнуари[[#This Row],[1]:[31]],Код2)","v":0},{"$f":"COUNTIF(ПрисъствиеЯнуари[[#This Row],[1]:[31]],Код3)","v":0},{"$f":"COUNTIF(ПрисъствиеЯнуари[[#This Row],[1]:[31]],Код4)","v":0},{"$f":"SUM(ПрисъствиеЯнуари[[#This Row],[И]:[Н]])","v":0}]
[null,null,{"$f":"IFERROR(VLOOKUP(ПрисъствиеЯнуари[[#This Row],[ИД на учащ]],СписъкУчащи[],18,FALSE),\"\")","v":""},{"$nulls":31},{"$f":"COUNTIF(ПрисъствиеЯнуари[[#This Row],[1]:[31]],Код1)","v":0},{"$f":"COUNTIF(ПрисъствиеЯнуари[[#This Row],[1]:[31]],Код2)","v":0},{"$f":"COUNTIF(ПрисъствиеЯнуари[[#This Row],[1]:[31]],Код3)","v":0},{"$f":"COUNTIF(ПрисъствиеЯнуари[[#This Row],[1]:[31]],Код4)","v":0},{"$f":"SUM(ПрисъствиеЯнуари[[#This Row],[И]:[Н]])","v":0}]
[null,null,"Общо дни отсъствие",{"$f":"COUNTIF(ПрисъствиеЯнуари[1],\"Н\")+COUNTIF(ПрисъствиеЯнуари[1],\"И\")","v":0},{"$f":"COUNTIF(ПрисъствиеЯнуари[2],\"Н\")+COUNTIF(ПрисъствиеЯнуари[2],\"И\")","v":0},{"$f":"COUNTIF(ПрисъствиеЯнуари[3],\"Н\")+COUNTIF(ПрисъствиеЯнуари[3],\"И\")","v":0},{"$f":"COUNTIF(ПрисъствиеЯнуари[4],\"Н\")+COUNTIF(ПрисъствиеЯнуари[4],\"И\")","v":0},{"$f":"COUNTIF(ПрисъствиеЯнуари[5],\"Н\")+COUNTIF(ПрисъствиеЯнуари[5],\"И\")","v":0},{"$f":"COUNTIF(ПрисъствиеЯнуари[6],\"Н\")+COUNTIF(ПрисъствиеЯнуари[6],\"И\")","v":0},{"$f":"COUNTIF(ПрисъствиеЯнуари[7],\"Н\")+COUNTIF(ПрисъствиеЯнуари[7],\"И\")","v":0},{"$f":"COUNTIF(ПрисъствиеЯнуари[8],\"Н\")+COUNTIF(ПрисъствиеЯнуари[8],\"И\")","v":0},{"$f":"COUNTIF(ПрисъствиеЯнуари[9],\"Н\")+COUNTIF(ПрисъствиеЯнуари[9],\"И\")","v":0},{"$f":"COUNTIF(ПрисъствиеЯнуари[10],\"Н\")+COUNTIF(ПрисъствиеЯнуари[10],\"И\")","v":0},{"$f":"COUNTIF(ПрисъствиеЯнуари[11],\"Н\")+COUNTIF(ПрисъствиеЯнуари[11],\"И\")","v":0},{"$f":"COUNTIF(ПрисъствиеЯнуари[12],\"Н\")+COUNTIF(ПрисъствиеЯнуари[12],\"И\")","v":0},{"$f":"COUNTIF(ПрисъствиеЯнуари[13],\"Н\")+COUNTIF(ПрисъствиеЯнуари[13],\"И\")","v":0},{"$f":"COUNTIF(ПрисъствиеЯнуари[14],\"Н\")+COUNTIF(ПрисъствиеЯнуари[14],\"И\")","v":0},{"$f":"COUNTIF(ПрисъствиеЯнуари[15],\"Н\")+COUNTIF(ПрисъствиеЯнуари[15],\"И\")","v":0},{"$f":"COUNTIF(ПрисъствиеЯнуари[16],\"Н\")+COUNTIF(ПрисъствиеЯнуари[16],\"И\")","v":0},{"$f":"COUNTIF(ПрисъствиеЯнуари[17],\"Н\")+COUNTIF(ПрисъствиеЯнуари[17],\"И\")","v":0},{"$f":"COUNTIF(ПрисъствиеЯнуари[18],\"Н\")+COUNTIF(ПрисъствиеЯнуари[18],\"И\")","v":0},{"$f":"COUNTIF(ПрисъствиеЯнуари[19],\"Н\")+COUNTIF(ПрисъствиеЯнуари[19],\"И\")","v":0},{"$f":"COUNTIF(ПрисъствиеЯнуари[20],\"Н\")+COUNTIF(ПрисъствиеЯнуари[20],\"И\")","v":0},{"$f":"COUNTIF(ПрисъствиеЯнуари[21],\"Н\")+COUNTIF(ПрисъствиеЯнуари[21],\"И\")","v":0},{"$f":"COUNTIF(ПрисъствиеЯнуари[22],\"Н\")+COUNTIF(ПрисъствиеЯнуари[22],\"И\")","v":0},{"$f":"COUNTIF(ПрисъствиеЯнуари[23],\"Н\")+COUNTIF(ПрисъствиеЯнуари[23],\"И\")","v":0},{"$f":"COUNTIF(ПрисъствиеЯнуари[24],\"Н\")+COUNTIF(ПрисъствиеЯнуари[24],\"И\")","v":0},{"$f":"COUNTIF(ПрисъствиеЯнуари[25],\"Н\")+COUNTIF(ПрисъствиеЯнуари[25],\"И\")","v":0},{"$f":"COUNTIF(ПрисъствиеЯнуари[26],\"Н\")+COUNTIF(ПрисъствиеЯнуари[26],\"И\")","v":0},{"$f":"COUNTIF(ПрисъствиеЯнуари[27],\"Н\")+COUNTIF(ПрисъствиеЯнуари[27],\"И\")","v":0},{"$f":"COUNTIF(ПрисъствиеЯнуари[28],\"Н\")+COUNTIF(ПрисъствиеЯнуари[28],\"И\")","v":0},{"$f":"COUNTIF(ПрисъствиеЯнуари[29],\"Н\")+COUNTIF(ПрисъствиеЯнуари[29],\"И\")","v":0},{"$f":"COUNTIF(ПрисъствиеЯнуари[30],\"Н\")+COUNTIF(ПрисъствиеЯнуари[30],\"И\")","v":0},{"$f":"COUNTIF(ПрисъствиеЯнуари[31],\"Н\")+COUNTIF(ПрисъствиеЯнуари[31],\"И\")","v":0},{"$f":"SUBTOTAL(109,ПрисъствиеЯнуари[З])","v":0},{"$f":"SUBTOTAL(109,ПрисъствиеЯнуари[И])","v":0},{"$f":"SUBTOTAL(109,ПрисъствиеЯнуари[Н])","v":0},{"$f":"SUBTOTAL(109,ПрисъствиеЯнуари[П])","v":0},{"$f":"SUBTOTAL(109,ПрисъствиеЯнуари[Дни отсъствие])","v":0}]

{"sheet":"Февруари","index":8,"n_rows":12,"n_cols":39,"rows_kept":12,"merged":[[4,34,4,38]]}
["ЗАПИС ЗА ПРИСЪСТВИЕ НА УЧАЩИ",{"$nulls":36},"Начало на учебната година:",{"$f":"КалендарнаГодина","v":2012}]
[]
[null,null,{"$f":"ТекстЦветовиКлюч","v":"КЛЮЧ ЗА ЦВЕТОВЕТЕ "},{"$f":"Код1","v":"З"},{"$f":"Код1Текст","v":"Закъснение"},null,null,{"$f":"Код2","v":"И"},{"$f":"Код2Текст","v":"Извинен"},null,null,{"$f":"Код3","v":"Н"},{"$f":"Код3Текст","v":"Неизвинен"},null,null,{"$f":"Код4","v":"П"},{"$f":"Код4Текст","v":"Присъстващ"},null,null,{"$f":"Код5","v":"Б"},{"$f":"Код5Текст","v":"Без училище"}]
[]
[null,{"$f":"DATE(КалендарнаГодина+1,2,1)","v":"2013-02-01"},null,{"$f":"TEXT(WEEKDAY(DATE(КалендарнаГодина+1,2,1),1),\"aaa\")","v":"пет"},{"$f":"TEXT(WEEKDAY(DATE(КалендарнаГодина+1,2,2),1),\"aaa\")","v":"съб"},{"$f":"TEXT(WEEKDAY(DATE(КалендарнаГодина+1,2,3),1),\"aaa\")","v":"нед"},{"$f":"TEXT(WEEKDAY(DATE(КалендарнаГодина+1,2,4),1),\"aaa\")","v":"пон"},{"$f":"TEXT(WEEKDAY(DATE(КалендарнаГодина+1,2,5),1),\"aaa\")","v":"вт"},{"$f":"TEXT(WEEKDAY(DATE(КалендарнаГодина+1,2,6),1),\"aaa\")","v":"ср"},{"$f":"TEXT(WEEKDAY(DATE(КалендарнаГодина+1,2,7),1),\"aaa\")","v":"четв"},{"$f":"TEXT(WEEKDAY(DATE(КалендарнаГодина+1,2,8),1),\"aaa\")","v":"пет"},{"$f":"TEXT(WEEKDAY(DATE(КалендарнаГодина+1,2,9),1),\"aaa\")","v":"съб"},{"$f":"TEXT(WEEKDAY(DATE(КалендарнаГодина+1,2,10),1),\"aaa\")","v":"нед"},{"$f":"TEXT(WEEKDAY(DATE(КалендарнаГодина+1,2,11),1),\"aaa\")","v":"пон"},{"$f":"TEXT(WEEKDAY(DATE(КалендарнаГодина+1,2,12),1),\"aaa\")","v":"вт"},{"$f":"TEXT(WEEKDAY(DATE(КалендарнаГодина+1,2,13),1),\"aaa\")","v":"ср"},{"$f":"TEXT(WEEKDAY(DATE(КалендарнаГодина+1,2,14),1),\"aaa\")","v":"четв"},{"$f":"TEXT(WEEKDAY(DATE(КалендарнаГодина+1,2,15),1),\"aaa\")","v":"пет"},{"$f":"TEXT(WEEKDAY(DATE(КалендарнаГодина+1,2,16),1),\"aaa\")","v":"съб"},{"$f":"TEXT(WEEKDAY(DATE(КалендарнаГодина+1,2,17),1),\"aaa\")","v":"нед"},{"$f":"TEXT(WEEKDAY(DATE(КалендарнаГодина+1,2,18),1),\"aaa\")","v":"пон"},{"$f":"TEXT(WEEKDAY(DATE(КалендарнаГодина+1,2,19),1),\"aaa\")","v":"вт"},{"$f":"TEXT(WEEKDAY(DATE(КалендарнаГодина+1,2,20),1),\"aaa\")","v":"ср"},{"$f":"TEXT(WEEKDAY(DATE(КалендарнаГодина+1,2,21),1),\"aaa\")","v":"четв"},{"$f":"TEXT(WEEKDAY(DATE(КалендарнаГодина+1,2,22),1),\"aaa\")","v":"пет"},{"$f":"TEXT(WEEKDAY(DATE(КалендарнаГодина+1,2,23),1),\"aaa\")","v":"съб"},{"$f":"TEXT(WEEKDAY(DATE(КалендарнаГодина+1,2,24),1),\"aaa\")","v":"нед"},{"$f":"TEXT(WEEKDAY(DATE(КалендарнаГодина+1,2,25),1),\"aaa\")","v":"пон"},{"$f":"TEXT(WEEKDAY(DATE(КалендарнаГодина+1,2,26),1),\"aaa\")","v":"вт"},{"$f":"TEXT(WEEKDAY(DATE(КалендарнаГодина+1,2,27),1),\"aaa\")","v":"ср"},{"$f":"TEXT(WEEKDAY(DATE(КалендарнаГодина+1,2,28),1),\"aaa\")","v":"четв"},{"$f":"TEXT(WEEKDAY(DATE(КалендарнаГодина+1,2,29),1),\"aaa\")","v":"пет"},null,null,"Общо"]
[null,"ИД на учащ","Име на учащ","1","2","3","4","5","6","7","8","9","10","11","12","13","14","15","16","17","18","19","20","21","22","23","24","25","26","27","28","29","30","31","З","И","Н","П","Дни отсъствие"]
[null,null,{"$f":"IFERROR(VLOOKUP(ПрисъствиеФевруари[[#This Row],[ИД на учащ]],СписъкУчащи[],18,FALSE),\"\")","v":""},{"$nulls":31},{"$f":"COUNTIF(ПрисъствиеФевруари[[#This Row],[1]:[31]],Код1)","v":0},{"$f":"COUNTIF(ПрисъствиеФевруари[[#This Row],[1]:[31]],Код2)","v":0},{"$f":"COUNTIF(ПрисъствиеФевруари[[#This Row],[1]:[31]],Код3)","v":0},{"$f":"COUNTIF(ПрисъствиеФевруари[[#This Row],[1]:[31]],Код4)","v":0},{"$f":"SUM(ПрисъствиеФевруари[[#This Row],[И]:[Н]])","v":0}]
[null,null,{"$f":"IFERROR(VLOOKUP(ПрисъствиеФевруари[[#This Row],[ИД на учащ]],СписъкУчащи[],18,FALSE),\"\")","v":""},{"$nulls":31},{"$f":"COUNTIF(ПрисъствиеФевруари[[#This Row],[1]:[31]],Код1)","v":0},{"$f":"COUNTIF(ПрисъствиеФевруари[[#This Row],[1]:[31]],Код2)","v":0},{"$f":"COUNTIF(ПрисъствиеФевруари[[#This Row],[1]:[31]],Код3)","v":0},{"$f":"COUNTIF(ПрисъствиеФевруари[[#This Row],[1]:[31]],Код4)","v":0},{"$f":"SUM(ПрисъствиеФевруари[[#This Row],[И]:[Н]])","v":0}]
[null,null,{"$f":"IFERROR(VLOOKUP(ПрисъствиеФевруари[[#This Row],[ИД на учащ]],СписъкУчащи[],18,FALSE),\"\")","v":""},{"$nulls":31},{"$f":"COUNTIF(ПрисъствиеФевруари[[#This Row],[1]:[31]],Код1)","v":0},{"$f":"COUNTIF(ПрисъствиеФевруари[[#This Row],[1]:[31]],Код2)","v":0},{"$f":"COUNTIF(ПрисъствиеФевруари[[#This Row],[1]:[31]],Код3)","v":0},{"$f":"COUNTIF(ПрисъствиеФевруари[[#This Row],[1]:[31]],Код4)","v":0},{"$f":"SUM(ПрисъствиеФевруари[[#This Row],[И]:[Н]])","v":0}]
[null,null,{"$f":"IFERROR(VLOOKUP(ПрисъствиеФевруари[[#This Row],[ИД на учащ]],СписъкУчащи[],18,FALSE),\"\")","v":""},{"$nulls":31},{"$f":"COUNTIF(ПрисъствиеФевруари[[#This Row],[1]:[31]],Код1)","v":0},{"$f":"COUNTIF(ПрисъствиеФевруари[[#This Row],[1]:[31]],Код2)","v":0},{"$f":"COUNTIF(ПрисъствиеФевруари[[#This Row],[1]:[31]],Код3)","v":0},{"$f":"COUNTIF(ПрисъствиеФевруари[[#This Row],[1]:[31]],Код4)","v":0},{"$f":"SUM(ПрисъствиеФевруари[[#This Row],[И]:[Н]])","v":0}]
[null,null,{"$f":"IFERROR(VLOOKUP(ПрисъствиеФевруари[[#This Row],[ИД на учащ]],СписъкУчащи[],18,FALSE),\"\")","v":""},{"$nulls":31},{"$f":"COUNTIF(ПрисъствиеФевруари[[#This Row],[1]:[31]],Код1)","v":0},{"$f":"COUNTIF(ПрисъствиеФевруари[[#This Row],[1]:[31]],Код2)","v":0},{"$f":"COUNTIF(ПрисъствиеФевруари[[#This Row],[1]:[31]],Код3)","v":0},{"$f":"COUNTIF(ПрисъствиеФевруари[[#This Row],[1]:[31]],Код4)","v":0},{"$f":"SUM(ПрисъствиеФевруари[[#This Row],[И]:[Н]])","v":0}]
[null,null,"Общо дни отсъствие",{"$f":"COUNTIF(ПрисъствиеФевруари[1],\"Н\")+COUNTIF(ПрисъствиеФевруари[1],\"И\")","v":0},{"$f":"COUNTIF(ПрисъствиеФевруари[2],\"Н\")+COUNTIF(ПрисъствиеФевруари[2],\"И\")","v":0},{"$f":"COUNTIF(ПрисъствиеФевруари[3],\"Н\")+COUNTIF(ПрисъствиеФевруари[3],\"И\")","v":0},{"$f":"COUNTIF(ПрисъствиеФевруари[4],\"Н\")+COUNTIF(ПрисъствиеФевруари[4],\"И\")","v":0},{"$f":"COUNTIF(ПрисъствиеФевруари[5],\"Н\")+COUNTIF(ПрисъствиеФевруари[5],\"И\")","v":0},{"$f":"COUNTIF(ПрисъствиеФевруари[6],\"Н\")+COUNTIF(ПрисъствиеФевруари[6],\"И\")","v":0},{"$f":"COUNTIF(ПрисъствиеФевруари[7],\"Н\")+COUNTIF(ПрисъствиеФевруари[7],\"И\")","v":0},{"$f":"COUNTIF(ПрисъствиеФевруари[8],\"Н\")+COUNTIF(ПрисъствиеФевруари[8],\"И\")","v":0},{"$f":"COUNTIF(ПрисъствиеФевруари[9],\"Н\")+COUNTIF(ПрисъствиеФевруари[9],\"И\")","v":0},{"$f":"COUNTIF(ПрисъствиеФевруари[10],\"Н\")+COUNTIF(ПрисъствиеФевруари[10],\"И\")","v":0},{"$f":"COUNTIF(ПрисъствиеФевруари[11],\"Н\")+COUNTIF(ПрисъствиеФевруари[11],\"И\")","v":0},{"$f":"COUNTIF(ПрисъствиеФевруари[12],\"Н\")+COUNTIF(ПрисъствиеФевруари[12],\"И\")","v":0},{"$f":"COUNTIF(ПрисъствиеФевруари[13],\"Н\")+COUNTIF(ПрисъствиеФевруари[13],\"И\")","v":0},{"$f":"COUNTIF(ПрисъствиеФевруари[14],\"Н\")+COUNTIF(ПрисъствиеФевруари[14],\"И\")","v":0},{"$f":"COUNTIF(ПрисъствиеФевруари[15],\"Н\")+COUNTIF(ПрисъствиеФевруари[15],\"И\")","v":0},{"$f":"COUNTIF(ПрисъствиеФевруари[16],\"Н\")+COUNTIF(ПрисъствиеФевруари[16],\"И\")","v":0},{"$f":"COUNTIF(ПрисъствиеФевруари[17],\"Н\")+COUNTIF(ПрисъствиеФевруари[17],\"И\")","v":0},{"$f":"COUNTIF(ПрисъствиеФевруари[18],\"Н\")+COUNTIF(ПрисъствиеФевруари[18],\"И\")","v":0},{"$f":"COUNTIF(ПрисъствиеФевруари[19],\"Н\")+COUNTIF(ПрисъствиеФевруари[19],\"И\")","v":0},{"$f":"COUNTIF(ПрисъствиеФевруари[20],\"Н\")+COUNTIF(ПрисъствиеФевруари[20],\"И\")","v":0},{"$f":"COUNTIF(ПрисъствиеФевруари[21],\"Н\")+COUNTIF(ПрисъствиеФевруари[21],\"И\")","v":0},{"$f":"COUNTIF(ПрисъствиеФевруари[22],\"Н\")+COUNTIF(ПрисъствиеФевруари[22],\"И\")","v":0},{"$f":"COUNTIF(ПрисъствиеФевруари[23],\"Н\")+COUNTIF(ПрисъствиеФевруари[23],\"И\")","v":0},{"$f":"COUNTIF(ПрисъствиеФевруари[24],\"Н\")+COUNTIF(ПрисъствиеФевруари[24],\"И\")","v":0},{"$f":"COUNTIF(ПрисъствиеФевруари[25],\"Н\")+COUNTIF(ПрисъствиеФевруари[25],\"И\")","v":0},{"$f":"COUNTIF(ПрисъствиеФевруари[26],\"Н\")+COUNTIF(ПрисъствиеФевруари[26],\"И\")","v":0},{"$f":"COUNTIF(ПрисъствиеФевруари[27],\"Н\")+COUNTIF(ПрисъствиеФевруари[27],\"И\")","v":0},{"$f":"COUNTIF(ПрисъствиеФевруари[28],\"Н\")+COUNTIF(ПрисъствиеФевруари[28],\"И\")","v":0},{"$f":"COUNTIF(ПрисъствиеФевруари[29],\"Н\")+COUNTIF(ПрисъствиеФевруари[29],\"И\")","v":0},{"$f":"COUNTIF(ПрисъствиеФевруари[30],\"Н\")+COUNTIF(ПрисъствиеФевруари[30],\"И\")","v":0},{"$f":"COUNTIF(ПрисъствиеФевруари[31],\"Н\")+COUNTIF(ПрисъствиеФевруари[31],\"И\")","v":0},{"$f":"SUBTOTAL(109,ПрисъствиеФевруари[З])","v":0},{"$f":"SUBTOTAL(109,ПрисъствиеФевруари[И])","v":0},{"$f":"SUBTOTAL(109,ПрисъствиеФевруари[Н])","v":0},{"$f":"SUBTOTAL(109,ПрисъствиеФевруари[П])","v":0},{"$f":"SUBTOTAL(109,ПрисъствиеФевруари[Дни отсъствие])","v":0}]

{"sheet":"Март","index":9,"n_rows":12,"n_cols":39,"rows_kept":12,"merged":[[4,34,4,38]]}
["ЗАПИС ЗА ПРИСЪСТВИЕ НА УЧАЩИ",{"$nulls":36},"Начало на учебната година:",{"$f":"КалендарнаГодина","v":2012}]
[]
[null,null,{"$f":"ТекстЦветовиКлюч","v":"КЛЮЧ ЗА ЦВЕТОВЕТЕ "},{"$f":"Код1","v":"З"},{"$f":"Код1Текст","v":"Закъснение"},null,null,{"$f":"Код2","v":"И"},{"$f":"Код2Текст","v":"Извинен"},null,null,{"$f":"Код3","v":"Н"},{"$f":"Код3Текст","v":"Неизвинен"},null,null,{"$f":"Код4","v":"П"},{"$f":"Код4Текст","v":"Присъстващ"},null,null,{"$f":"Код5","v":"Б"},{"$f":"Код5Текст","v":"Без училище"}]
[]
[null,{"$f":"DATE(КалендарнаГодина+1,3,1)","v":"2013-03-01"},null,{"$f":"TEXT(WEEKDAY(DATE(КалендарнаГодина+1,3,1),1),\"aaa\")","v":"пет"},{"$f":"TEXT(WEEKDAY(DATE(КалендарнаГодина+1,3,2),1),\"aaa\")","v":"съб"},{"$f":"TEXT(WEEKDAY(DATE(КалендарнаГодина+1,3,3),1),\"aaa\")","v":"нед"},{"$f":"TEXT(WEEKDAY(DATE(КалендарнаГодина+1,3,4),1),\"aaa\")","v":"пон"},{"$f":"TEXT(WEEKDAY(DATE(КалендарнаГодина+1,3,5),1),\"aaa\")","v":"вт"},{"$f":"TEXT(WEEKDAY(DATE(КалендарнаГодина+1,3,6),1),\"aaa\")","v":"ср"},{"$f":"TEXT(WEEKDAY(DATE(КалендарнаГодина+1,3,7),1),\"aaa\")","v":"четв"},{"$f":"TEXT(WEEKDAY(DATE(КалендарнаГодина+1,3,8),1),\"aaa\")","v":"пет"},{"$f":"TEXT(WEEKDAY(DATE(КалендарнаГодина+1,3,9),1),\"aaa\")","v":"съб"},{"$f":"TEXT(WEEKDAY(DATE(КалендарнаГодина+1,3,10),1),\"aaa\")","v":"нед"},{"$f":"TEXT(WEEKDAY(DATE(КалендарнаГодина+1,3,11),1),\"aaa\")","v":"пон"},{"$f":"TEXT(WEEKDAY(DATE(КалендарнаГодина+1,3,12),1),\"aaa\")","v":"вт"},{"$f":"TEXT(WEEKDAY(DATE(КалендарнаГодина+1,3,13),1),\"aaa\")","v":"ср"},{"$f":"TEXT(WEEKDAY(DATE(КалендарнаГодина+1,3,14),1),\"aaa\")","v":"четв"},{"$f":"TEXT(WEEKDAY(DATE(КалендарнаГодина+1,3,15),1),\"aaa\")","v":"пет"},{"$f":"TEXT(WEEKDAY(DATE(КалендарнаГодина+1,3,16),1),\"aaa\")","v":"съб"},{"$f":"TEXT(WEEKDAY(DATE(КалендарнаГодина+1,3,17),1),\"aaa\")","v":"нед"},{"$f":"TEXT(WEEKDAY(DATE(КалендарнаГодина+1,3,18),1),\"aaa\")","v":"пон"},{"$f":"TEXT(WEEKDAY(DATE(КалендарнаГодина+1,3,19),1),\"aaa\")","v":"вт"},{"$f":"TEXT(WEEKDAY(DATE(КалендарнаГодина+1,3,20),1),\"aaa\")","v":"ср"},{"$f":"TEXT(WEEKDAY(DATE(КалендарнаГодина+1,3,21),1),\"aaa\")","v":"четв"},{"$f":"TEXT(WEEKDAY(DATE(КалендарнаГодина+1,3,22),1),\"aaa\")","v":"пет"},{"$f":"TEXT(WEEKDAY(DATE(КалендарнаГодина+1,3,23),1),\"aaa\")","v":"съб"},{"$f":"TEXT(WEEKDAY(DATE(КалендарнаГодина+1,3,24),1),\"aaa\")","v":"нед"},{"$f":"TEXT(WEEKDAY(DATE(КалендарнаГодина+1,3,25),1),\"aaa\")","v":"пон"},{"$f":"TEXT(WEEKDAY(DATE(КалендарнаГодина+1,3,26),1),\"aaa\")","v":"вт"},{"$f":"TEXT(WEEKDAY(DATE(КалендарнаГодина+1,3,27),1),\"aaa\")","v":"ср"},{"$f":"TEXT(WEEKDAY(DATE(КалендарнаГодина+1,3,28),1),\"aaa\")","v":"четв"},{"$f":"TEXT(WEEKDAY(DATE(КалендарнаГодина+1,3,29),1),\"aaa\")","v":"пет"},{"$f":"TEXT(WEEKDAY(DATE(КалендарнаГодина+1,3,30),1),\"aaa\")","v":"съб"},{"$f":"TEXT(WEEKDAY(DATE(КалендарнаГодина+1,3,31),1),\"aaa\")","v":"нед"},"Общо"]
[null,"ИД на учащ","Име на учащ","1","2","3","4","5","6","7","8","9","10","11","12","13","14","15","16","17","18","19","20","21","22","23","24","25","26","27","28","29","30","31","З","И","Н","П","Дни отсъствие"]
[null,null,{"$f":"IFERROR(VLOOKUP(ПрисъствиеМарт[[#This Row],[ИД на учащ]],СписъкУчащи[],18,FALSE),\"\")","v":""},{"$nulls":31},{"$f":"COUNTIF(ПрисъствиеМарт[[#This Row],[1]:[31]],Код1)","v":0},{"$f":"COUNTIF(ПрисъствиеМарт[[#This Row],[1]:[31]],Код2)","v":0},{"$f":"COUNTIF(ПрисъствиеМарт[[#This Row],[1]:[31]],Код3)","v":0},{"$f":"COUNTIF(ПрисъствиеМарт[[#This Row],[1]:[31]],Код4)","v":0},{"$f":"SUM(ПрисъствиеМарт[[#This Row],[И]:[Н]])","v":0}]
[null,null,{"$f":"IFERROR(VLOOKUP(ПрисъствиеМарт[[#This Row],[ИД на учащ]],СписъкУчащи[],18,FALSE),\"\")","v":""},{"$nulls":31},{"$f":"COUNTIF(ПрисъствиеМарт[[#This Row],[1]:[31]],Код1)","v":0},{"$f":"COUNTIF(ПрисъствиеМарт[[#This Row],[1]:[31]],Код2)","v":0},{"$f":"COUNTIF(ПрисъствиеМарт[[#This Row],[1]:[31]],Код3)","v":0},{"$f":"COUNTIF(ПрисъствиеМарт[[#This Row],[1]:[31]],Код4)","v":0},{"$f":"SUM(ПрисъствиеМарт[[#This Row],[И]:[Н]])","v":0}]
[null,null,{"$f":"IFERROR(VLOOKUP(ПрисъствиеМарт[[#This Row],[ИД на учащ]],СписъкУчащи[],18,FALSE),\"\")","v":""},{"$nulls":31},{"$f":"COUNTIF(ПрисъствиеМарт[[#This Row],[1]:[31]],Код1)","v":0},{"$f":"COUNTIF(ПрисъствиеМарт[[#This Row],[1]:[31]],Код2)","v":0},{"$f":"COUNTIF(ПрисъствиеМарт[[#This Row],[1]:[31]],Код3)","v":0},{"$f":"COUNTIF(ПрисъствиеМарт[[#This Row],[1]:[31]],Код4)","v":0},{"$f":"SUM(ПрисъствиеМарт[[#This Row],[И]:[Н]])","v":0}]
[null,null,{"$f":"IFERROR(VLOOKUP(ПрисъствиеМарт[[#This Row],[ИД на учащ]],СписъкУчащи[],18,FALSE),\"\")","v":""},{"$nulls":31},{"$f":"COUNTIF(ПрисъствиеМарт[[#This Row],[1]:[31]],Код1)","v":0},{"$f":"COUNTIF(ПрисъствиеМарт[[#This Row],[1]:[31]],Код2)","v":0},{"$f":"COUNTIF(ПрисъствиеМарт[[#This Row],[1]:[31]],Код3)","v":0},{"$f":"COUNTIF(ПрисъствиеМарт[[#This Row],[1]:[31]],Код4)","v":0},{"$f":"SUM(ПрисъствиеМарт[[#This Row],[И]:[Н]])","v":0}]
[null,null,{"$f":"IFERROR(VLOOKUP(ПрисъствиеМарт[[#This Row],[ИД на учащ]],СписъкУчащи[],18,FALSE),\"\")","v":""},{"$nulls":31},{"$f":"COUNTIF(ПрисъствиеМарт[[#This Row],[1]:[31]],Код1)","v":0},{"$f":"COUNTIF(ПрисъствиеМарт[[#This Row],[1]:[31]],Код2)","v":0},{"$f":"COUNTIF(ПрисъствиеМарт[[#This Row],[1]:[31]],Код3)","v":0},{"$f":"COUNTIF(ПрисъствиеМарт[[#This Row],[1]:[31]],Код4)","v":0},{"$f":"SUM(ПрисъствиеМарт[[#This Row],[И]:[Н]])","v":0}]
[null,null,"Общо дни отсъствие",{"$f":"COUNTIF(ПрисъствиеМарт[1],\"Н\")+COUNTIF(ПрисъствиеМарт[1],\"И\")","v":0},{"$f":"COUNTIF(ПрисъствиеМарт[2],\"Н\")+COUNTIF(ПрисъствиеМарт[2],\"И\")","v":0},{"$f":"COUNTIF(ПрисъствиеМарт[3],\"Н\")+COUNTIF(ПрисъствиеМарт[3],\"И\")","v":0},{"$f":"COUNTIF(ПрисъствиеМарт[4],\"Н\")+COUNTIF(ПрисъствиеМарт[4],\"И\")","v":0},{"$f":"COUNTIF(ПрисъствиеМарт[5],\"Н\")+COUNTIF(ПрисъствиеМарт[5],\"И\")","v":0},{"$f":"COUNTIF(ПрисъствиеМарт[6],\"Н\")+COUNTIF(ПрисъствиеМарт[6],\"И\")","v":0},{"$f":"COUNTIF(ПрисъствиеМарт[7],\"Н\")+COUNTIF(ПрисъствиеМарт[7],\"И\")","v":0},{"$f":"COUNTIF(ПрисъствиеМарт[8],\"Н\")+COUNTIF(ПрисъствиеМарт[8],\"И\")","v":0},{"$f":"COUNTIF(ПрисъствиеМарт[9],\"Н\")+COUNTIF(ПрисъствиеМарт[9],\"И\")","v":0},{"$f":"COUNTIF(ПрисъствиеМарт[10],\"Н\")+COUNTIF(ПрисъствиеМарт[10],\"И\")","v":0},{"$f":"COUNTIF(ПрисъствиеМарт[11],\"Н\")+COUNTIF(ПрисъствиеМарт[11],\"И\")","v":0},{"$f":"COUNTIF(ПрисъствиеМарт[12],\"Н\")+COUNTIF(ПрисъствиеМарт[12],\"И\")","v":0},{"$f":"COUNTIF(ПрисъствиеМарт[13],\"Н\")+COUNTIF(ПрисъствиеМарт[13],\"И\")","v":0},{"$f":"COUNTIF(ПрисъствиеМарт[14],\"Н\")+COUNTIF(ПрисъствиеМарт[14],\"И\")","v":0},{"$f":"COUNTIF(ПрисъствиеМарт[15],\"Н\")+COUNTIF(ПрисъствиеМарт[15],\"И\")","v":0},{"$f":"COUNTIF(ПрисъствиеМарт[16],\"Н\")+COUNTIF(ПрисъствиеМарт[16],\"И\")","v":0},{"$f":"COUNTIF(ПрисъствиеМарт[17],\"Н\")+COUNTIF(ПрисъствиеМарт[17],\"И\")","v":0},{"$f":"COUNTIF(ПрисъствиеМарт[18],\"Н\")+COUNTIF(ПрисъствиеМарт[18],\"И\")","v":0},{"$f":"COUNTIF(ПрисъствиеМарт[19],\"Н\")+COUNTIF(ПрисъствиеМарт[19],\"И\")","v":0},{"$f":"COUNTIF(ПрисъствиеМарт[20],\"Н\")+COUNTIF(ПрисъствиеМарт[20],\"И\")","v":0},{"$f":"COUNTIF(ПрисъствиеМарт[21],\"Н\")+COUNTIF(ПрисъствиеМарт[21],\"И\")","v":0},{"$f":"COUNTIF(ПрисъствиеМарт[22],\"Н\")+COUNTIF(ПрисъствиеМарт[22],\"И\")","v":0},{"$f":"COUNTIF(ПрисъствиеМарт[23],\"Н\")+COUNTIF(ПрисъствиеМарт[23],\"И\")","v":0},{"$f":"COUNTIF(ПрисъствиеМарт[24],\"Н\")+COUNTIF(ПрисъствиеМарт[24],\"И\")","v":0},{"$f":"COUNTIF(ПрисъствиеМарт[25],\"Н\")+COUNTIF(ПрисъствиеМарт[25],\"И\")","v":0},{"$f":"COUNTIF(ПрисъствиеМарт[26],\"Н\")+COUNTIF(ПрисъствиеМарт[26],\"И\")","v":0},{"$f":"COUNTIF(ПрисъствиеМарт[27],\"Н\")+COUNTIF(ПрисъствиеМарт[27],\"И\")","v":0},{"$f":"COUNTIF(ПрисъствиеМарт[28],\"Н\")+COUNTIF(ПрисъствиеМарт[28],\"И\")","v":0},{"$f":"COUNTIF(ПрисъствиеМарт[29],\"Н\")+COUNTIF(ПрисъствиеМарт[29],\"И\")","v":0},{"$f":"COUNTIF(ПрисъствиеМарт[30],\"Н\")+COUNTIF(ПрисъствиеМарт[30],\"И\")","v":0},{"$f":"COUNTIF(ПрисъствиеМарт[31],\"Н\")+COUNTIF(ПрисъствиеМарт[31],\"И\")","v":0},{"$f":"SUBTOTAL(109,ПрисъствиеМарт[З])","v":0},{"$f":"SUBTOTAL(109,ПрисъствиеМарт[И])","v":0},{"$f":"SUBTOTAL(109,ПрисъствиеМарт[Н])","v":0},{"$f":"SUBTOTAL(109,ПрисъствиеМарт[П])","v":0},{"$f":"SUBTOTAL(109,ПрисъствиеМарт[Дни отсъствие])","v":0}]

{"sheet":"Април","index":10,"n_rows":12,"n_cols":39,"rows_kept":12,"merged":[[4,34,4,38]]}
["ЗАПИС ЗА ПРИСЪСТВИЕ НА УЧАЩИ",{"$nulls":36},"Начало на учебната година:",{"$f":"КалендарнаГодина","v":2012}]
[]
[null,null,{"$f":"ТекстЦветовиКлюч","v":"КЛЮЧ ЗА ЦВЕТОВЕТЕ "},{"$f":"Код1","v":"З"},{"$f":"Код1Текст","v":"Закъснение"},null,null,{"$f":"Код2","v":"И"},{"$f":"Код2Текст","v":"Извинен"},null,null,{"$f":"Код3","v":"Н"},{"$f":"Код3Текст","v":"Неизвинен"},null,null,{"$f":"Код4","v":"П"},{"$f":"Код4Текст","v":"Присъстващ"},null,null,{"$f":"Код5","v":"Б"},{"$f":"Код5Текст","v":"Без училище"}]
[]
[null,{"$f":"DATE(КалендарнаГодина+1,4,1)","v":"2013-04-01"},null,{"$f":"TEXT(WEEKDAY(DATE(КалендарнаГодина+1,4,1),1),\"aaa\")","v":"пон"},{"$f":"TEXT(WEEKDAY(DATE(КалендарнаГодина+1,4,2),1),\"aaa\")","v":"вт"},{"$f":"TEXT(WEEKDAY(DATE(КалендарнаГодина+1,4,3),1),\"aaa\")","v":"ср"},{"$f":"TEXT(WEEKDAY(DATE(КалендарнаГодина+1,4,4),1),\"aaa\")","v":"четв"},{"$f":"TEXT(WEEKDAY(DATE(КалендарнаГодина+1,4,5),1),\"aaa\")","v":"пет"},{"$f":"TEXT(WEEKDAY(DATE(КалендарнаГодина+1,4,6),1),\"aaa\")","v":"съб"},{"$f":"TEXT(WEEKDAY(DATE(КалендарнаГодина+1,4,7),1),\"aaa\")","v":"нед"},{"$f":"TEXT(WEEKDAY(DATE(КалендарнаГодина+1,4,8),1),\"aaa\")","v":"пон"},{"$f":"TEXT(WEEKDAY(DATE(КалендарнаГодина+1,4,9),1),\"aaa\")","v":"вт"},{"$f":"TEXT(WEEKDAY(DATE(КалендарнаГодина+1,4,10),1),\"aaa\")","v":"ср"},{"$f":"TEXT(WEEKDAY(DATE(КалендарнаГодина+1,4,11),1),\"aaa\")","v":"четв"},{"$f":"TEXT(WEEKDAY(DATE(КалендарнаГодина+1,4,12),1),\"aaa\")","v":"пет"},{"$f":"TEXT(WEEKDAY(DATE(КалендарнаГодина+1,4,13),1),\"aaa\")","v":"съб"},{"$f":"TEXT(WEEKDAY(DATE(КалендарнаГодина+1,4,14),1),\"aaa\")","v":"нед"},{"$f":"TEXT(WEEKDAY(DATE(КалендарнаГодина+1,4,15),1),\"aaa\")","v":"пон"},{"$f":"TEXT(WEEKDAY(DATE(КалендарнаГодина+1,4,16),1),\"aaa\")","v":"вт"},{"$f":"TEXT(WEEKDAY(DATE(КалендарнаГодина+1,4,17),1),\"aaa\")","v":"ср"},{"$f":"TEXT(WEEKDAY(DATE(КалендарнаГодина+1,4,18),1),\"aaa\")","v":"четв"},{"$f":"TEXT(WEEKDAY(DATE(КалендарнаГодина+1,4,19),1),\"aaa\")","v":"пет"},{"$f":"TEXT(WEEKDAY(DATE(КалендарнаГодина+1,4,20),1),\"aaa\")","v":"съб"},{"$f":"TEXT(WEEKDAY(DATE(КалендарнаГодина+1,4,21),1),\"aaa\")","v":"нед"},{"$f":"TEXT(WEEKDAY(DATE(КалендарнаГодина+1,4,22),1),\"aaa\")","v":"пон"},{"$f":"TEXT(WEEKDAY(DATE(КалендарнаГодина+1,4,23),1),\"aaa\")","v":"вт"},{"$f":"TEXT(WEEKDAY(DATE(КалендарнаГодина+1,4,24),1),\"aaa\")","v":"ср"},{"$f":"TEXT(WEEKDAY(DATE(КалендарнаГодина+1,4,25),1),\"aaa\")","v":"четв"},{"$f":"TEXT(WEEKDAY(DATE(КалендарнаГодина+1,4,26),1),\"aaa\")","v":"пет"},{"$f":"TEXT(WEEKDAY(DATE(КалендарнаГодина+1,4,27),1),\"aaa\")","v":"съб"},{"$f":"TEXT(WEEKDAY(DATE(КалендарнаГодина+1,4,28),1),\"aaa\")","v":"нед"},{"$f":"TEXT(WEEKDAY(DATE(КалендарнаГодина+1,4,29),1),\"aaa\")","v":"пон"},{"$f":"TEXT(WEEKDAY(DATE(КалендарнаГодина+1,4,30),1),\"aaa\")","v":"вт"},null,"Общо"]
[null,"ИД на учащ","Име на учащ","1","2","3","4","5","6","7","8","9","10","11","12","13","14","15","16","17","18","19","20","21","22","23","24","25","26","27","28","29","30"," ","З","И","Н","П","Дни отсъствие"]
[null,null,{"$f":"IFERROR(VLOOKUP(ПрисъствиеАприл[[#This Row],[ИД на учащ]],СписъкУчащи[],18,FALSE),\"\")","v":""},{"$nulls":31},{"$f":"COUNTIF(ПрисъствиеАприл[[#This Row],[1]:[ ]],Код1)","v":0},{"$f":"COUNTIF(ПрисъствиеАприл[[#This Row],[1]:[ ]],Код2)","v":0},{"$f":"COUNTIF(ПрисъствиеАприл[[#This Row],[1]:[ ]],Код3)","v":0},{"$f":"COUNTIF(ПрисъствиеАприл[[#This Row],[1]:[ ]],Код4)","v":0},{"$f":"SUM(ПрисъствиеАприл[[#This Row],[И]:[Н]])","v":0}]
[null,null,{"$f":"IFERROR(VLOOKUP(ПрисъствиеАприл[[#This Row],[ИД на учащ]],СписъкУчащи[],18,FALSE),\"\")","v":""},{"$nulls":31},{"$f":"COUNTIF(ПрисъствиеАприл[[#This Row],[1]:[ ]],Код1)","v":0},{"$f":"COUNTIF(ПрисъствиеАприл[[#This Row],[1]:[ ]],Код2)","v":0},{"$f":"COUNTIF(ПрисъствиеАприл[[#This Row],[1]:[ ]],Код3)","v":0},{"$f":"COUNTIF(ПрисъствиеАприл[[#This Row],[1]:[ ]],Код4)","v":0},{"$f":"SUM(ПрисъствиеАприл[[#This Row],[И]:[Н]])","v":0}]
[null,null,{"$f":"IFERROR(VLOOKUP(ПрисъствиеАприл[[#This Row],[ИД на учащ]],СписъкУчащи[],18,FALSE),\"\")","v":""},{"$nulls":31},{"$f":"COUNTIF(ПрисъствиеАприл[[#This Row],[1]:[ ]],Код1)","v":0},{"$f":"COUNTIF(ПрисъствиеАприл[[#This Row],[1]:[ ]],Код2)","v":0},{"$f":"COUNTIF(ПрисъствиеАприл[[#This Row],[1]:[ ]],Код3)","v":0},{"$f":"COUNTIF(ПрисъствиеАприл[[#This Row],[1]:[ ]],Код4)","v":0},{"$f":"SUM(ПрисъствиеАприл[[#This Row],[И]:[Н]])","v":0}]
[null,null,{"$f":"IFERROR(VLOOKUP(ПрисъствиеАприл[[#This Row],[ИД на учащ]],СписъкУчащи[],18,FALSE),\"\")","v":""},{"$nulls":31},{"$f":"COUNTIF(ПрисъствиеАприл[[#This Row],[1]:[ ]],Код1)","v":0},{"$f":"COUNTIF(ПрисъствиеАприл[[#This Row],[1]:[ ]],Код2)","v":0},{"$f":"COUNTIF(ПрисъствиеАприл[[#This Row],[1]:[ ]],Код3)","v":0},{"$f":"COUNTIF(ПрисъствиеАприл[[#This Row],[1]:[ ]],Код4)","v":0},{"$f":"SUM(ПрисъствиеАприл[[#This Row],[И]:[Н]])","v":0}]
[null,null,{"$f":"IFERROR(VLOOKUP(ПрисъствиеАприл[[#This Row],[ИД на учащ]],СписъкУчащи[],18,FALSE),\"\")","v":""},{"$nulls":31},{"$f":"COUNTIF(ПрисъствиеАприл[[#This Row],[1]:[ ]],Код1)","v":0},{"$f":"COUNTIF(ПрисъствиеАприл[[#This Row],[1]:[ ]],Код2)","v":0},{"$f":"COUNTIF(ПрисъствиеАприл[[#This Row],[1]:[ ]],Код3)","v":0},{"$f":"COUNTIF(ПрисъствиеАприл[[#This Row],[1]:[ ]],Код4)","v":0},{"$f":"SUM(ПрисъствиеАприл[[#This Row],[И]:[Н]])","v":0}]
[null,null,"Общо дни отсъствие",{"$f":"COUNTIF(ПрисъствиеАприл[1],\"Н\")+COUNTIF(ПрисъствиеАприл[1],\"И\")","v":0},{"$f":"COUNTIF(ПрисъствиеАприл[2],\"Н\")+COUNTIF(ПрисъствиеАприл[2],\"И\")","v":0},{"$f":"COUNTIF(ПрисъствиеАприл[3],\"Н\")+COUNTIF(ПрисъствиеАприл[3],\"И\")","v":0},{"$f":"COUNTIF(ПрисъствиеАприл[4],\"Н\")+COUNTIF(ПрисъствиеАприл[4],\"И\")","v":0},{"$f":"COUNTIF(ПрисъствиеАприл[5],\"Н\")+COUNTIF(ПрисъствиеАприл[5],\"И\")","v":0},{"$f":"COUNTIF(ПрисъствиеАприл[6],\"Н\")+COUNTIF(ПрисъствиеАприл[6],\"И\")","v":0},{"$f":"COUNTIF(ПрисъствиеАприл[7],\"Н\")+COUNTIF(ПрисъствиеАприл[7],\"И\")","v":0},{"$f":"COUNTIF(ПрисъствиеАприл[8],\"Н\")+COUNTIF(ПрисъствиеАприл[8],\"И\")","v":0},{"$f":"COUNTIF(ПрисъствиеАприл[9],\"Н\")+COUNTIF(ПрисъствиеАприл[9],\"И\")","v":0},{"$f":"COUNTIF(ПрисъствиеАприл[10],\"Н\")+COUNTIF(ПрисъствиеАприл[10],\"И\")","v":0},{"$f":"COUNTIF(ПрисъствиеАприл[11],\"Н\")+COUNTIF(ПрисъствиеАприл[11],\"И\")","v":0},{"$f":"COUNTIF(ПрисъствиеАприл[12],\"Н\")+COUNTIF(ПрисъствиеАприл[12],\"И\")","v":0},{"$f":"COUNTIF(ПрисъствиеАприл[13],\"Н\")+COUNTIF(ПрисъствиеАприл[13],\"И\")","v":0},{"$f":"COUNTIF(ПрисъствиеАприл[14],\"Н\")+COUNTIF(ПрисъствиеАприл[14],\"И\")","v":0},{"$f":"COUNTIF(ПрисъствиеАприл[15],\"Н\")+COUNTIF(ПрисъствиеАприл[15],\"И\")","v":0},{"$f":"COUNTIF(ПрисъствиеАприл[16],\"Н\")+COUNTIF(ПрисъствиеАприл[16],\"И\")","v":0},{"$f":"COUNTIF(ПрисъствиеАприл[17],\"Н\")+COUNTIF(ПрисъствиеАприл[17],\"И\")","v":0},{"$f":"COUNTIF(ПрисъствиеАприл[18],\"Н\")+COUNTIF(ПрисъствиеАприл[18],\"И\")","v":0},{"$f":"COUNTIF(ПрисъствиеАприл[19],\"Н\")+COUNTIF(ПрисъствиеАприл[19],\"И\")","v":0},{"$f":"COUNTIF(ПрисъствиеАприл[20],\"Н\")+COUNTIF(ПрисъствиеАприл[20],\"И\")","v":0},{"$f":"COUNTIF(ПрисъствиеАприл[21],\"Н\")+COUNTIF(ПрисъствиеАприл[21],\"И\")","v":0},{"$f":"COUNTIF(ПрисъствиеАприл[22],\"Н\")+COUNTIF(ПрисъствиеАприл[22],\"И\")","v":0},{"$f":"COUNTIF(ПрисъствиеАприл[23],\"Н\")+COUNTIF(ПрисъствиеАприл[23],\"И\")","v":0},{"$f":"COUNTIF(ПрисъствиеАприл[24],\"Н\")+COUNTIF(ПрисъствиеАприл[24],\"И\")","v":0},{"$f":"COUNTIF(ПрисъствиеАприл[25],\"Н\")+COUNTIF(ПрисъствиеАприл[25],\"И\")","v":0},{"$f":"COUNTIF(ПрисъствиеАприл[26],\"Н\")+COUNTIF(ПрисъствиеАприл[26],\"И\")","v":0},{"$f":"COUNTIF(ПрисъствиеАприл[27],\"Н\")+COUNTIF(ПрисъствиеАприл[27],\"И\")","v":0},{"$f":"COUNTIF(ПрисъствиеАприл[28],\"Н\")+COUNTIF(ПрисъствиеАприл[28],\"И\")","v":0},{"$f":"COUNTIF(ПрисъствиеАприл[29],\"Н\")+COUNTIF(ПрисъствиеАприл[29],\"И\")","v":0},{"$f":"COUNTIF(ПрисъствиеАприл[30],\"Н\")+COUNTIF(ПрисъствиеАприл[30],\"И\")","v":0},{"$f":"COUNTIF(ПрисъствиеАприл[[ ]],\"Н\")+COUNTIF(ПрисъствиеАприл[[ ]],\"И\")","v":0},{"$f":"SUBTOTAL(109,ПрисъствиеАприл[З])","v":0},{"$f":"SUBTOTAL(109,ПрисъствиеАприл[И])","v":0},{"$f":"SUBTOTAL(109,ПрисъствиеАприл[Н])","v":0},{"$f":"SUBTOTAL(109,ПрисъствиеАприл[П])","v":0},{"$f":"SUBTOTAL(109,ПрисъствиеАприл[Дни отсъствие])","v":0}]

{"sheet":"Май","index":11,"n_rows":12,"n_cols":39,"rows_kept":12,"merged":[[4,34,4,38]]}
["ЗАПИС ЗА ПРИСЪСТВИЕ НА УЧАЩИ",{"$nulls":36},"Начало на учебната година:",{"$f":"КалендарнаГодина","v":2012}]
[]
[null,null,{"$f":"ТекстЦветовиКлюч","v":"КЛЮЧ ЗА ЦВЕТОВЕТЕ "},{"$f":"Код1","v":"З"},{"$f":"Код1Текст","v":"Закъснение"},null,null,{"$f":"Код2","v":"И"},{"$f":"Код2Текст","v":"Извинен"},null,null,{"$f":"Код3","v":"Н"},{"$f":"Код3Текст","v":"Неизвинен"},null,null,{"$f":"Код4","v":"П"},{"$f":"Код4Текст","v":"Присъстващ"},null,null,{"$f":"Код5","v":"Б"},{"$f":"Код5Текст","v":"Без училище"}]
[]
[null,{"$f":"DATE(КалендарнаГодина+1,5,1)","v":"2013-05-01"},null,{"$f":"TEXT(WEEKDAY(DATE(КалендарнаГодина+1,5,1),1),\"aaa\")","v":"ср"},{"$f":"TEXT(WEEKDAY(DATE(КалендарнаГодина+1,5,2),1),\"aaa\")","v":"четв"},{"$f":"TEXT(WEEKDAY(DATE(КалендарнаГодина+1,5,3),1),\"aaa\")","v":"пет"},{"$f":"TEXT(WEEKDAY(DATE(КалендарнаГодина+1,5,4),1),\"aaa\")","v":"съб"},{"$f":"TEXT(WEEKDAY(DATE(КалендарнаГодина+1,5,5),1),\"aaa\")","v":"нед"},{"$f":"TEXT(WEEKDAY(DATE(КалендарнаГодина+1,5,6),1),\"aaa\")","v":"пон"},{"$f":"TEXT(WEEKDAY(DATE(КалендарнаГодина+1,5,7),1),\"aaa\")","v":"вт"},{"$f":"TEXT(WEEKDAY(DATE(КалендарнаГодина+1,5,8),1),\"aaa\")","v":"ср"},{"$f":"TEXT(WEEKDAY(DATE(КалендарнаГодина+1,5,9),1),\"aaa\")","v":"четв"},{"$f":"TEXT(WEEKDAY(DATE(КалендарнаГодина+1,5,10),1),\"aaa\")","v":"пет"},{"$f":"TEXT(WEEKDAY(DATE(КалендарнаГодина+1,5,11),1),\"aaa\")","v":"съб"},{"$f":"TEXT(WEEKDAY(DATE(КалендарнаГодина+1,5,12),1),\"aaa\")","v":"нед"},{"$f":"TEXT(WEEKDAY(DATE(КалендарнаГодина+1,5,13),1),\"aaa\")","v":"пон"},{"$f":"TEXT(WEEKDAY(DATE(КалендарнаГодина+1,5,14),1),\"aaa\")","v":"вт"},{"$f":"TEXT(WEEKDAY(DATE(КалендарнаГодина+1,5,15),1),\"aaa\")","v":"ср"},{"$f":"TEXT(WEEKDAY(DATE(КалендарнаГодина+1,5,16),1),\"aaa\")","v":"четв"},{"$f":"TEXT(WEEKDAY(DATE(КалендарнаГодина+1,5,17),1),\"aaa\")","v":"пет"},{"$f":"TEXT(WEEKDAY(DATE(КалендарнаГодина+1,5,18),1),\"aaa\")","v":"съб"},{"$f":"TEXT(WEEKDAY(DATE(КалендарнаГодина+1,5,19),1),\"aaa\")","v":"нед"},{"$f":"TEXT(WEEKDAY(DATE(КалендарнаГодина+1,5,20),1),\"aaa\")","v":"пон"},{"$f":"TEXT(WEEKDAY(DATE(КалендарнаГодина+1,5,21),1),\"aaa\")","v":"вт"},{"$f":"TEXT(WEEKDAY(DATE(КалендарнаГодина+1,5,22),1),\"aaa\")","v":"ср"},{"$f":"TEXT(WEEKDAY(DATE(КалендарнаГодина+1,5,23),1),\"aaa\")","v":"четв"},{"$f":"TEXT(WEEKDAY(DATE(КалендарнаГодина+1,5,24),1),\"aaa\")","v":"пет"},{"$f":"TEXT(WEEKDAY(DATE(КалендарнаГодина+1,5,25),1),\"aaa\")","v":"съб"},{"$f":"TEXT(WEEKDAY(DATE(КалендарнаГодина+1,5,26),1),\"aaa\")","v":"нед"},{"$f":"TEXT(WEEKDAY(DATE(КалендарнаГодина+1,5,27),1),\"aaa\")","v":"пон"},{"$f":"TEXT(WEEKDAY(DATE(КалендарнаГодина+1,5,28),1),\"aaa\")","v":"вт"},{"$f":"TEXT(WEEKDAY(DATE(КалендарнаГодина+1,5,29),1),\"aaa\")","v":"ср"},{"$f":"TEXT(WEEKDAY(DATE(КалендарнаГодина+1,5,30),1),\"aaa\")","v":"четв"},{"$f":"TEXT(WEEKDAY(DATE(КалендарнаГодина+1,5,31),1),\"aaa\")","v":"пет"},"Общо"]
[null,"ИД на учащ","Име на учащ","1","2","3","4","5","6","7","8","9","10","11","12","13","14","15","16","17","18","19","20","21","22","23","24","25","26","27","28","29","30","31","З","И","Н","П","Дни отсъствие"]
[null,null,{"$f":"IFERROR(VLOOKUP(ПрисъствиеМай[[#This Row],[ИД на учащ]],СписъкУчащи[],18,FALSE),\"\")","v":""},{"$nulls":31},{"$f":"COUNTIF(ПрисъствиеМай[[#This Row],[1]:[31]],Код1)","v":0},{"$f":"COUNTIF(ПрисъствиеМай[[#This Row],[1]:[31]],Код2)","v":0},{"$f":"COUNTIF(ПрисъствиеМай[[#This Row],[1]:[31]],Код3)","v":0},{"$f":"COUNTIF(ПрисъствиеМай[[#This Row],[1]:[31]],Код4)","v":0},{"$f":"SUM(ПрисъствиеМай[[#This Row],[И]:[Н]])","v":0}]
[null,null,{"$f":"IFERROR(VLOOKUP(ПрисъствиеМай[[#This Row],[ИД на учащ]],СписъкУчащи[],18,FALSE),\"\")","v":""},{"$nulls":31},{"$f":"COUNTIF(ПрисъствиеМай[[#This Row],[1]:[31]],Код1)","v":0},{"$f":"COUNTIF(ПрисъствиеМай[[#This Row],[1]:[31]],Код2)","v":0},{"$f":"COUNTIF(ПрисъствиеМай[[#This Row],[1]:[31]],Код3)","v":0},{"$f":"COUNTIF(ПрисъствиеМай[[#This Row],[1]:[31]],Код4)","v":0},{"$f":"SUM(ПрисъствиеМай[[#This Row],[И]:[Н]])","v":0}]
[null,null,{"$f":"IFERROR(VLOOKUP(ПрисъствиеМай[[#This Row],[ИД на учащ]],СписъкУчащи[],18,FALSE),\"\")","v":""},{"$nulls":31},{"$f":"COUNTIF(ПрисъствиеМай[[#This Row],[1]:[31]],Код1)","v":0},{"$f":"COUNTIF(ПрисъствиеМай[[#This Row],[1]:[31]],Код2)","v":0},{"$f":"COUNTIF(ПрисъствиеМай[[#This Row],[1]:[31]],Код3)","v":0},{"$f":"COUNTIF(ПрисъствиеМай[[#This Row],[1]:[31]],Код4)","v":0},{"$f":"SUM(ПрисъствиеМай[[#This Row],[И]:[Н]])","v":0}]
[null,null,{"$f":"IFERROR(VLOOKUP(ПрисъствиеМай[[#This Row],[ИД на учащ]],СписъкУчащи[],18,FALSE),\"\")","v":""},{"$nulls":31},{"$f":"COUNTIF(ПрисъствиеМай[[#This Row],[1]:[31]],Код1)","v":0},{"$f":"COUNTIF(ПрисъствиеМай[[#This Row],[1]:[31]],Код2)","v":0},{"$f":"COUNTIF(ПрисъствиеМай[[#This Row],[1]:[31]],Код3)","v":0},{"$f":"COUNTIF(ПрисъствиеМай[[#This Row],[1]:[31]],Код4)","v":0},{"$f":"SUM(ПрисъствиеМай[[#This Row],[И]:[Н]])","v":0}]
[null,null,{"$f":"IFERROR(VLOOKUP(ПрисъствиеМай[[#This Row],[ИД на учащ]],СписъкУчащи[],18,FALSE),\"\")","v":""},{"$nulls":31},{"$f":"COUNTIF(ПрисъствиеМай[[#This Row],[1]:[31]],Код1)","v":0},{"$f":"COUNTIF(ПрисъствиеМай[[#This Row],[1]:[31]],Код2)","v":0},{"$f":"COUNTIF(ПрисъствиеМай[[#This Row],[1]:[31]],Код3)","v":0},{"$f":"COUNTIF(ПрисъствиеМай[[#This Row],[1]:[31]],Код4)","v":0},{"$f":"SUM(ПрисъствиеМай[[#This Row],[И]:[Н]])","v":0}]
[null,null,"Общо дни отсъствие",{"$f":"COUNTIF(ПрисъствиеМай[1],\"Н\")+COUNTIF(ПрисъствиеМай[1],\"И\")","v":0},{"$f":"COUNTIF(ПрисъствиеМай[2],\"Н\")+COUNTIF(ПрисъствиеМай[2],\"И\")","v":0},{"$f":"COUNTIF(ПрисъствиеМай[3],\"Н\")+COUNTIF(ПрисъствиеМай[3],\"И\")","v":0},{"$f":"COUNTIF(ПрисъствиеМай[4],\"Н\")+COUNTIF(ПрисъствиеМай[4],\"И\")","v":0},{"$f":"COUNTIF(ПрисъствиеМай[5],\"Н\")+COUNTIF(ПрисъствиеМай[5],\"И\")","v":0},{"$f":"COUNTIF(ПрисъствиеМай[6],\"Н\")+COUNTIF(ПрисъствиеМай[6],\"И\")","v":0},{"$f":"COUNTIF(ПрисъствиеМай[7],\"Н\")+COUNTIF(ПрисъствиеМай[7],\"И\")","v":0},{"$f":"COUNTIF(ПрисъствиеМай[8],\"Н\")+COUNTIF(ПрисъствиеМай[8],\"И\")","v":0},{"$f":"COUNTIF(ПрисъствиеМай[9],\"Н\")+COUNTIF(ПрисъствиеМай[9],\"И\")","v":0},{"$f":"COUNTIF(ПрисъствиеМай[10],\"Н\")+COUNTIF(ПрисъствиеМай[10],\"И\")","v":0},{"$f":"COUNTIF(ПрисъствиеМай[11],\"Н\")+COUNTIF(ПрисъствиеМай[11],\"И\")","v":0},{"$f":"COUNTIF(ПрисъствиеМай[12],\"Н\")+COUNTIF(ПрисъствиеМай[12],\"И\")","v":0},{"$f":"COUNTIF(ПрисъствиеМай[13],\"Н\")+COUNTIF(ПрисъствиеМай[13],\"И\")","v":0},{"$f":"COUNTIF(ПрисъствиеМай[14],\"Н\")+COUNTIF(ПрисъствиеМай[14],\"И\")","v":0},{"$f":"COUNTIF(ПрисъствиеМай[15],\"Н\")+COUNTIF(ПрисъствиеМай[15],\"И\")","v":0},{"$f":"COUNTIF(ПрисъствиеМай[16],\"Н\")+COUNTIF(ПрисъствиеМай[16],\"И\")","v":0},{"$f":"COUNTIF(ПрисъствиеМай[17],\"Н\")+COUNTIF(ПрисъствиеМай[17],\"И\")","v":0},{"$f":"COUNTIF(ПрисъствиеМай[18],\"Н\")+COUNTIF(ПрисъствиеМай[18],\"И\")","v":0},{"$f":"COUNTIF(ПрисъствиеМай[19],\"Н\")+COUNTIF(ПрисъствиеМай[19],\"И\")","v":0},{"$f":"COUNTIF(ПрисъствиеМай[20],\"Н\")+COUNTIF(ПрисъствиеМай[20],\"И\")","v":0},{"$f":"COUNTIF(ПрисъствиеМай[21],\"Н\")+COUNTIF(ПрисъствиеМай[21],\"И\")","v":0},{"$f":"COUNTIF(ПрисъствиеМай[22],\"Н\")+COUNTIF(ПрисъствиеМай[22],\"И\")","v":0},{"$f":"COUNTIF(ПрисъствиеМай[23],\"Н\")+COUNTIF(ПрисъствиеМай[23],\"И\")","v":0},{"$f":"COUNTIF(ПрисъствиеМай[24],\"Н\")+COUNTIF(ПрисъствиеМай[24],\"И\")","v":0},{"$f":"COUNTIF(ПрисъствиеМай[25],\"Н\")+COUNTIF(ПрисъствиеМай[25],\"И\")","v":0},{"$f":"COUNTIF(ПрисъствиеМай[26],\"Н\")+COUNTIF(ПрисъствиеМай[26],\"И\")","v":0},{"$f":"COUNTIF(ПрисъствиеМай[27],\"Н\")+COUNTIF(ПрисъствиеМай[27],\"И\")","v":0},{"$f":"COUNTIF(ПрисъствиеМай[28],\"Н\")+COUNTIF(ПрисъствиеМай[28],\"И\")","v":0},{"$f":"COUNTIF(ПрисъствиеМай[29],\"Н\")+COUNTIF(ПрисъствиеМай[29],\"И\")","v":0},{"$f":"COUNTIF(ПрисъствиеМай[30],\"Н\")+COUNTIF(ПрисъствиеМай[30],\"И\")","v":0},{"$f":"COUNTIF(ПрисъствиеМай[31],\"Н\")+COUNTIF(ПрисъствиеМай[31],\"И\")","v":0},{"$f":"SUBTOTAL(109,ПрисъствиеМай[З])","v":0},{"$f":"SUBTOTAL(109,ПрисъствиеМай[И])","v":0},{"$f":"SUBTOTAL(109,ПрисъствиеМай[Н])","v":0},{"$f":"SUBTOTAL(109,ПрисъствиеМай[П])","v":0},{"$f":"SUBTOTAL(109,ПрисъствиеМай[Дни отсъствие])","v":0}]

{"sheet":"Юни","index":12,"n_rows":12,"n_cols":39,"rows_kept":12,"merged":[[4,34,4,38]]}
["ЗАПИС ЗА ПРИСЪСТВИЕ НА УЧАЩИ",{"$nulls":36},"Начало на учебната година:",{"$f":"КалендарнаГодина","v":2012}]
[]
[null,null,{"$f":"ТекстЦветовиКлюч","v":"КЛЮЧ ЗА ЦВЕТОВЕТЕ "},{"$f":"Код1","v":"З"},{"$f":"Код1Текст","v":"Закъснение"},null,null,{"$f":"Код2","v":"И"},{"$f":"Код2Текст","v":"Извинен"},null,null,{"$f":"Код3","v":"Н"},{"$f":"Код3Текст","v":"Неизвинен"},null,null,{"$f":"Код4","v":"П"},{"$f":"Код4Текст","v":"Присъстващ"},null,null,{"$f":"Код5","v":"Б"},{"$f":"Код5Текст","v":"Без училище"}]
[]
[null,{"$f":"DATE(КалендарнаГодина+1,6,1)","v":"2013-06-01"},null,{"$f":"TEXT(WEEKDAY(DATE(КалендарнаГодина+1,6,1),1),\"aaa\")","v":"съб"},{"$f":"TEXT(WEEKDAY(DATE(КалендарнаГодина+1,6,2),1),\"aaa\")","v":"нед"},{"$f":"TEXT(WEEKDAY(DATE(КалендарнаГодина+1,6,3),1),\"aaa\")","v":"пон"},{"$f":"TEXT(WEEKDAY(DATE(КалендарнаГодина+1,6,4),1),\"aaa\")","v":"вт"},{"$f":"TEXT(WEEKDAY(DATE(КалендарнаГодина+1,6,5),1),\"aaa\")","v":"ср"},{"$f":"TEXT(WEEKDAY(DATE(КалендарнаГодина+1,6,6),1),\"aaa\")","v":"четв"},{"$f":"TEXT(WEEKDAY(DATE(КалендарнаГодина+1,6,7),1),\"aaa\")","v":"пет"},{"$f":"TEXT(WEEKDAY(DATE(КалендарнаГодина+1,6,8),1),\"aaa\")","v":"съб"},{"$f":"TEXT(WEEKDAY(DATE(КалендарнаГодина+1,6,9),1),\"aaa\")","v":"нед"},{"$f":"TEXT(WEEKDAY(DATE(КалендарнаГодина+1,6,10),1),\"aaa\")","v":"пон"},{"$f":"TEXT(WEEKDAY(DATE(КалендарнаГодина+1,6,11),1),\"aaa\")","v":"вт"},{"$f":"TEXT(WEEKDAY(DATE(КалендарнаГодина+1,6,12),1),\"aaa\")","v":"ср"},{"$f":"TEXT(WEEKDAY(DATE(КалендарнаГодина+1,6,13),1),\"aaa\")","v":"четв"},{"$f":"TEXT(WEEKDAY(DATE(КалендарнаГодина+1,6,14),1),\"aaa\")","v":"пет"},{"$f":"TEXT(WEEKDAY(DATE(КалендарнаГодина+1,6,15),1),\"aaa\")","v":"съб"},{"$f":"TEXT(WEEKDAY(DATE(КалендарнаГодина+1,6,16),1),\"aaa\")","v":"нед"},{"$f":"TEXT(WEEKDAY(DATE(КалендарнаГодина+1,6,17),1),\"aaa\")","v":"пон"},{"$f":"TEXT(WEEKDAY(DATE(КалендарнаГодина+1,6,18),1),\"aaa\")","v":"вт"},{"$f":"TEXT(WEEKDAY(DATE(КалендарнаГодина+1,6,19),1),\"aaa\")","v":"ср"},{"$f":"TEXT(WEEKDAY(DATE(КалендарнаГодина+1,6,20),1),\"aaa\")","v":"четв"},{"$f":"TEXT(WEEKDAY(DATE(КалендарнаГодина+1,6,21),1),\"aaa\")","v":"пет"},{"$f":"TEXT(WEEKDAY(DATE(КалендарнаГодина+1,6,22),1),\"aaa\")","v":"съб"},{"$f":"TEXT(WEEKDAY(DATE(КалендарнаГодина+1,6,23),1),\"aaa\")","v":"нед"},{"$f":"TEXT(WEEKDAY(DATE(КалендарнаГодина+1,6,24),1),\"aaa\")","v":"пон"},{"$f":"TEXT(WEEKDAY(DATE(КалендарнаГодина+1,6,25),1),\"aaa\")","v":"вт"},{"$f":"TEXT(WEEKDAY(DATE(КалендарнаГодина+1,6,26),1),\"aaa\")","v":"ср"},{"$f":"TEXT(WEEKDAY(DATE(КалендарнаГодина+1,6,27),1),\"aaa\")","v":"четв"},{"$f":"TEXT(WEEKDAY(DATE(КалендарнаГодина+1,6,28),1),\"aaa\")","v":"пет"},{"$f":"TEXT(WEEKDAY(DATE(КалендарнаГодина+1,6,29),1),\"aaa\")","v":"съб"},{"$f":"TEXT(WEEKDAY(DATE(КалендарнаГодина+1,6,30),1),\"aaa\")","v":"нед"},null,"Общо"]
[null,"ИД на учащ","Име на учащ","1","2","3","4","5","6","7","8","9","10","11","12","13","14","15","16","17","18","19","20","21","22","23","24","25","26","27","28","29","30"," ","З","И","Н","П","Дни отсъствие"]
[null,null,{"$f":"IFERROR(VLOOKUP(ПрисъствиеЮни[[#This Row],[ИД на учащ]],СписъкУчащи[],18,FALSE),\"\")","v":""},{"$nulls":31},{"$f":"COUNTIF(ПрисъствиеЮни[[#This Row],[1]:[ ]],Код1)","v":0},{"$f":"COUNTIF(ПрисъствиеЮни[[#This Row],[1]:[ ]],Код2)","v":0},{"$f":"COUNTIF(ПрисъствиеЮни[[#This Row],[1]:[ ]],Код3)","v":0},{"$f":"COUNTIF(ПрисъствиеЮни[[#This Row],[1]:[ ]],Код4)","v":0},{"$f":"SUM(ПрисъствиеЮни[[#This Row],[И]:[Н]])","v":0}]
[null,null,{"$f":"IFERROR(VLOOKUP(ПрисъствиеЮни[[#This Row],[ИД на учащ]],СписъкУчащи[],18,FALSE),\"\")","v":""},{"$nulls":31},{"$f":"COUNTIF(ПрисъствиеЮни[[#This Row],[1]:[ ]],Код1)","v":0},{"$f":"COUNTIF(ПрисъствиеЮни[[#This Row],[1]:[ ]],Код2)","v":0},{"$f":"COUNTIF(ПрисъствиеЮни[[#This Row],[1]:[ ]],Код3)","v":0},{"$f":"COUNTIF(ПрисъствиеЮни[[#This Row],[1]:[ ]],Код4)","v":0},{"$f":"SUM(ПрисъствиеЮни[[#This Row],[И]:[Н]])","v":0}]
[null,null,{"$f":"IFERROR(VLOOKUP(ПрисъствиеЮни[[#This Row],[ИД на учащ]],СписъкУчащи[],18,FALSE),\"\")","v":""},{"$nulls":31},{"$f":"COUNTIF(ПрисъствиеЮни[[#This Row],[1]:[ ]],Код1)","v":0},{"$f":"COUNTIF(ПрисъствиеЮни[[#This Row],[1]:[ ]],Код2)","v":0},{"$f":"COUNTIF(ПрисъствиеЮни[[#This Row],[1]:[ ]],Код3)","v":0},{"$f":"COUNTIF(ПрисъствиеЮни[[#This Row],[1]:[ ]],Код4)","v":0},{"$f":"SUM(ПрисъствиеЮни[[#This Row],[И]:[Н]])","v":0}]
[null,null,{"$f":"IFERROR(VLOOKUP(ПрисъствиеЮни[[#This Row],[ИД на учащ]],СписъкУчащи[],18,FALSE),\"\")","v":""},{"$nulls":31},{"$f":"COUNTIF(ПрисъствиеЮни[[#This Row],[1]:[ ]],Код1)","v":0},{"$f":"COUNTIF(ПрисъствиеЮни[[#This Row],[1]:[ ]],Код2)","v":0},{"$f":"COUNTIF(ПрисъствиеЮни[[#This Row],[1]:[ ]],Код3)","v":0},{"$f":"COUNTIF(ПрисъствиеЮни[[#This Row],[1]:[ ]],Код4)","v":0},{"$f":"SUM(ПрисъствиеЮни[[#This Row],[И]:[Н]])","v":0}]
[null,null,{"$f":"IFERROR(VLOOKUP(ПрисъствиеЮни[[#This Row],[ИД на учащ]],СписъкУчащи[],18,FALSE),\"\")","v":""},{"$nulls":31},{"$f":"COUNTIF(ПрисъствиеЮни[[#This Row],[1]:[ ]],Код1)","v":0},{"$f":"COUNTIF(ПрисъствиеЮни[[#This Row],[1]:[ ]],Код2)","v":0},{"$f":"COUNTIF(ПрисъствиеЮни[[#This Row],[1]:[ ]],Код3)","v":0},{"$f":"COUNTIF(ПрисъствиеЮни[[#This Row],[1]:[ ]],Код4)","v":0},{"$f":"SUM(ПрисъствиеЮни[[#This Row],[И]:[Н]])","v":0}]
[null,null,"Общо дни отсъствие",{"$f":"COUNTIF(ПрисъствиеЮни[1],\"Н\")+COUNTIF(ПрисъствиеЮни[1],\"И\")","v":0},{"$f":"COUNTIF(ПрисъствиеЮни[2],\"Н\")+COUNTIF(ПрисъствиеЮни[2],\"И\")","v":0},{"$f":"COUNTIF(ПрисъствиеЮни[3],\"Н\")+COUNTIF(ПрисъствиеЮни[3],\"И\")","v":0},{"$f":"COUNTIF(ПрисъствиеЮни[4],\"Н\")+COUNTIF(ПрисъствиеЮни[4],\"И\")","v":0},{"$f":"COUNTIF(ПрисъствиеЮни[5],\"Н\")+COUNTIF(ПрисъствиеЮни[5],\"И\")","v":0},{"$f":"COUNTIF(ПрисъствиеЮни[6],\"Н\")+COUNTIF(ПрисъствиеЮни[6],\"И\")","v":0},{"$f":"COUNTIF(ПрисъствиеЮни[7],\"Н\")+COUNTIF(ПрисъствиеЮни[7],\"И\")","v":0},{"$f":"COUNTIF(ПрисъствиеЮни[8],\"Н\")+COUNTIF(ПрисъствиеЮни[8],\"И\")","v":0},{"$f":"COUNTIF(ПрисъствиеЮни[9],\"Н\")+COUNTIF(ПрисъствиеЮни[9],\"И\")","v":0},{"$f":"COUNTIF(ПрисъствиеЮни[10],\"Н\")+COUNTIF(ПрисъствиеЮни[10],\"И\")","v":0},{"$f":"COUNTIF(ПрисъствиеЮни[11],\"Н\")+COUNTIF(ПрисъствиеЮни[11],\"И\")","v":0},{"$f":"COUNTIF(ПрисъствиеЮни[12],\"Н\")+COUNTIF(ПрисъствиеЮни[12],\"И\")","v":0},{"$f":"COUNTIF(ПрисъствиеЮни[13],\"Н\")+COUNTIF(ПрисъствиеЮни[13],\"И\")","v":0},{"$f":"COUNTIF(ПрисъствиеЮни[14],\"Н\")+COUNTIF(ПрисъствиеЮни[14],\"И\")","v":0},{"$f":"COUNTIF(ПрисъствиеЮни[15],\"Н\")+COUNTIF(ПрисъствиеЮни[15],\"И\")","v":0},{"$f":"COUNTIF(ПрисъствиеЮни[16],\"Н\")+COUNTIF(ПрисъствиеЮни[16],\"И\")","v":0},{"$f":"COUNTIF(ПрисъствиеЮни[17],\"Н\")+COUNTIF(ПрисъствиеЮни[17],\"И\")","v":0},{"$f":"COUNTIF(ПрисъствиеЮни[18],\"Н\")+COUNTIF(ПрисъствиеЮни[18],\"И\")","v":0},{"$f":"COUNTIF(ПрисъствиеЮни[19],\"Н\")+COUNTIF(ПрисъствиеЮни[19],\"И\")","v":0},{"$f":"COUNTIF(ПрисъствиеЮни[20],\"Н\")+COUNTIF(ПрисъствиеЮни[20],\"И\")","v":0},{"$f":"COUNTIF(ПрисъствиеЮни[21],\"Н\")+COUNTIF(ПрисъствиеЮни[21],\"И\")","v":0},{"$f":"COUNTIF(ПрисъствиеЮни[22],\"Н\")+COUNTIF(ПрисъствиеЮни[22],\"И\")","v":0},{"$f":"COUNTIF(ПрисъствиеЮни[23],\"Н\")+COUNTIF(ПрисъствиеЮни[23],\"И\")","v":0},{"$f":"COUNTIF(ПрисъствиеЮни[24],\"Н\")+COUNTIF(ПрисъствиеЮни[24],\"И\")","v":0},{"$f":"COUNTIF(ПрисъствиеЮни[25],\"Н\")+COUNTIF(ПрисъствиеЮни[25],\"И\")","v":0},{"$f":"COUNTIF(ПрисъствиеЮни[26],\"Н\")+COUNTIF(ПрисъствиеЮни[26],\"И\")","v":0},{"$f":"COUNTIF(ПрисъствиеЮни[27],\"Н\")+COUNTIF(ПрисъствиеЮни[27],\"И\")","v":0},{"$f":"COUNTIF(ПрисъствиеЮни[28],\"Н\")+COUNTIF(ПрисъствиеЮни[28],\"И\")","v":0},{"$f":"COUNTIF(ПрисъствиеЮни[29],\"Н\")+COUNTIF(ПрисъствиеЮни[29],\"И\")","v":0},{"$f":"COUNTIF(ПрисъствиеЮни[30],\"Н\")+COUNTIF(ПрисъствиеЮни[30],\"И\")","v":0},{"$f":"COUNTIF(ПрисъствиеЮни[[ ]],\"Н\")+COUNTIF(ПрисъствиеЮни[[ ]],\"И\")","v":0},{"$f":"SUBTOTAL(109,ПрисъствиеЮни[З])","v":0},{"$f":"SUBTOTAL(109,ПрисъствиеЮни[И])","v":0},{"$f":"SUBTOTAL(109,ПрисъствиеЮни[Н])","v":0},{"$f":"SUBTOTAL(109,ПрисъствиеЮни[П])","v":0},{"$f":"SUBTOTAL(109,ПрисъствиеЮни[Дни отсъствие])","v":0}]

{"sheet":"Юли","index":13,"n_rows":12,"n_cols":39,"rows_kept":12,"merged":[[4,34,4,38]]}
["ЗАПИС ЗА ПРИСЪСТВИЕ НА УЧАЩИ",{"$nulls":36},"Начало на учебната година:",{"$f":"КалендарнаГодина","v":2012}]
[]
[null,null,{"$f":"ТекстЦветовиКлюч","v":"КЛЮЧ ЗА ЦВЕТОВЕТЕ "},{"$f":"Код1","v":"З"},{"$f":"Код1Текст","v":"Закъснение"},null,null,{"$f":"Код2","v":"И"},{"$f":"Код2Текст","v":"Извинен"},null,null,{"$f":"Код3","v":"Н"},{"$f":"Код3Текст","v":"Неизвинен"},null,null,{"$f":"Код4","v":"П"},{"$f":"Код4Текст","v":"Присъстващ"},null,null,{"$f":"Код5","v":"Б"},{"$f":"Код5Текст","v":"Без училище"}]
[]
[null,{"$f":"DATE(КалендарнаГодина+1,7,1)","v":"2013-07-01"},null,{"$f":"TEXT(WEEKDAY(DATE(КалендарнаГодина+1,7,1),1),\"aaa\")","v":"пон"},{"$f":"TEXT(WEEKDAY(DATE(КалендарнаГодина+1,7,2),1),\"aaa\")","v":"вт"},{"$f":"TEXT(WEEKDAY(DATE(КалендарнаГодина+1,7,3),1),\"aaa\")","v":"ср"},{"$f":"TEXT(WEEKDAY(DATE(КалендарнаГодина+1,7,4),1),\"aaa\")","v":"четв"},{"$f":"TEXT(WEEKDAY(DATE(КалендарнаГодина+1,7,5),1),\"aaa\")","v":"пет"},{"$f":"TEXT(WEEKDAY(DATE(КалендарнаГодина+1,7,6),1),\"aaa\")","v":"съб"},{"$f":"TEXT(WEEKDAY(DATE(КалендарнаГодина+1,7,7),1),\"aaa\")","v":"нед"},{"$f":"TEXT(WEEKDAY(DATE(КалендарнаГодина+1,7,8),1),\"aaa\")","v":"пон"},{"$f":"TEXT(WEEKDAY(DATE(КалендарнаГодина+1,7,9),1),\"aaa\")","v":"вт"},{"$f":"TEXT(WEEKDAY(DATE(КалендарнаГодина+1,7,10),1),\"aaa\")","v":"ср"},{"$f":"TEXT(WEEKDAY(DATE(КалендарнаГодина+1,7,11),1),\"aaa\")","v":"четв"},{"$f":"TEXT(WEEKDAY(DATE(КалендарнаГодина+1,7,12),1),\"aaa\")","v":"пет"},{"$f":"TEXT(WEEKDAY(DATE(КалендарнаГодина+1,7,13),1),\"aaa\")","v":"съб"},{"$f":"TEXT(WEEKDAY(DATE(КалендарнаГодина+1,7,14),1),\"aaa\")","v":"нед"},{"$f":"TEXT(WEEKDAY(DATE(КалендарнаГодина+1,7,15),1),\"aaa\")","v":"пон"},{"$f":"TEXT(WEEKDAY(DATE(КалендарнаГодина+1,7,16),1),\"aaa\")","v":"вт"},{"$f":"TEXT(WEEKDAY(DATE(КалендарнаГодина+1,7,17),1),\"aaa\")","v":"ср"},{"$f":"TEXT(WEEKDAY(DATE(КалендарнаГодина+1,7,18),1),\"aaa\")","v":"четв"},{"$f":"TEXT(WEEKDAY(DATE(КалендарнаГодина+1,7,19),1),\"aaa\")","v":"пет"},{"$f":"TEXT(WEEKDAY(DATE(КалендарнаГодина+1,7,20),1),\"aaa\")","v":"съб"},{"$f":"TEXT(WEEKDAY(DATE(КалендарнаГодина+1,7,21),1),\"aaa\")","v":"нед"},{"$f":"TEXT(WEEKDAY(DATE(КалендарнаГодина+1,7,22),1),\"aaa\")","v":"пон"},{"$f":"TEXT(WEEKDAY(DATE(КалендарнаГодина+1,7,23),1),\"aaa\")","v":"вт"},{"$f":"TEXT(WEEKDAY(DATE(КалендарнаГодина+1,7,24),1),\"aaa\")","v":"ср"},{"$f":"TEXT(WEEKDAY(DATE(КалендарнаГодина+1,7,25),1),\"aaa\")","v":"четв"},{"$f":"TEXT(WEEKDAY(DATE(КалендарнаГодина+1,7,26),1),\"aaa\")","v":"пет"},{"$f":"TEXT(WEEKDAY(DATE(КалендарнаГодина+1,7,27),1),\"aaa\")","v":"съб"},{"$f":"TEXT(WEEKDAY(DATE(КалендарнаГодина+1,7,28),1),\"aaa\")","v":"нед"},{"$f":"TEXT(WEEKDAY(DATE(КалендарнаГодина+1,7,29),1),\"aaa\")","v":"пон"},{"$f":"TEXT(WEEKDAY(DATE(КалендарнаГодина+1,7,30),1),\"aaa\")","v":"вт"},{"$f":"TEXT(WEEKDAY(DATE(КалендарнаГодина+1,7,31),1),\"aaa\")","v":"ср"},"Общо"]
[null,"ИД на учащ","Име на учащ","1","2","3","4","5","6","7","8","9","10","11","12","13","14","15","16","17","18","19","20","21","22","23","24","25","26","27","28","29","30","31","З","И","Н","П","Дни отсъствие"]
[null,null,{"$f":"IFERROR(VLOOKUP(ПрисъствиеЮли[[#This Row],[ИД на учащ]],СписъкУчащи[],18,FALSE),\"\")","v":""},{"$nulls":31},{"$f":"COUNTIF(ПрисъствиеЮли[[#This Row],[1]:[31]],Код1)","v":0},{"$f":"COUNTIF(ПрисъствиеЮли[[#This Row],[1]:[31]],Код2)","v":0},{"$f":"COUNTIF(ПрисъствиеЮли[[#This Row],[1]:[31]],Код3)","v":0},{"$f":"COUNTIF(ПрисъствиеЮли[[#This Row],[1]:[31]],Код4)","v":0},{"$f":"SUM(ПрисъствиеЮли[[#This Row],[И]:[Н]])","v":0}]
[null,null,{"$f":"IFERROR(VLOOKUP(ПрисъствиеЮли[[#This Row],[ИД на учащ]],СписъкУчащи[],18,FALSE),\"\")","v":""},{"$nulls":31},{"$f":"COUNTIF(ПрисъствиеЮли[[#This Row],[1]:[31]],Код1)","v":0},{"$f":"COUNTIF(ПрисъствиеЮли[[#This Row],[1]:[31]],Код2)","v":0},{"$f":"COUNTIF(ПрисъствиеЮли[[#This Row],[1]:[31]],Код3)","v":0},{"$f":"COUNTIF(ПрисъствиеЮли[[#This Row],[1]:[31]],Код4)","v":0},{"$f":"SUM(ПрисъствиеЮли[[#This Row],[И]:[Н]])","v":0}]
[null,null,{"$f":"IFERROR(VLOOKUP(ПрисъствиеЮли[[#This Row],[ИД на учащ]],СписъкУчащи[],18,FALSE),\"\")","v":""},{"$nulls":31},{"$f":"COUNTIF(ПрисъствиеЮли[[#This Row],[1]:[31]],Код1)","v":0},{"$f":"COUNTIF(ПрисъствиеЮли[[#This Row],[1]:[31]],Код2)","v":0},{"$f":"COUNTIF(ПрисъствиеЮли[[#This Row],[1]:[31]],Код3)","v":0},{"$f":"COUNTIF(ПрисъствиеЮли[[#This Row],[1]:[31]],Код4)","v":0},{"$f":"SUM(ПрисъствиеЮли[[#This Row],[И]:[Н]])","v":0}]
[null,null,{"$f":"IFERROR(VLOOKUP(ПрисъствиеЮли[[#This Row],[ИД на учащ]],СписъкУчащи[],18,FALSE),\"\")","v":""},{"$nulls":31},{"$f":"COUNTIF(ПрисъствиеЮли[[#This Row],[1]:[31]],Код1)","v":0},{"$f":"COUNTIF(ПрисъствиеЮли[[#This Row],[1]:[31]],Код2)","v":0},{"$f":"COUNTIF(ПрисъствиеЮли[[#This Row],[1]:[31]],Код3)","v":0},{"$f":"COUNTIF(ПрисъствиеЮли[[#This Row],[1]:[31]],Код4)","v":0},{"$f":"SUM(ПрисъствиеЮли[[#This Row],[И]:[Н]])","v":0}]
[null,null,{"$f":"IFERROR(VLOOKUP(ПрисъствиеЮли[[#This Row],[ИД на учащ]],СписъкУчащи[],18,FALSE),\"\")","v":""},{"$nulls":31},{"$f":"COUNTIF(ПрисъствиеЮли[[#This Row],[1]:[31]],Код1)","v":0},{"$f":"COUNTIF(ПрисъствиеЮли[[#This Row],[1]:[31]],Код2)","v":0},{"$f":"COUNTIF(ПрисъствиеЮли[[#This Row],[1]:[31]],Код3)","v":0},{"$f":"COUNTIF(ПрисъствиеЮли[[#This Row],[1]:[31]],Код4)","v":0},{"$f":"SUM(ПрисъствиеЮли[[#This Row],[И]:[Н]])","v":0}]
[null,null,"Общо дни отсъствие",{"$f":"COUNTIF(ПрисъствиеЮли[1],\"Н\")+COUNTIF(ПрисъствиеЮли[1],\"И\")","v":0},{"$f":"COUNTIF(ПрисъствиеЮли[2],\"Н\")+COUNTIF(ПрисъствиеЮли[2],\"И\")","v":0},{"$f":"COUNTIF(ПрисъствиеЮли[3],\"Н\")+COUNTIF(ПрисъствиеЮли[3],\"И\")","v":0},{"$f":"COUNTIF(ПрисъствиеЮли[4],\"Н\")+COUNTIF(ПрисъствиеЮли[4],\"И\")","v":0},{"$f":"COUNTIF(ПрисъствиеЮли[5],\"Н\")+COUNTIF(ПрисъствиеЮли[5],\"И\")","v":0},{"$f":"COUNTIF(ПрисъствиеЮли[6],\"Н\")+COUNTIF(ПрисъствиеЮли[6],\"И\")","v":0},{"$f":"COUNTIF(ПрисъствиеЮли[7],\"Н\")+COUNTIF(ПрисъствиеЮли[7],\"И\")","v":0},{"$f":"COUNTIF(ПрисъствиеЮли[8],\"Н\")+COUNTIF(ПрисъствиеЮли[8],\"И\")","v":0},{"$f":"COUNTIF(ПрисъствиеЮли[9],\"Н\")+COUNTIF(ПрисъствиеЮли[9],\"И\")","v":0},{"$f":"COUNTIF(ПрисъствиеЮли[10],\"Н\")+COUNTIF(ПрисъствиеЮли[10],\"И\")","v":0},{"$f":"COUNTIF(ПрисъствиеЮли[11],\"Н\")+COUNTIF(ПрисъствиеЮли[11],\"И\")","v":0},{"$f":"COUNTIF(ПрисъствиеЮли[12],\"Н\")+COUNTIF(ПрисъствиеЮли[12],\"И\")","v":0},{"$f":"COUNTIF(ПрисъствиеЮли[13],\"Н\")+COUNTIF(ПрисъствиеЮли[13],\"И\")","v":0},{"$f":"COUNTIF(ПрисъствиеЮли[14],\"Н\")+COUNTIF(ПрисъствиеЮли[14],\"И\")","v":0},{"$f":"COUNTIF(ПрисъствиеЮли[15],\"Н\")+COUNTIF(ПрисъствиеЮли[15],\"И\")","v":0},{"$f":"COUNTIF(ПрисъствиеЮли[16],\"Н\")+COUNTIF(ПрисъствиеЮли[16],\"И\")","v":0},{"$f":"COUNTIF(ПрисъствиеЮли[17],\"Н\")+COUNTIF(ПрисъствиеЮли[17],\"И\")","v":0},{"$f":"COUNTIF(ПрисъствиеЮли[18],\"Н\")+COUNTIF(ПрисъствиеЮли[18],\"И\")","v":0},{"$f":"COUNTIF(ПрисъствиеЮли[19],\"Н\")+COUNTIF(ПрисъствиеЮли[19],\"И\")","v":0},{"$f":"COUNTIF(ПрисъствиеЮли[20],\"Н\")+COUNTIF(ПрисъствиеЮли[20],\"И\")","v":0},{"$f":"COUNTIF(ПрисъствиеЮли[21],\"Н\")+COUNTIF(ПрисъствиеЮли[21],\"И\")","v":0},{"$f":"COUNTIF(ПрисъствиеЮли[22],\"Н\")+COUNTIF(ПрисъствиеЮли[22],\"И\")","v":0},{"$f":"COUNTIF(ПрисъствиеЮли[23],\"Н\")+COUNTIF(ПрисъствиеЮли[23],\"И\")","v":0},{"$f":"COUNTIF(ПрисъствиеЮли[24],\"Н\")+COUNTIF(ПрисъствиеЮли[24],\"И\")","v":0},{"$f":"COUNTIF(ПрисъствиеЮли[25],\"Н\")+COUNTIF(ПрисъствиеЮли[25],\"И\")","v":0},{"$f":"COUNTIF(ПрисъствиеЮли[26],\"Н\")+COUNTIF(ПрисъствиеЮли[26],\"И\")","v":0},{"$f":"COUNTIF(ПрисъствиеЮли[27],\"Н\")+COUNTIF(ПрисъствиеЮли[27],\"И\")","v":0},{"$f":"COUNTIF(ПрисъствиеЮли[28],\"Н\")+COUNTIF(ПрисъствиеЮли[28],\"И\")","v":0},{"$f":"COUNTIF(ПрисъствиеЮли[29],\"Н\")+COUNTIF(ПрисъствиеЮли[29],\"И\")","v":0},{"$f":"COUNTIF(ПрисъствиеЮли[30],\"Н\")+COUNTIF(ПрисъствиеЮли[30],\"И\")","v":0},{"$f":"COUNTIF(ПрисъствиеЮли[31],\"Н\")+COUNTIF(ПрисъствиеЮли[31],\"И\")","v":0},{"$f":"SUBTOTAL(109,ПрисъствиеЮли[З])","v":0},{"$f":"SUBTOTAL(109,ПрисъствиеЮли[И])","v":0},{"$f":"SUBTOTAL(109,ПрисъствиеЮли[Н])","v":0},{"$f":"SUBTOTAL(109,ПрисъствиеЮли[П])","v":0},{"$f":"SUBTOTAL(109,ПрисъствиеЮли[Дни отсъствие])","v":0}]

{"sheet":"Отчет за присъствие на учащи","index":14,"n_rows":40,"n_cols":37,"rows_kept":40,"merged":[[2,3,2,14],[2,15,2,17],[2,18,2,21],[2,22,2,29],[2,30,2,31],[2,32,2,35],[3,1,3,2],[3,3,3,14],[3,15,3,17],[3,18,3,21],[3,22,3,29],[3,30,3,31],[3,32,3,35],[4,1,4,9],[4,10,4,21],[4,22,4,29],[4,30,4,36],[5,1,5,9],[5,10,5,21],[5,22,5,29],[5,30,5,36],[6,1,6,9],[6,10,6,21],[6,22,6,29],[6,30,6,36],[7,1,7,9],[7,10,7,21],[7,22,7,29],[7,30,7,36],[8,1,8,9],[8,10,8,21],[8,22,8,29],[8,30,8,36],[9,1,9,9],[9,10,9,21],[9,22,9,29],[9,30,9,36],[13,1,14,32],[13,33,13,36],[15,1,16,1],[15,33,16,33],[15,34,16,34],[15,35,16,35],[15,36,16,36],[17,1,18,1],[17,33,18,33],[17,34,18,34],[17,35,18,35],[17,36,18,36],[19,1,20,1],[19,33,20,33],[19,34,20,34],[19,35,20,35],[19,36,20,36],[21,1,22,1],[21,33,22,33],[21,34,22,34],[21,35,22,35],[21,36,22,36],[23,1,24,1],[23,33,24,33],[23,34,24,34],[23,35,24,35],[23,36,24,36],[25,1,26,1],[25,33,26,33],[25,34,26,34],[25,35,26,35],[25,36,26,36],[27,1,28,1],[27,33,28,33],[27,34,28,34],[27,35,28,35],[27,36,28,36],[29,1,30,1],[29,33,30,33],[29,34,30,34],[29,35,30,35],[29,36,30,36],[31,1,32,1],[31,33,32,33],[31,34,32,34],[31,35,32,35],[31,36,32,36],[33,1,34,1],[33,33,34,33],[33,34,34,34],[33,35,34,35],[33,36,34,36],[35,1,36,1],[35,33,36,33],[35,34,36,34],[35,35,36,35],[35,36,36,36],[37,1,38,1],[37,33,38,33],[37,34,38,34],[37,35,38,35],[37,36,38,36],[39,30,39,32]]}
[{"$f":"\"Запис за присъствието на \"","v":"Запис за присъствието на "},{"$nulls":7},{"$f":"D4","v":"Борислав Белишки"}]
[]
[null,"ИД на учащ",null,"Име на учащ",{"$nulls":11},"Пол",null,null,"Дата на раждане",{"$nulls":3},"Учебно заведение",{"$nulls":7},"Оценка",null,"Преподавател",{"$nulls":3},"Стая"]
[null,"S001",null,{"$f":"IFERROR(VLOOKUP(ТърсенеУчащ,СписъкУчащи[],18,FALSE),\"\")","v":"Борислав Белишки"},{"$nulls":11},{"$f":"IFERROR(VLOOKUP(ТърсенеУчащ,СписъкУчащи[],4,FALSE),\"\")","v":"М"},null,null,{"$f":"IFERROR(VLOOKUP(ТърсенеУчащ,СписъкУчащи[],5,FALSE),\"\")","v":"1997-03-28"},{"$nulls":3},"Училище за изящни изкуства ",{"$nulls":7},7,null,"Мартин Банков",{"$nulls":3},123]
[null,"Име на родител или настойник 1",{"$nulls":8},"Родство",{"$nulls":11},"Служебен телефон",{"$nulls":7},"Домашен телефон"]
[null,{"$f":"IFERROR(VLOOKUP(ТърсенеУчащ,СписъкУчащи[],6,FALSE),\"\")","v":"Костадин"},{"$nulls":8},{"$f":"IFERROR(VLOOKUP(ТърсенеУчащ,СписъкУчащи[],7,FALSE),\"\")","v":"Белишки"},{"$nulls":11},{"$f":"IFERROR(VLOOKUP(ТърсенеУчащ,СписъкУчащи[],8,FALSE),\"\")","v":1235550134},{"$nulls":7},{"$f":"IFERROR(VLOOKUP(ТърсенеУчащ,СписъкУчащи[],9,FALSE),\"\")","v":2345550134}]
[null,"Име на родител или настойник 2",{"$nulls":8},"Родство",{"$nulls":11},"Служебен телефон",{"$nulls":7},"Домашен телефон"]
[null,{"$f":"IFERROR(VLOOKUP(ТърсенеУчащ,СписъкУчащи[],10,FALSE),\"\")","v":"Костадин Белишки"},{"$nulls":8},{"$f":"IFERROR(VLOOKUP(ТърсенеУчащ,СписъкУчащи[],11,FALSE),\"\")","v":"Баща"},{"$nulls":11},{"$f":"IFERROR(VLOOKUP(ТърсенеУчащ,СписъкУчащи[],12,FALSE),\"\")","v":1235550134},{"$nulls":7},{"$f":"IFERROR(VLOOKUP(ТърсенеУчащ,СписъкУчащи[],13,FALSE),\"\")","v":2345550134}]
[null,"Контакт при спешни случаи",{"$nulls":8},"Родство",{"$nulls":11},"Служебен телефон",{"$nulls":7},"Домашен телефон"]
[null,{"$f":"IFERROR(VLOOKUP(ТърсенеУчащ,СписъкУчащи[],14,FALSE),\"\")","v":"Станимир Кирилов"},{"$nulls":8},{"$f":"IFERROR(VLOOKUP(ТърсенеУчащ,СписъкУчащи[],15,FALSE),\"\")","v":"Дядо"},{"$nulls":11},{"$f":"IFERROR(VLOOKUP(ТърсенеУчащ,СписъкУчащи[],16,FALSE),\"\")","v":7895550189},{"$nulls":7},{"$f":"IFERROR(VLOOKUP(ТърсенеУчащ,СписъкУчащи[],17,FALSE),\"\")","v":7895550134}]
[]
[null,{"$f":"Август!C3","v":"КЛЮЧ ЗА ЦВЕТОВЕТЕ "},{"$f":"Август!D3","v":"З"},{"$f":"Август!E3","v":"Закъснение"},{"$nulls":3},{"$f":"Август!H3","v":"И"},{"$f":"Август!I3","v":"Извинен"},null,null,{"$f":"Август!L3","v":"Н"},{"$f":"Август!M3","v":"Неизвинен"},{"$nulls":3},{"$f":"Август!P3","v":"П"},{"$f":"Август!Q3","v":"Присъстващ"},{"$nulls":3},{"$f":"Август!T3","v":"Б"},{"$f":"Август!U3","v":"Без училище"}]
[]
[null,"Присъствие",{"$nulls":31},"Общо присъствия"]
[{"$nulls":33},"З","И","Н","П"]
[null,"Август",1,2,3,4,5,6,7,8,9,10,11,12,13,14,15,16,17,18,19,20,21,22,23,24,25,26,27,28,29,30,31,{"$f":"COUNTIF($D17:$AH17,Код1)","v":2},{"$f":"COUNTIF($D17:$AH17,Код2)","v":1},{"$f":"COUNTIF($D17:$AH17,Код3)","v":0},{"$f":"COUNTIF($D17:$AH17,Код4)","v":19}]
[null,null,{"$f":"IFERROR(VLOOKUP(ТърсенеУчащ,ПрисъствиеАвгуст[],3,FALSE),\"\")","v":"П"},{"$f":"IFERROR(VLOOKUP(ТърсенеУчащ,ПрисъствиеАвгуст[],4,FALSE),\"\")","v":"П"},{"$f":"IFERROR(VLOOKUP(ТърсенеУчащ,ПрисъствиеАвгуст[],5,FALSE),\"\")","v":"З"},{"$f":"IFERROR(VLOOKUP(ТърсенеУчащ,ПрисъствиеАвгуст[],6,FALSE),\"\")","v":"З"},{"$f":"IFERROR(VLOOKUP(ТърсенеУчащ,ПрисъствиеАвгуст[],7,FALSE),\"\")","v":"П"},{"$f":"IFERROR(VLOOKUP(ТърсенеУчащ,ПрисъствиеАвгуст[],8,FALSE),\"\")","v":"Б"},{"$f":"IFERROR(VLOOKUP(ТърсенеУчащ,ПрисъствиеАвгуст[],9,FALSE),\"\")","v":"Б"},{"$f":"IFERROR(VLOOKUP(ТърсенеУчащ,ПрисъствиеАвгуст[],10,FALSE),\"\")","v":"П"},{"$f":"IFERROR(VLOOKUP(ТърсенеУчащ,ПрисъствиеАвгуст[],11,FALSE),\"\")","v":"П"},{"$f":"IFERROR(VLOOKUP(ТърсенеУчащ,ПрисъствиеАвгуст[],12,FALSE),\"\")","v":"И"},{"$f":"IFERROR(VLOOKUP(ТърсенеУчащ,ПрисъствиеАвгуст[],13,FALSE),\"\")","v":"П"},{"$f":"IFERROR(VLOOKUP(ТърсенеУчащ,ПрисъствиеАвгуст[],14,FALSE),\"\")","v":"П"},{"$f":"IFERROR(VLOOKUP(ТърсенеУчащ,ПрисъствиеАвгуст[],15,FALSE),\"\")","v":"Б"},{"$f":"IFERROR(VLOOKUP(ТърсенеУчащ,ПрисъствиеАвгуст[],16,FALSE),\"\")","v":"Б"},{"$f":"IFERROR(VLOOKUP(ТърсенеУчащ,ПрисъствиеАвгуст[],17,FALSE),\"\")","v":"П"},{"$f":"IFERROR(VLOOKUP(ТърсенеУчащ,ПрисъствиеАвгуст[],18,FALSE),\"\")","v":"П"},{"$f":"IFERROR(VLOOKUP(ТърсенеУчащ,ПрисъствиеАвгуст[],19,FALSE),\"\")","v":"П"},{"$f":"IFERROR(VLOOKUP(ТърсенеУчащ,ПрисъствиеАвгуст[],20,FALSE),\"\")","v":"П"},{"$f":"IFERROR(VLOOKUP(ТърсенеУчащ,ПрисъствиеАвгуст[],21,FALSE),\"\")","v":"П"},{"$f":"IFERROR(VLOOKUP(ТърсенеУчащ,ПрисъствиеАвгуст[],22,FALSE),\"\")","v":"Б"},{"$f":"IFERROR(VLOOKUP(ТърсенеУчащ,ПрисъствиеАвгуст[],23,FALSE),\"\")","v":"Б"},{"$f":"IFERROR(VLOOKUP(ТърсенеУчащ,ПрисъствиеАвгуст[],24,FALSE),\"\")","v":"П"},{"$f":"IFERROR(VLOOKUP(ТърсенеУчащ,ПрисъствиеАвгуст[],25,FALSE),\"\")","v":"П"},{"$f":"IFERROR(VLOOKUP(ТърсенеУчащ,ПрисъствиеАвгуст[],26,FALSE),\"\")","v":"П"},{"$f":"IFERROR(VLOOKUP(ТърсенеУчащ,ПрисъствиеАвгуст[],27,FALSE),\"\")","v":"П"},{"$f":"IFERROR(VLOOKUP(ТърсенеУчащ,ПрисъствиеАвгуст[],28,FALSE),\"\")","v":"П"},{"$f":"IFERROR(VLOOKUP(ТърсенеУчащ,ПрисъствиеАвгуст[],29,FALSE),\"\")","v":"Б"},{"$f":"IFERROR(VLOOKUP(ТърсенеУчащ,ПрисъствиеАвгуст[],30,FALSE),\"\")","v":"Б"},{"$f":"IFERROR(VLOOKUP(ТърсенеУчащ,ПрисъствиеАвгуст[],31,FALSE),\"\")","v":"П"},{"$f":"IFERROR(VLOOKUP(ТърсенеУчащ,ПрисъствиеАвгуст[],32,FALSE),\"\")","v":"П"},{"$f":"IFERROR(VLOOKUP(ТърсенеУчащ,ПрисъствиеАвгуст[],33,FALSE),\"\")","v":"П"}]
[null,"Септември",1,2,3,4,5,6,7,8,9,10,11,12,13,14,15,16,17,18,19,20,21,22,23,24,25,26,27,28,29,30,null,{"$f":"COUNTIF($D19:$AH19,Код1)","v":0},{"$f":"COUNTIF($D19:$AH19,Код2)","v":0},{"$f":"COUNTIF($D19:$AH19,Код3)","v":0},{"$f":"COUNTIF($D19:$AH19,Код4)","v":0}]
[null,null,{"$f":"IFERROR(VLOOKUP(ТърсенеУчащ,ПрисъствиеСептември[],3,FALSE),\"\")","v":""},{"$f":"IFERROR(VLOOKUP(ТърсенеУчащ,ПрисъствиеСептември[],4,FALSE),\"\")","v":""},{"$f":"IFERROR(VLOOKUP(ТърсенеУчащ,ПрисъствиеСептември[],5,FALSE),\"\")","v":""},{"$f":"IFERROR(VLOOKUP(ТърсенеУчащ,ПрисъствиеСептември[],6,FALSE),\"\")","v":""},{"$f":"IFERROR(VLOOKUP(ТърсенеУчащ,ПрисъствиеСептември[],7,FALSE),\"\")","v":""},{"$f":"IFERROR(VLOOKUP(ТърсенеУчащ,ПрисъствиеСептември[],8,FALSE),\"\")","v":""},{"$f":"IFERROR(VLOOKUP(ТърсенеУчащ,ПрисъствиеСептември[],9,FALSE),\"\")","v":""},{"$f":"IFERROR(VLOOKUP(ТърсенеУчащ,ПрисъствиеСептември[],10,FALSE),\"\")","v":""},{"$f":"IFERROR(VLOOKUP(ТърсенеУчащ,ПрисъствиеСептември[],11,FALSE),\"\")","v":""},{"$f":"IFERROR(VLOOKUP(ТърсенеУчащ,ПрисъствиеСептември[],12,FALSE),\"\")","v":""},{"$f":"IFERROR(VLOOKUP(ТърсенеУчащ,ПрисъствиеСептември[],13,FALSE),\"\")","v":""},{"$f":"IFERROR(VLOOKUP(ТърсенеУчащ,ПрисъствиеСептември[],14,FALSE),\"\")","v":""},{"$f":"IFERROR(VLOOKUP(ТърсенеУчащ,ПрисъствиеСептември[],15,FALSE),\"\")","v":""},{"$f":"IFERROR(VLOOKUP(ТърсенеУчащ,ПрисъствиеСептември[],16,FALSE),\"\")","v":""},{"$f":"IFERROR(VLOOKUP(ТърсенеУчащ,ПрисъствиеСептември[],17,FALSE),\"\")","v":""},{"$f":"IFERROR(VLOOKUP(ТърсенеУчащ,ПрисъствиеСептември[],18,FALSE),\"\")","v":""},{"$f":"IFERROR(VLOOKUP(ТърсенеУчащ,ПрисъствиеСептември[],19,FALSE),\"\")","v":""},{"$f":"IFERROR(VLOOKUP(ТърсенеУчащ,ПрисъствиеСептември[],20,FALSE),\"\")","v":""},{"$f":"IFERROR(VLOOKUP(ТърсенеУчащ,ПрисъствиеСептември[],21,FALSE),\"\")","v":""},{"$f":"IFERROR(VLOOKUP(ТърсенеУчащ,ПрисъствиеСептември[],22,FALSE),\"\")","v":""},{"$f":"IFERROR(VLOOKUP(ТърсенеУчащ,ПрисъствиеСептември[],23,FALSE),\"\")","v":""},{"$f":"IFERROR(VLOOKUP(ТърсенеУчащ,ПрисъствиеСептември[],24,FALSE),\"\")","v":""},{"$f":"IFERROR(VLOOKUP(ТърсенеУчащ,ПрисъствиеСептември[],25,FALSE),\"\")","v":""},{"$f":"IFERROR(VLOOKUP(ТърсенеУчащ,ПрисъствиеСептември[],26,FALSE),\"\")","v":""},{"$f":"IFERROR(VLOOKUP(ТърсенеУчащ,ПрисъствиеСептември[],27,FALSE),\"\")","v":""},{"$f":"IFERROR(VLOOKUP(ТърсенеУчащ,ПрисъствиеСептември[],28,FALSE),\"\")","v":""},{"$f":"IFERROR(VLOOKUP(ТърсенеУчащ,ПрисъствиеСептември[],29,FALSE),\"\")","v":""},{"$f":"IFERROR(VLOOKUP(ТърсенеУчащ,ПрисъствиеСептември[],30,FALSE),\"\")","v":""},{"$f":"IFERROR(VLOOKUP(ТърсенеУчащ,ПрисъствиеСептември[],31,FALSE),\"\")","v":""},{"$f":"IFERROR(VLOOKUP(ТърсенеУчащ,ПрисъствиеСептември[],32,FALSE),\"\")","v":""}]
[null,"Октомври",1,2,3,4,5,6,7,8,9,10,11,12,13,14,15,16,17,18,19,20,21,22,23,24,25,26,27,28,29,30,31,{"$f":"COUNTIF($D21:$AH21,Код1)","v":0},{"$f":"COUNTIF($D21:$AH21,Код2)","v":0},{"$f":"COUNTIF($D21:$AH21,Код3)","v":0},{"$f":"COUNTIF($D21:$AH21,Код4)","v":0}]
[null,null,{"$f":"IFERROR(VLOOKUP(ТърсенеУчащ,ПрисъствиеОктомври[],3,FALSE),\"\")","v":""},{"$f":"IFERROR(VLOOKUP(ТърсенеУчащ,ПрисъствиеОктомври[],4,FALSE),\"\")","v":""},{"$f":"IFERROR(VLOOKUP(ТърсенеУчащ,ПрисъствиеОктомври[],5,FALSE),\"\")","v":""},{"$f":"IFERROR(VLOOKUP(ТърсенеУчащ,ПрисъствиеОктомври[],6,FALSE),\"\")","v":""},{"$f":"IFERROR(VLOOKUP(ТърсенеУчащ,ПрисъствиеОктомври[],7,FALSE),\"\")","v":""},{"$f":"IFERROR(VLOOKUP(ТърсенеУчащ,ПрисъствиеОктомври[],8,FALSE),\"\")","v":""},{"$f":"IFERROR(VLOOKUP(ТърсенеУчащ,ПрисъствиеОктомври[],9,FALSE),\"\")","v":""},{"$f":"IFERROR(VLOOKUP(ТърсенеУчащ,ПрисъствиеОктомври[],10,FALSE),\"\")","v":""},{"$f":"IFERROR(VLOOKUP(ТърсенеУчащ,ПрисъствиеОктомври[],11,FALSE),\"\")","v":""},{"$f":"IFERROR(VLOOKUP(ТърсенеУчащ,ПрисъствиеОктомври[],12,FALSE),\"\")","v":""},{"$f":"IFERROR(VLOOKUP(ТърсенеУчащ,ПрисъствиеОктомври[],13,FALSE),\"\")","v":""},{"$f":"IFERROR(VLOOKUP(ТърсенеУчащ,ПрисъствиеОктомври[],14,FALSE),\"\")","v":""},{"$f":"IFERROR(VLOOKUP(ТърсенеУчащ,ПрисъствиеОктомври[],15,FALSE),\"\")","v":""},{"$f":"IFERROR(VLOOKUP(ТърсенеУчащ,ПрисъствиеОктомври[],16,FALSE),\"\")","v":""},{"$f":"IFERROR(VLOOKUP(ТърсенеУчащ,ПрисъствиеОктомври[],17,FALSE),\"\")","v":""},{"$f":"IFERROR(VLOOKUP(ТърсенеУчащ,ПрисъствиеОктомври[],18,FALSE),\"\")","v":""},{"$f":"IFERROR(VLOOKUP(ТърсенеУчащ,ПрисъствиеОктомври[],19,FALSE),\"\")","v":""},{"$f":"IFERROR(VLOOKUP(ТърсенеУчащ,ПрисъствиеОктомври[],20,FALSE),\"\")","v":""},{"$f":"IFERROR(VLOOKUP(ТърсенеУчащ,ПрисъствиеОктомври[],21,FALSE),\"\")","v":""},{"$f":"IFERROR(VLOOKUP(ТърсенеУчащ,ПрисъствиеОктомври[],22,FALSE),\"\")","v":""},{"$f":"IFERROR(VLOOKUP(ТърсенеУчащ,ПрисъствиеОктомври[],23,FALSE),\"\")","v":""},{"$f":"IFERROR(VLOOKUP(ТърсенеУчащ,ПрисъствиеОктомври[],24,FALSE),\"\")","v":""},{"$f":"IFERROR(VLOOKUP(ТърсенеУчащ,ПрисъствиеОктомври[],25,FALSE),\"\")","v":""},{"$f":"IFERROR(VLOOKUP(ТърсенеУчащ,ПрисъствиеОктомври[],26,FALSE),\"\")","v":""},{"$f":"IFERROR(VLOOKUP(ТърсенеУчащ,ПрисъствиеОктомври[],27,FALSE),\"\")","v":""},{"$f":"IFERROR(VLOOKUP(ТърсенеУчащ,ПрисъствиеОктомври[],28,FALSE),\"\")","v":""},{"$f":"IFERROR(VLOOKUP(ТърсенеУчащ,ПрисъствиеОктомври[],29,FALSE),\"\")","v":""},{"$f":"IFERROR(VLOOKUP(ТърсенеУчащ,ПрисъствиеОктомври[],30,FALSE),\"\")","v":""},{"$f":"IFERROR(VLOOKUP(ТърсенеУчащ,ПрисъствиеОктомври[],31,FALSE),\"\")","v":""},{"$f":"IFERROR(VLOOKUP(ТърсенеУчащ,ПрисъствиеОктомври[],32,FALSE),\"\")","v":""},{"$f":"IFERROR(VLOOKUP(ТърсенеУчащ,ПрисъствиеОктомври[],33,FALSE),\"\")","v":""}]
[null,"Ноември",1,2,3,4,5,6,7,8,9,10,11,12,13,14,15,16,17,18,19,20,21,22,23,24,25,26,27,28,29,30,null,{"$f":"COUNTIF($D23:$AH23,Код1)","v":0},{"$f":"COUNTIF($D23:$AH23,Код2)","v":0},{"$f":"COUNTIF($D23:$AH23,Код3)","v":0},{"$f":"COUNTIF($D23:$AH23,Код4)","v":0}]
[null,null,{"$f":"IFERROR(VLOOKUP(ТърсенеУчащ,ПрисъствиеНоември[],3,FALSE),\"\")","v":""},{"$f":"IFERROR(VLOOKUP(ТърсенеУчащ,ПрисъствиеНоември[],4,FALSE),\"\")","v":""},{"$f":"IFERROR(VLOOKUP(ТърсенеУчащ,ПрисъствиеНоември[],5,FALSE),\"\")","v":""},{"$f":"IFERROR(VLOOKUP(ТърсенеУчащ,ПрисъствиеНоември[],6,FALSE),\"\")","v":""},{"$f":"IFERROR(VLOOKUP(ТърсенеУчащ,ПрисъствиеНоември[],7,FALSE),\"\")","v":""},{"$f":"IFERROR(VLOOKUP(ТърсенеУчащ,ПрисъствиеНоември[],8,FALSE),\"\")","v":""},{"$f":"IFERROR(VLOOKUP(ТърсенеУчащ,ПрисъствиеНоември[],9,FALSE),\"\")","v":""},{"$f":"IFERROR(VLOOKUP(ТърсенеУчащ,ПрисъствиеНоември[],10,FALSE),\"\")","v":""},{"$f":"IFERROR(VLOOKUP(ТърсенеУчащ,ПрисъствиеНоември[],11,FALSE),\"\")","v":""},{"$f":"IFERROR(VLOOKUP(ТърсенеУчащ,ПрисъствиеНоември[],12,FALSE),\"\")","v":""},{"$f":"IFERROR(VLOOKUP(ТърсенеУчащ,ПрисъствиеНоември[],13,FALSE),\"\")","v":""},{"$f":"IFERROR(VLOOKUP(ТърсенеУчащ,ПрисъствиеНоември[],14,FALSE),\"\")","v":""},{"$f":"IFERROR(VLOOKUP(ТърсенеУчащ,ПрисъствиеНоември[],15,FALSE),\"\")","v":""},{"$f":"IFERROR(VLOOKUP(ТърсенеУчащ,ПрисъствиеНоември[],16,FALSE),\"\")","v":""},{"$f":"IFERROR(VLOOKUP(ТърсенеУчащ,ПрисъствиеНоември[],17,FALSE),\"\")","v":""},{"$f":"IFERROR(VLOOKUP(ТърсенеУчащ,ПрисъствиеНоември[],18,FALSE),\"\")","v":""},{"$f":"IFERROR(VLOOKUP(ТърсенеУчащ,ПрисъствиеНоември[],19,FALSE),\"\")","v":""},{"$f":"IFERROR(VLOOKUP(ТърсенеУчащ,ПрисъствиеНоември[],20,FALSE),\"\")","v":""},{"$f":"IFERROR(VLOOKUP(ТърсенеУчащ,ПрисъствиеНоември[],21,FALSE),\"\")","v":""},{"$f":"IFERROR(VLOOKUP(ТърсенеУчащ,ПрисъствиеНоември[],22,FALSE),\"\")","v":""},{"$f":"IFERROR(VLOOKUP(ТърсенеУчащ,ПрисъствиеНоември[],23,FALSE),\"\")","v":""},{"$f":"IFERROR(VLOOKUP(ТърсенеУчащ,ПрисъствиеНоември[],24,FALSE),\"\")","v":""},{"$f":"IFERROR(VLOOKUP(ТърсенеУчащ,ПрисъствиеНоември[],25,FALSE),\"\")","v":""},{"$f":"IFERROR(VLOOKUP(ТърсенеУчащ,ПрисъствиеНоември[],26,FALSE),\"\")","v":""},{"$f":"IFERROR(VLOOKUP(ТърсенеУчащ,ПрисъствиеНоември[],27,FALSE),\"\")","v":""},{"$f":"IFERROR(VLOOKUP(ТърсенеУчащ,ПрисъствиеНоември[],28,FALSE),\"\")","v":""},{"$f":"IFERROR(VLOOKUP(ТърсенеУчащ,ПрисъствиеНоември[],29,FALSE),\"\")","v":""},{"$f":"IFERROR(VLOOKUP(ТърсенеУчащ,ПрисъствиеНоември[],30,FALSE),\"\")","v":""},{"$f":"IFERROR(VLOOKUP(ТърсенеУчащ,ПрисъствиеНоември[],31,FALSE),\"\")","v":""},{"$f":"IFERROR(VLOOKUP(ТърсенеУчащ,ПрисъствиеНоември[],32,FALSE),\"\")","v":""}]
[null,"Декември",1,2,3,4,5,6,7,8,9,10,11,12,13,14,15,16,17,18,19,20,21,22,23,24,25,26,27,28,29,30,31,{"$f":"COUNTIF($D25:$AH25,Код1)","v":0},{"$f":"COUNTIF($D25:$AH25,Код2)","v":0},{"$f":"COUNTIF($D25:$AH25,Код3)","v":0},{"$f":"COUNTIF($D25:$AH25,Код4)","v":0}]
[null,null,{"$f":"IFERROR(VLOOKUP(ТърсенеУчащ,ПрисъствиеДекември[],3,FALSE),\"\")","v":""},{"$f":"IFERROR(VLOOKUP(ТърсенеУчащ,ПрисъствиеДекември[],4,FALSE),\"\")","v":""},{"$f":"IFERROR(VLOOKUP(ТърсенеУчащ,ПрисъствиеДекември[],5,FALSE),\"\")","v":""},{"$f":"IFERROR(VLOOKUP(ТърсенеУчащ,ПрисъствиеДекември[],6,FALSE),\"\")","v":""},{"$f":"IFERROR(VLOOKUP(ТърсенеУчащ,ПрисъствиеДекември[],7,FALSE),\"\")","v":""},{"$f":"IFERROR(VLOOKUP(ТърсенеУчащ,ПрисъствиеДекември[],8,FALSE),\"\")","v":""},{"$f":"IFERROR(VLOOKUP(ТърсенеУчащ,ПрисъствиеДекември[],9,FALSE),\"\")","v":""},{"$f":"IFERROR(VLOOKUP(ТърсенеУчащ,ПрисъствиеДекември[],10,FALSE),\"\")","v":""},{"$f":"IFERROR(VLOOKUP(ТърсенеУчащ,ПрисъствиеДекември[],11,FALSE),\"\")","v":""},{"$f":"IFERROR(VLOOKUP(ТърсенеУчащ,ПрисъствиеДекември[],12,FALSE),\"\")","v":""},{"$f":"IFERROR(VLOOKUP(ТърсенеУчащ,ПрисъствиеДекември[],13,FALSE),\"\")","v":""},{"$f":"IFERROR(VLOOKUP(ТърсенеУчащ,ПрисъствиеДекември[],14,FALSE),\"\")","v":""},{"$f":"IFERROR(VLOOKUP(ТърсенеУчащ,ПрисъствиеДекември[],15,FALSE),\"\")","v":""},{"$f":"IFERROR(VLOOKUP(ТърсенеУчащ,ПрисъствиеДекември[],16,FALSE),\"\")","v":""},{"$f":"IFERROR(VLOOKUP(ТърсенеУчащ,ПрисъствиеДекември[],17,FALSE),\"\")","v":""},{"$f":"IFERROR(VLOOKUP(ТърсенеУчащ,ПрисъствиеДекември[],18,FALSE),\"\")","v":""},{"$f":"IFERROR(VLOOKUP(ТърсенеУчащ,ПрисъствиеДекември[],19,FALSE),\"\")","v":""},{"$f":"IFERROR(VLOOKUP(ТърсенеУчащ,ПрисъствиеДекември[],20,FALSE),\"\")","v":""},{"$f":"IFERROR(VLOOKUP(ТърсенеУчащ,ПрисъствиеДекември[],21,FALSE),\"\")","v":""},{"$f":"IFERROR(VLOOKUP(ТърсенеУчащ,ПрисъствиеДекември[],22,FALSE),\"\")","v":""},{"$f":"IFERROR(VLOOKUP(ТърсенеУчащ,ПрисъствиеДекември[],23,FALSE),\"\")","v":""},{"$f":"IFERROR(VLOOKUP(ТърсенеУчащ,ПрисъствиеДекември[],24,FALSE),\"\")","v":""},{"$f":"IFERROR(VLOOKUP(ТърсенеУчащ,ПрисъствиеДекември[],25,FALSE),\"\")","v":""},{"$f":"IFERROR(VLOOKUP(ТърсенеУчащ,ПрисъствиеДекември[],26,FALSE),\"\")","v":""},{"$f":"IFERROR(VLOOKUP(ТърсенеУчащ,ПрисъствиеДекември[],27,FALSE),\"\")","v":""},{"$f":"IFERROR(VLOOKUP(ТърсенеУчащ,ПрисъствиеДекември[],28,FALSE),\"\")","v":""},{"$f":"IFERROR(VLOOKUP(ТърсенеУчащ,ПрисъствиеДекември[],29,FALSE),\"\")","v":""},{"$f":"IFERROR(VLOOKUP(ТърсенеУчащ,ПрисъствиеДекември[],30,FALSE),\"\")","v":""},{"$f":"IFERROR(VLOOKUP(ТърсенеУчащ,ПрисъствиеДекември[],31,FALSE),\"\")","v":""},{"$f":"IFERROR(VLOOKUP(ТърсенеУчащ,ПрисъствиеДекември[],32,FALSE),\"\")","v":""},{"$f":"IFERROR(VLOOKUP(ТърсенеУчащ,ПрисъствиеДекември[],33,FALSE),\"\")","v":""}]
[null,"Януари",1,2,3,4,5,6,7,8,9,10,11,12,13,14,15,16,17,18,19,20,21,22,23,24,25,26,27,28,29,30,31,{"$f":"COUNTIF($D27:$AH27,Код1)","v":0},{"$f":"COUNTIF($D27:$AH27,Код2)","v":0},{"$f":"COUNTIF($D27:$AH27,Код3)","v":0},{"$f":"COUNTIF($D27:$AH27,Код4)","v":0}]
[null,null,{"$f":"IFERROR(VLOOKUP(ТърсенеУчащ,ПрисъствиеЯнуари[],3,FALSE),\"\")","v":""},{"$f":"IFERROR(VLOOKUP(ТърсенеУчащ,ПрисъствиеЯнуари[],4,FALSE),\"\")","v":""},{"$f":"IFERROR(VLOOKUP(ТърсенеУчащ,ПрисъствиеЯнуари[],5,FALSE),\"\")","v":""},{"$f":"IFERROR(VLOOKUP(ТърсенеУчащ,ПрисъствиеЯнуари[],6,FALSE),\"\")","v":""},{"$f":"IFERROR(VLOOKUP(ТърсенеУчащ,ПрисъствиеЯнуари[],7,FALSE),\"\")","v":""},{"$f":"IFERROR(VLOOKUP(ТърсенеУчащ,ПрисъствиеЯнуари[],8,FALSE),\"\")","v":""},{"$f":"IFERROR(VLOOKUP(ТърсенеУчащ,ПрисъствиеЯнуари[],9,FALSE),\"\")","v":""},{"$f":"IFERROR(VLOOKUP(ТърсенеУчащ,ПрисъствиеЯнуари[],10,FALSE),\"\")","v":""},{"$f":"IFERROR(VLOOKUP(ТърсенеУчащ,ПрисъствиеЯнуари[],11,FALSE),\"\")","v":""},{"$f":"IFERROR(VLOOKUP(ТърсенеУчащ,ПрисъствиеЯнуари[],12,FALSE),\"\")","v":""},{"$f":"IFERROR(VLOOKUP(ТърсенеУчащ,ПрисъствиеЯнуари[],13,FALSE),\"\")","v":""},{"$f":"IFERROR(VLOOKUP(ТърсенеУчащ,ПрисъствиеЯнуари[],14,FALSE),\"\")","v":""},{"$f":"IFERROR(VLOOKUP(ТърсенеУчащ,ПрисъствиеЯнуари[],15,FALSE),\"\")","v":""},{"$f":"IFERROR(VLOOKUP(ТърсенеУчащ,ПрисъствиеЯнуари[],16,FALSE),\"\")","v":""},{"$f":"IFERROR(VLOOKUP(ТърсенеУчащ,ПрисъствиеЯнуари[],17,FALSE),\"\")","v":""},{"$f":"IFERROR(VLOOKUP(ТърсенеУчащ,ПрисъствиеЯнуари[],18,FALSE),\"\")","v":""},{"$f":"IFERROR(VLOOKUP(ТърсенеУчащ,ПрисъствиеЯнуари[],19,FALSE),\"\")","v":""},{"$f":"IFERROR(VLOOKUP(ТърсенеУчащ,ПрисъствиеЯнуари[],20,FALSE),\"\")","v":""},{"$f":"IFERROR(VLOOKUP(ТърсенеУчащ,ПрисъствиеЯнуари[],21,FALSE),\"\")","v":""},{"$f":"IFERROR(VLOOKUP(ТърсенеУчащ,ПрисъствиеЯнуари[],22,FALSE),\"\")","v":""},{"$f":"IFERROR(VLOOKUP(ТърсенеУчащ,ПрисъствиеЯнуари[],23,FALSE),\"\")","v":""},{"$f":"IFERROR(VLOOKUP(ТърсенеУчащ,ПрисъствиеЯнуари[],24,FALSE),\"\")","v":""},{"$f":"IFERROR(VLOOKUP(ТърсенеУчащ,ПрисъствиеЯнуари[],25,FALSE),\"\")","v":""},{"$f":"IFERROR(VLOOKUP(ТърсенеУчащ,ПрисъствиеЯнуари[],26,FALSE),\"\")","v":""},{"$f":"IFERROR(VLOOKUP(ТърсенеУчащ,ПрисъствиеЯнуари[],27,FALSE),\"\")","v":""},{"$f":"IFERROR(VLOOKUP(ТърсенеУчащ,ПрисъствиеЯнуари[],28,FALSE),\"\")","v":""},{"$f":"IFERROR(VLOOKUP(ТърсенеУчащ,ПрисъствиеЯнуари[],29,FALSE),\"\")","v":""},{"$f":"IFERROR(VLOOKUP(ТърсенеУчащ,ПрисъствиеЯнуари[],30,FALSE),\"\")","v":""},{"$f":"IFERROR(VLOOKUP(ТърсенеУчащ,ПрисъствиеЯнуари[],31,FALSE),\"\")","v":""},{"$f":"IFERROR(VLOOKUP(ТърсенеУчащ,ПрисъствиеЯнуари[],32,FALSE),\"\")","v":""},{"$f":"IFERROR(VLOOKUP(ТърсенеУчащ,ПрисъствиеЯнуари[],33,FALSE),\"\")","v":""}]
[null,"Февруари",1,2,3,4,5,6,7,8,9,10,11,12,13,14,15,16,17,18,19,20,21,22,23,24,25,26,27,28,29,null,null,{"$f":"COUNTIF($D29:$AH29,Код1)","v":0},{"$f":"COUNTIF($D29:$AH29,Код2)","v":0},{"$f":"COUNTIF($D29:$AH29,Код3)","v":0},{"$f":"COUNTIF($D29:$AH29,Код4)","v":0}]
[null,null,{"$f":"IFERROR(VLOOKUP(ТърсенеУчащ,ПрисъствиеФевруари[],3,FALSE),\"\")","v":""},{"$f":"IFERROR(VLOOKUP(ТърсенеУчащ,ПрисъствиеФевруари[],4,FALSE),\"\")","v":""},{"$f":"IFERROR(VLOOKUP(ТърсенеУчащ,ПрисъствиеФевруари[],5,FALSE),\"\")","v":""},{"$f":"IFERROR(VLOOKUP(ТърсенеУчащ,ПрисъствиеФевруари[],6,FALSE),\"\")","v":""},{"$f":"IFERROR(VLOOKUP(ТърсенеУчащ,ПрисъствиеФевруари[],7,FALSE),\"\")","v":""},{"$f":"IFERROR(VLOOKUP(ТърсенеУчащ,ПрисъствиеФевруари[],8,FALSE),\"\")","v":""},{"$f":"IFERROR(VLOOKUP(ТърсенеУчащ,ПрисъствиеФевруари[],9,FALSE),\"\")","v":""},{"$f":"IFERROR(VLOOKUP(ТърсенеУчащ,ПрисъствиеФевруари[],10,FALSE),\"\")","v":""},{"$f":"IFERROR(VLOOKUP(ТърсенеУчащ,ПрисъствиеФевруари[],11,FALSE),\"\")","v":""},{"$f":"IFERROR(VLOOKUP(ТърсенеУчащ,ПрисъствиеФевруари[],12,FALSE),\"\")","v":""},{"$f":"IFERROR(VLOOKUP(ТърсенеУчащ,ПрисъствиеФевруари[],13,FALSE),\"\")","v":""},{"$f":"IFERROR(VLOOKUP(ТърсенеУчащ,ПрисъствиеФевруари[],14,FALSE),\"\")","v":""},{"$f":"IFERROR(VLOOKUP(ТърсенеУчащ,ПрисъствиеФевруари[],15,FALSE),\"\")","v":""},{"$f":"IFERROR(VLOOKUP(ТърсенеУчащ,ПрисъствиеФевруари[],16,FALSE),\"\")","v":""},{"$f":"IFERROR(VLOOKUP(ТърсенеУчащ,ПрисъствиеФевруари[],17,FALSE),\"\")","v":""},{"$f":"IFERROR(VLOOKUP(ТърсенеУчащ,ПрисъствиеФевруари[],18,FALSE),\"\")","v":""},{"$f":"IFERROR(VLOOKUP(ТърсенеУчащ,ПрисъствиеФевруари[],19,FALSE),\"\")","v":""},{"$f":"IFERROR(VLOOKUP(ТърсенеУчащ,ПрисъствиеФевруари[],20,FALSE),\"\")","v":""},{"$f":"IFERROR(VLOOKUP(ТърсенеУчащ,ПрисъствиеФевруари[],21,FALSE),\"\")","v":""},{"$f":"IFERROR(VLOOKUP(ТърсенеУчащ,ПрисъствиеФевруари[],22,FALSE),\"\")","v":""},{"$f":"IFERROR(VLOOKUP(ТърсенеУчащ,ПрисъствиеФевруари[],23,FALSE),\"\")","v":""},{"$f":"IFERROR(VLOOKUP(ТърсенеУчащ,ПрисъствиеФевруари[],24,FALSE),\"\")","v":""},{"$f":"IFERROR(VLOOKUP(ТърсенеУчащ,ПрисъствиеФевруари[],25,FALSE),\"\")","v":""},{"$f":"IFERROR(VLOOKUP(ТърсенеУчащ,ПрисъствиеФевруари[],26,FALSE),\"\")","v":""},{"$f":"IFERROR(VLOOKUP(ТърсенеУчащ,ПрисъствиеФевруари[],27,FALSE),\"\")","v":""},{"$f":"IFERROR(VLOOKUP(ТърсенеУчащ,ПрисъствиеФевруари[],28,FALSE),\"\")","v":""},{"$f":"IFERROR(VLOOKUP(ТърсенеУчащ,ПрисъствиеФевруари[],29,FALSE),\"\")","v":""},{"$f":"IFERROR(VLOOKUP(ТърсенеУчащ,ПрисъствиеФевруари[],30,FALSE),\"\")","v":""},{"$f":"IFERROR(VLOOKUP(ТърсенеУчащ,ПрисъствиеФевруари[],31,FALSE),\"\")","v":""}]
[null,"Март",1,2,3,4,5,6,7,8,9,10,11,12,13,14,15,16,17,18,19,20,21,22,23,24,25,26,27,28,29,30,31,{"$f":"COUNTIF($D31:$AH31,Код1)","v":0},{"$f":"COUNTIF($D31:$AH31,Код2)","v":0},{"$f":"COUNTIF($D31:$AH31,Код3)","v":0},{"$f":"COUNTIF($D31:$AH31,Код4)","v":0}]
[null,null,{"$f":"IFERROR(VLOOKUP(ТърсенеУчащ,ПрисъствиеМарт[],3,FALSE),\"\")","v":""},{"$f":"IFERROR(VLOOKUP(ТърсенеУчащ,ПрисъствиеМарт[],4,FALSE),\"\")","v":""},{"$f":"IFERROR(VLOOKUP(ТърсенеУчащ,ПрисъствиеМарт[],5,FALSE),\"\")","v":""},{"$f":"IFERROR(VLOOKUP(ТърсенеУчащ,ПрисъствиеМарт[],6,FALSE),\"\")","v":""},{"$f":"IFERROR(VLOOKUP(ТърсенеУчащ,ПрисъствиеМарт[],7,FALSE),\"\")","v":""},{"$f":"IFERROR(VLOOKUP(ТърсенеУчащ,ПрисъствиеМарт[],8,FALSE),\"\")","v":""},{"$f":"IFERROR(VLOOKUP(ТърсенеУчащ,ПрисъствиеМарт[],9,FALSE),\"\")","v":""},{"$f":"IFERROR(VLOOKUP(ТърсенеУчащ,ПрисъствиеМарт[],10,FALSE),\"\")","v":""},{"$f":"IFERROR(VLOOKUP(ТърсенеУчащ,ПрисъствиеМарт[],11,FALSE),\"\")","v":""},{"$f":"IFERROR(VLOOKUP(ТърсенеУчащ,ПрисъствиеМарт[],12,FALSE),\"\")","v":""},{"$f":"IFERROR(VLOOKUP(ТърсенеУчащ,ПрисъствиеМарт[],13,FALSE),\"\")","v":""},{"$f":"IFERROR(VLOOKUP(ТърсенеУчащ,ПрисъствиеМарт[],14,FALSE),\"\")","v":""},{"$f":"IFERROR(VLOOKUP(ТърсенеУчащ,ПрисъствиеМарт[],15,FALSE),\"\")","v":""},{"$f":"IFERROR(VLOOKUP(ТърсенеУчащ,ПрисъствиеМарт[],16,FALSE),\"\")","v":""},{"$f":"IFERROR(VLOOKUP(ТърсенеУчащ,ПрисъствиеМарт[],17,FALSE),\"\")","v":""},{"$f":"IFERROR(VLOOKUP(ТърсенеУчащ,ПрисъствиеМарт[],18,FALSE),\"\")","v":""},{"$f":"IFERROR(VLOOKUP(ТърсенеУчащ,ПрисъствиеМарт[],19,FALSE),\"\")","v":""},{"$f":"IFERROR(VLOOKUP(ТърсенеУчащ,ПрисъствиеМарт[],20,FALSE),\"\")","v":""},{"$f":"IFERROR(VLOOKUP(ТърсенеУчащ,ПрисъствиеМарт[],21,FALSE),\"\")","v":""},{"$f":"IFERROR(VLOOKUP(ТърсенеУчащ,ПрисъствиеМарт[],22,FALSE),\"\")","v":""},{"$f":"IFERROR(VLOOKUP(ТърсенеУчащ,ПрисъствиеМарт[],23,FALSE),\"\")","v":""},{"$f":"IFERROR(VLOOKUP(ТърсенеУчащ,ПрисъствиеМарт[],24,FALSE),\"\")","v":""},{"$f":"IFERROR(VLOOKUP(ТърсенеУчащ,ПрисъствиеМарт[],25,FALSE),\"\")","v":""},{"$f":"IFERROR(VLOOKUP(ТърсенеУчащ,ПрисъствиеМарт[],26,FALSE),\"\")","v":""},{"$f":"IFERROR(VLOOKUP(ТърсенеУчащ,ПрисъствиеМарт[],27,FALSE),\"\")","v":""},{"$f":"IFERROR(VLOOKUP(ТърсенеУчащ,ПрисъствиеМарт[],28,FALSE),\"\")","v":""},{"$f":"IFERROR(VLOOKUP(ТърсенеУчащ,ПрисъствиеМарт[],29,FALSE),\"\")","v":""},{"$f":"IFERROR(VLOOKUP(ТърсенеУчащ,ПрисъствиеМарт[],30,FALSE),\"\")","v":""},{"$f":"IFERROR(VLOOKUP(ТърсенеУчащ,ПрисъствиеМарт[],31,FALSE),\"\")","v":""},{"$f":"IFERROR(VLOOKUP(ТърсенеУчащ,ПрисъствиеМарт[],32,FALSE),\"\")","v":""},{"$f":"IFERROR(VLOOKUP(ТърсенеУчащ,ПрисъствиеМарт[],33,FALSE),\"\")","v":""}]
[null,"Април",1,2,3,4,5,6,7,8,9,10,11,12,13,14,15,16,17,18,19,20,21,22,23,24,25,26,27,28,29,30,null,{"$f":"COUNTIF($D33:$AH33,Код1)","v":0},{"$f":"COUNTIF($D33:$AH33,Код2)","v":0},{"$f":"COUNTIF($D33:$AH33,Код3)","v":0},{"$f":"COUNTIF($D33:$AH33,Код4)","v":0}]
[null,null,{"$f":"IFERROR(VLOOKUP(ТърсенеУчащ,ПрисъствиеАприл[],3,FALSE),\"\")","v":""},{"$f":"IFERROR(VLOOKUP(ТърсенеУчащ,ПрисъствиеАприл[],4,FALSE),\"\")","v":""},{"$f":"IFERROR(VLOOKUP(ТърсенеУчащ,ПрисъствиеАприл[],5,FALSE),\"\")","v":""},{"$f":"IFERROR(VLOOKUP(ТърсенеУчащ,ПрисъствиеАприл[],6,FALSE),\"\")","v":""},{"$f":"IFERROR(VLOOKUP(ТърсенеУчащ,ПрисъствиеАприл[],7,FALSE),\"\")","v":""},{"$f":"IFERROR(VLOOKUP(ТърсенеУчащ,ПрисъствиеАприл[],8,FALSE),\"\")","v":""},{"$f":"IFERROR(VLOOKUP(ТърсенеУчащ,ПрисъствиеАприл[],9,FALSE),\"\")","v":""},{"$f":"IFERROR(VLOOKUP(ТърсенеУчащ,ПрисъствиеАприл[],10,FALSE),\"\")","v":""},{"$f":"IFERROR(VLOOKUP(ТърсенеУчащ,ПрисъствиеАприл[],11,FALSE),\"\")","v":""},{"$f":"IFERROR(VLOOKUP(ТърсенеУчащ,ПрисъствиеАприл[],12,FALSE),\"\")","v":""},{"$f":"IFERROR(VLOOKUP(ТърсенеУчащ,ПрисъствиеАприл[],13,FALSE),\"\")","v":""},{"$f":"IFERROR(VLOOKUP(ТърсенеУчащ,ПрисъствиеАприл[],14,FALSE),\"\")","v":""},{"$f":"IFERROR(VLOOKUP(ТърсенеУчащ,ПрисъствиеАприл[],15,FALSE),\"\")","v":""},{"$f":"IFERROR(VLOOKUP(ТърсенеУчащ,ПрисъствиеАприл[],16,FALSE),\"\")","v":""},{"$f":"IFERROR(VLOOKUP(ТърсенеУчащ,ПрисъствиеАприл[],17,FALSE),\"\")","v":""},{"$f":"IFERROR(VLOOKUP(ТърсенеУчащ,ПрисъствиеАприл[],18,FALSE),\"\")","v":""},{"$f":"IFERROR(VLOOKUP(ТърсенеУчащ,ПрисъствиеАприл[],19,FALSE),\"\")","v":""},{"$f":"IFERROR(VLOOKUP(ТърсенеУчащ,ПрисъствиеАприл[],20,FALSE),\"\")","v":""},{"$f":"IFERROR(VLOOKUP(ТърсенеУчащ,ПрисъствиеАприл[],21,FALSE),\"\")","v":""},{"$f":"IFERROR(VLOOKUP(ТърсенеУчащ,ПрисъствиеАприл[],22,FALSE),\"\")","v":""},{"$f":"IFERROR(VLOOKUP(ТърсенеУчащ,ПрисъствиеАприл[],23,FALSE),\"\")","v":""},{"$f":"IFERROR(VLOOKUP(ТърсенеУчащ,ПрисъствиеАприл[],24,FALSE),\"\")","v":""},{"$f":"IFERROR(VLOOKUP(ТърсенеУчащ,ПрисъствиеАприл[],25,FALSE),\"\")","v":""},{"$f":"IFERROR(VLOOKUP(ТърсенеУчащ,ПрисъствиеАприл[],26,FALSE),\"\")","v":""},{"$f":"IFERROR(VLOOKUP(ТърсенеУчащ,ПрисъствиеАприл[],27,FALSE),\"\")","v":""},{"$f":"IFERROR(VLOOKUP(ТърсенеУчащ,ПрисъствиеАприл[],28,FALSE),\"\")","v":""},{"$f":"IFERROR(VLOOKUP(ТърсенеУчащ,ПрисъствиеАприл[],29,FALSE),\"\")","v":""},{"$f":"IFERROR(VLOOKUP(ТърсенеУчащ,ПрисъствиеАприл[],30,FALSE),\"\")","v":""},{"$f":"IFERROR(VLOOKUP(ТърсенеУчащ,ПрисъствиеАприл[],31,FALSE),\"\")","v":""},{"$f":"IFERROR(VLOOKUP(ТърсенеУчащ,ПрисъствиеАприл[],32,FALSE),\"\")","v":""}]
[null,"Май",1,2,3,4,5,6,7,8,9,10,11,12,13,14,15,16,17,18,19,20,21,22,23,24,25,26,27,28,29,30,31,{"$f":"COUNTIF($D35:$AH35,Код1)","v":0},{"$f":"COUNTIF($D35:$AH35,Код2)","v":0},{"$f":"COUNTIF($D35:$AH35,Код3)","v":0},{"$f":"COUNTIF($D35:$AH35,Код4)","v":0}]
[null,null,{"$f":"IFERROR(VLOOKUP(ТърсенеУчащ,ПрисъствиеМай[],3,FALSE),\"\")","v":""},{"$f":"IFERROR(VLOOKUP(ТърсенеУчащ,ПрисъствиеМай[],4,FALSE),\"\")","v":""},{"$f":"IFERROR(VLOOKUP(ТърсенеУчащ,ПрисъствиеМай[],5,FALSE),\"\")","v":""},{"$f":"IFERROR(VLOOKUP(ТърсенеУчащ,ПрисъствиеМай[],6,FALSE),\"\")","v":""},{"$f":"IFERROR(VLOOKUP(ТърсенеУчащ,ПрисъствиеМай[],7,FALSE),\"\")","v":""},{"$f":"IFERROR(VLOOKUP(ТърсенеУчащ,ПрисъствиеМай[],8,FALSE),\"\")","v":""},{"$f":"IFERROR(VLOOKUP(ТърсенеУчащ,ПрисъствиеМай[],9,FALSE),\"\")","v":""},{"$f":"IFERROR(VLOOKUP(ТърсенеУчащ,ПрисъствиеМай[],10,FALSE),\"\")","v":""},{"$f":"IFERROR(VLOOKUP(ТърсенеУчащ,ПрисъствиеМай[],11,FALSE),\"\")","v":""},{"$f":"IFERROR(VLOOKUP(ТърсенеУчащ,ПрисъствиеМай[],12,FALSE),\"\")","v":""},{"$f":"IFERROR(VLOOKUP(ТърсенеУчащ,ПрисъствиеМай[],13,FALSE),\"\")","v":""},{"$f":"IFERROR(VLOOKUP(ТърсенеУчащ,ПрисъствиеМай[],14,FALSE),\"\")","v":""},{"$f":"IFERROR(VLOOKUP(ТърсенеУчащ,ПрисъствиеМай[],15,FALSE),\"\")","v":""},{"$f":"IFERROR(VLOOKUP(ТърсенеУчащ,ПрисъствиеМай[],16,FALSE),\"\")","v":""},{"$f":"IFERROR(VLOOKUP(ТърсенеУчащ,ПрисъствиеМай[],17,FALSE),\"\")","v":""},{"$f":"IFERROR(VLOOKUP(ТърсенеУчащ,ПрисъствиеМай[],18,FALSE),\"\")","v":""},{"$f":"IFERROR(VLOOKUP(ТърсенеУчащ,ПрисъствиеМай[],19,FALSE),\"\")","v":""},{"$f":"IFERROR(VLOOKUP(ТърсенеУчащ,ПрисъствиеМай[],20,FALSE),\"\")","v":""},{"$f":"IFERROR(VLOOKUP(ТърсенеУчащ,ПрисъствиеМай[],21,FALSE),\"\")","v":""},{"$f":"IFERROR(VLOOKUP(ТърсенеУчащ,ПрисъствиеМай[],22,FALSE),\"\")","v":""},{"$f":"IFERROR(VLOOKUP(ТърсенеУчащ,ПрисъствиеМай[],23,FALSE),\"\")","v":""},{"$f":"IFERROR(VLOOKUP(ТърсенеУчащ,ПрисъствиеМай[],24,FALSE),\"\")","v":""},{"$f":"IFERROR(VLOOKUP(ТърсенеУчащ,ПрисъствиеМай[],25,FALSE),\"\")","v":""},{"$f":"IFERROR(VLOOKUP(ТърсенеУчащ,ПрисъствиеМай[],26,FALSE),\"\")","v":""},{"$f":"IFERROR(VLOOKUP(ТърсенеУчащ,ПрисъствиеМай[],27,FALSE),\"\")","v":""},{"$f":"IFERROR(VLOOKUP(ТърсенеУчащ,ПрисъствиеМай[],28,FALSE),\"\")","v":""},{"$f":"IFERROR(VLOOKUP(ТърсенеУчащ,ПрисъствиеМай[],29,FALSE),\"\")","v":""},{"$f":"IFERROR(VLOOKUP(ТърсенеУчащ,ПрисъствиеМай[],30,FALSE),\"\")","v":""},{"$f":"IFERROR(VLOOKUP(ТърсенеУчащ,ПрисъствиеМай[],31,FALSE),\"\")","v":""},{"$f":"IFERROR(VLOOKUP(ТърсенеУчащ,ПрисъствиеМай[],32,FALSE),\"\")","v":""},{"$f":"IFERROR(VLOOKUP(ТърсенеУчащ,ПрисъствиеМай[],33,FALSE),\"\")","v":""}]
[null,"Юни",1,2,3,4,5,6,7,8,9,10,11,12,13,14,15,16,17,18,19,20,21,22,23,24,25,26,27,28,29,30,null,{"$f":"COUNTIF($D37:$AH37,Код1)","v":0},{"$f":"COUNTIF($D37:$AH37,Код2)","v":0},{"$f":"COUNTIF($D37:$AH37,Код3)","v":0},{"$f":"COUNTIF($D37:$AH37,Код4)","v":0}]
[null,null,{"$f":"IFERROR(VLOOKUP(ТърсенеУчащ,ПрисъствиеЮни[],3,FALSE),\"\")","v":""},{"$f":"IFERROR(VLOOKUP(ТърсенеУчащ,ПрисъствиеЮни[],4,FALSE),\"\")","v":""},{"$f":"IFERROR(VLOOKUP(ТърсенеУчащ,ПрисъствиеЮни[],5,FALSE),\"\")","v":""},{"$f":"IFERROR(VLOOKUP(ТърсенеУчащ,ПрисъствиеЮни[],6,FALSE),\"\")","v":""},{"$f":"IFERROR(VLOOKUP(ТърсенеУчащ,ПрисъствиеЮни[],7,FALSE),\"\")","v":""},{"$f":"IFERROR(VLOOKUP(ТърсенеУчащ,ПрисъствиеЮни[],8,FALSE),\"\")","v":""},{"$f":"IFERROR(VLOOKUP(ТърсенеУчащ,ПрисъствиеЮни[],9,FALSE),\"\")","v":""},{"$f":"IFERROR(VLOOKUP(ТърсенеУчащ,ПрисъствиеЮни[],10,FALSE),\"\")","v":""},{"$f":"IFERROR(VLOOKUP(ТърсенеУчащ,ПрисъствиеЮни[],11,FALSE),\"\")","v":""},{"$f":"IFERROR(VLOOKUP(ТърсенеУчащ,ПрисъствиеЮни[],12,FALSE),\"\")","v":""},{"$f":"IFERROR(VLOOKUP(ТърсенеУчащ,ПрисъствиеЮни[],13,FALSE),\"\")","v":""},{"$f":"IFERROR(VLOOKUP(ТърсенеУчащ,ПрисъствиеЮни[],14,FALSE),\"\")","v":""},{"$f":"IFERROR(VLOOKUP(ТърсенеУчащ,ПрисъствиеЮни[],15,FALSE),\"\")","v":""},{"$f":"IFERROR(VLOOKUP(ТърсенеУчащ,ПрисъствиеЮни[],16,FALSE),\"\")","v":""},{"$f":"IFERROR(VLOOKUP(ТърсенеУчащ,ПрисъствиеЮни[],17,FALSE),\"\")","v":""},{"$f":"IFERROR(VLOOKUP(ТърсенеУчащ,ПрисъствиеЮни[],18,FALSE),\"\")","v":""},{"$f":"IFERROR(VLOOKUP(ТърсенеУчащ,ПрисъствиеЮни[],19,FALSE),\"\")","v":""},{"$f":"IFERROR(VLOOKUP(ТърсенеУчащ,ПрисъствиеЮни[],20,FALSE),\"\")","v":""},{"$f":"IFERROR(VLOOKUP(ТърсенеУчащ,ПрисъствиеЮни[],21,FALSE),\"\")","v":""},{"$f":"IFERROR(VLOOKUP(ТърсенеУчащ,ПрисъствиеЮни[],22,FALSE),\"\")","v":""},{"$f":"IFERROR(VLOOKUP(ТърсенеУчащ,ПрисъствиеЮни[],23,FALSE),\"\")","v":""},{"$f":"IFERROR(VLOOKUP(ТърсенеУчащ,ПрисъствиеЮни[],24,FALSE),\"\")","v":""},{"$f":"IFERROR(VLOOKUP(ТърсенеУчащ,ПрисъствиеЮни[],25,FALSE),\"\")","v":""},{"$f":"IFERROR(VLOOKUP(ТърсенеУчащ,ПрисъствиеЮни[],26,FALSE),\"\")","v":""},{"$f":"IFERROR(VLOOKUP(ТърсенеУчащ,ПрисъствиеЮни[],27,FALSE),\"\")","v":""},{"$f":"IFERROR(VLOOKUP(ТърсенеУчащ,ПрисъствиеЮни[],28,FALSE),\"\")","v":""},{"$f":"IFERROR(VLOOKUP(ТърсенеУчащ,ПрисъствиеЮни[],29,FALSE),\"\")","v":""},{"$f":"IFERROR(VLOOKUP(ТърсенеУчащ,ПрисъствиеЮни[],30,FALSE),\"\")","v":""},{"$f":"IFERROR(VLOOKUP(ТърсенеУчащ,ПрисъствиеЮни[],31,FALSE),\"\")","v":""},{"$f":"IFERROR(VLOOKUP(ТърсенеУчащ,ПрисъствиеЮни[],32,FALSE),\"\")","v":""}]
[null,"Юли",1,2,3,4,5,6,7,8,9,10,11,12,13,14,15,16,17,18,19,20,21,22,23,24,25,26,27,28,29,30,31,{"$f":"COUNTIF($D39:$AH39,Код1)","v":0},{"$f":"COUNTIF($D39:$AH39,Код2)","v":0},{"$f":"COUNTIF($D39:$AH39,Код3)","v":0},{"$f":"COUNTIF($D39:$AH39,Код4)","v":0}]
[null,null,{"$f":"IFERROR(VLOOKUP(ТърсенеУчащ,ПрисъствиеЮли[],3,FALSE),\"\")","v":""},{"$f":"IFERROR(VLOOKUP(ТърсенеУчащ,ПрисъствиеЮли[],4,FALSE),\"\")","v":""},{"$f":"IFERROR(VLOOKUP(ТърсенеУчащ,ПрисъствиеЮли[],5,FALSE),\"\")","v":""},{"$f":"IFERROR(VLOOKUP(ТърсенеУчащ,ПрисъствиеЮли[],6,FALSE),\"\")","v":""},{"$f":"IFERROR(VLOOKUP(ТърсенеУчащ,ПрисъствиеЮли[],7,FALSE),\"\")","v":""},{"$f":"IFERROR(VLOOKUP(ТърсенеУчащ,ПрисъствиеЮли[],8,FALSE),\"\")","v":""},{"$f":"IFERROR(VLOOKUP(ТърсенеУчащ,ПрисъствиеЮли[],9,FALSE),\"\")","v":""},{"$f":"IFERROR(VLOOKUP(ТърсенеУчащ,ПрисъствиеЮли[],10,FALSE),\"\")","v":""},{"$f":"IFERROR(VLOOKUP(ТърсенеУчащ,ПрисъствиеЮли[],11,FALSE),\"\")","v":""},{"$f":"IFERROR(VLOOKUP(ТърсенеУчащ,ПрисъствиеЮли[],12,FALSE),\"\")","v":""},{"$f":"IFERROR(VLOOKUP(ТърсенеУчащ,ПрисъствиеЮли[],13,FALSE),\"\")","v":""},{"$f":"IFERROR(VLOOKUP(ТърсенеУчащ,ПрисъствиеЮли[],14,FALSE),\"\")","v":""},{"$f":"IFERROR(VLOOKUP(ТърсенеУчащ,ПрисъствиеЮли[],15,FALSE),\"\")","v":""},{"$f":"IFERROR(VLOOKUP(ТърсенеУчащ,ПрисъствиеЮли[],16,FALSE),\"\")","v":""},{"$f":"IFERROR(VLOOKUP(ТърсенеУчащ,ПрисъствиеЮли[],17,FALSE),\"\")","v":""},{"$f":"IFERROR(VLOOKUP(ТърсенеУчащ,ПрисъствиеЮли[],18,FALSE),\"\")","v":""},{"$f":"IFERROR(VLOOKUP(ТърсенеУчащ,ПрисъствиеЮли[],19,FALSE),\"\")","v":""},{"$f":"IFERROR(VLOOKUP(ТърсенеУчащ,ПрисъствиеЮли[],20,FALSE),\"\")","v":""},{"$f":"IFERROR(VLOOKUP(ТърсенеУчащ,ПрисъствиеЮли[],21,FALSE),\"\")","v":""},{"$f":"IFERROR(VLOOKUP(ТърсенеУчащ,ПрисъствиеЮли[],22,FALSE),\"\")","v":""},{"$f":"IFERROR(VLOOKUP(ТърсенеУчащ,ПрисъствиеЮли[],23,FALSE),\"\")","v":""},{"$f":"IFERROR(VLOOKUP(ТърсенеУчащ,ПрисъствиеЮли[],24,FALSE),\"\")","v":""},{"$f":"IFERROR(VLOOKUP(ТърсенеУчащ,ПрисъствиеЮли[],25,FALSE),\"\")","v":""},{"$f":"IFERROR(VLOOKUP(ТърсенеУчащ,ПрисъствиеЮли[],26,FALSE),\"\")","v":""},{"$f":"IFERROR(VLOOKUP(ТърсенеУчащ,ПрисъствиеЮли[],27,FALSE),\"\")","v":""},{"$f":"IFERROR(VLOOKUP(ТърсенеУчащ,ПрисъствиеЮли[],28,FALSE),\"\")","v":""},{"$f":"IFERROR(VLOOKUP(ТърсенеУчащ,ПрисъствиеЮли[],29,FALSE),\"\")","v":""},{"$f":"IFERROR(VLOOKUP(ТърсенеУчащ,ПрисъствиеЮли[],30,FALSE),\"\")","v":""},{"$f":"IFERROR(VLOOKUP(ТърсенеУчащ,ПрисъствиеЮли[],31,FALSE),\"\")","v":""},{"$f":"IFERROR(VLOOKUP(ТърсенеУчащ,ПрисъствиеЮли[],32,FALSE),\"\")","v":""},{"$f":"IFERROR(VLOOKUP(ТърсенеУчащ,ПрисъствиеЮли[],33,FALSE),\"\")","v":""}]
[{"$nulls":30},"Общо",null,null,{"$f":"SUM(AH16:AH39)","v":2},{"$f":"SUM(AI16:AI39)","v":1},{"$f":"SUM(AJ16:AJ39)","v":0},{"$f":"SUM(AK16:AK39)","v":19}]